Workbook

Sheet RESUMO - Planilha Orçamentária
A1: Ministério da Integração e do Desenvolvimento Regional
A2: Companhia de Desenvolvimento dos Vales do São Francisco e do Parnaíba
A4: PLANILHA ORÇAMENTÁRIA - ORÇAMENTO NÃO DESONERADO
A5: OBRA: | B5: Contratação, por Sistema De Registro De Preços (SRP), de empresas especializadas para a execução de inspeções de segurança em barragens de terceiros ou inspeções não periódicas, localizadas na área de atuação da Codevasf | G5: BDI (serv.): | H5: ='BDI serviço'!D17 -> 0.283471382 | I5: Bancos de dados:
A6: LOCAL: | B6: Barragens nos Estados da Bahia, Pernambuco, Paraíba, Rio Grande Do Norte, Piauí, Mato Grosso, Goiás, Minas Gerais e Tocantins | G6: BDI (forn.): | H6: ='BDI forn'!D23 -> 0.136 | I6: FEV/25 - SINAPI/DF
A7: DATA BASE: | B7: Março, 2026 | E7: Encargos sociais - Horistas:
A8: PRAZO: | B8: 10 meses | E8: Encargos sociais - Mensalista:
A11: ITEM | B11: REFERÊNCIA | D11: DESCRIÇÃO | E11: UNID. | F11: QUANT. | G11: CUSTO UNITÁRIO | H11: PREÇO UNITÁRIO | I11: PREÇO TOTAL | J11: TIPO de BDI | K11: CLASSIF
B12: FONTE | C12: CÓDIGO
D13: GRUPO 01 | I13: =TRUNC(SUM(I14:I15),2) -> 622004.76
A14: 1 | B14: PRÓPRIA | C14: CPU.01 | D14: Execução de Inspeção e Relatório de Inspeção de Segurança Regular | E14: unid. | F14: 39 | G14: ='PLANILHA GRUPO 01'!G14 -> 11140.31 | H14: =TRUNC(G14*(1+$H$5),2) -> 14298.26 | I14: =TRUNC(F14*H14,2) -> 557632.14
A15: 2 | B15: PRÓPRIA | C15: CPU.03 | D15: Passagem aérea (Ida e Volta) | E15: unid. | F15: 39 | G15: ='PLANILHA GRUPO 01'!G15 -> 1452.98 | H15: =TRUNC(G15*(1+$H$6),2) -> 1650.58 | I15: =TRUNC(F15*H15,2) -> 64372.62
D17: GRUPO 02 | I17: =TRUNC(SUM(I18:I19),2) -> 1023353.37
A18: 3 | B18: PRÓPRIA | C18: CPU.02 | D18: Execução de Inspeção e Relatório de Inspeção de Segurança Especial | E18: unid. | F18: 39 | G18: ='PLANILHA GRUPO 02'!G14 -> 19158.4 | H18: =TRUNC(G18*(1+$H$5),2) -> 24589.25 | I18: =TRUNC(F18*H18,2) -> 958980.75
A19: 4 | B19: PRÓPRIA | C19: CPU.03 | D19: Passagem aérea (Ida e Volta) | E19: unid. | F19: 39 | G19: ='PLANILHA GRUPO 02'!G15 -> 1452.98 | H19: =TRUNC(G19*(1+$H$6),2) -> 1650.58 | I19: =TRUNC(F19*H19,2) -> 64372.62
D21: TOTAL (Custo): | I21: =TRUNC(SUMPRODUCT(F14:F20,G14:G20),2) -> 1294982.13
D22: BDI e Encargos Sociais: | I22: =TRUNC(I23-I21,2) -> 350376
D23: TOTAL GERAL COM BDI: | I23: =TRUNC(SUMPRODUCT(F14:F20,H14:H20),2) -> 1645358.13 | J23: VERIFICAÇÃO | K23: =SUM(I13,I17) -> 1645358.13

Sheet PLANILHA GRUPO 01
A1: Ministério da Integração e do Desenvolvimento Regional
A2: Companhia de Desenvolvimento dos Vales do São Francisco e do Parnaíba
A4: PLANILHA ORÇAMENTÁRIA - ORÇAMENTO NÃO DESONERADO
A5: OBRA: | B5: ='RESUMO - Planilha Orçamentária '!B5:E5 -> Contratação, por Sistema De Registro De Preços (SRP), de empresas especializadas para a execução de inspeções de segurança em barragens de terceiros ou inspeções não periódicas, localizadas na área de atuação da Codevasf | G5: BDI (serv.): | H5: ='BDI serviço'!D17 -> 0.283471382 | I5: Bancos de dados:
A6: LOCAL: | B6: ='RESUMO - Planilha Orçamentária '!B6:D6 -> Barragens nos Estados da Bahia, Pernambuco, Paraíba, Rio Grande Do Norte, Piauí, Mato Grosso, Goiás, Minas Gerais e Tocantins | G6: BDI (forn.): | H6: ='BDI forn'!D23 -> 0.136 | I6: ='RESUMO - Planilha Orçamentária '!I6 -> FEV/25 - SINAPI/DF
A7: DATA BASE: | B7: ='RESUMO - Planilha Orçamentária '!B7 -> Março, 2026 | E7: Encargos sociais - Horistas:
A8: PRAZO: | B8: ='RESUMO - Planilha Orçamentária '!B8 -> 10 meses | E8: Encargos sociais - Mensalista:
G9: Desconto: | H9: 0
A11: ITEM | B11: REFERÊNCIA | D11: DESCRIÇÃO | E11: UNID. | F11: QUANT. | G11: CUSTO UNITÁRIO | H11: PREÇO UNITÁRIO | I11: PREÇO TOTAL
B12: FONTE | C12: CÓDIGO
D13: GRUPO 01
A14: 1 | B14: PRÓPRIA | C14: CPU.01 | D14: Execução de Inspeção e Relatório de Inspeção de Segurança Regular | E14: unid. | F14: 39 | G14: =TRUNC((1-$H$9)*(SUMIFS(CPU!$G:$G,CPU!$A:$A,'RESUMO - Planilha Orçamentária '!$C14,CPU!$H:$H,"ss")+SUMIFS(CPU!$G:$G,CPU!$A:$A,'RESUMO - Planilha Orçamentária '!$C14,CPU!$H:$H,"mdo")+SUMIF('Comp SINAPI MG 09-2024 Desoner'!G:G,'RESUMO - Planilha Orçamentária '!C14,'Comp SINAPI MG 09-2024 Desoner'!K:K)+SUMIF('Ins SINAPI MG 09-2024 Desoner'!A:A,'RESUMO - Planilha Orçamentária '!C14,'Ins SINAPI MG 09-2024 Desoner'!E:E)),2) -> 11140.31 | H14: =TRUNC(G14*(1+$H$5),2) -> 14298.26 | I14: =TRUNC(F14*H14,2) -> 557632.14
A15: 2 | B15: PRÓPRIA | C15: CPU.03 | D15: Passagem aérea (Ida e Volta) | E15: unid. | F15: 39 | G15: =TRUNC((1-$H$9)*(SUMIFS(CPU!$G:$G,CPU!$A:$A,'RESUMO - Planilha Orçamentária '!$C15,CPU!$H:$H,"ss")+SUMIFS(CPU!$G:$G,CPU!$A:$A,'RESUMO - Planilha Orçamentária '!$C15,CPU!$H:$H,"mdo")+SUMIF('Comp SINAPI MG 09-2024 Desoner'!G:G,'RESUMO - Planilha Orçamentária '!C15,'Comp SINAPI MG 09-2024 Desoner'!K:K)+SUMIF('Ins SINAPI MG 09-2024 Desoner'!A:A,'RESUMO - Planilha Orçamentária '!C15,'Ins SINAPI MG 09-2024 Desoner'!E:E)),2) -> 1452.98 | H15: =TRUNC(G15*(1+$H$6),2) -> 1650.58 | I15: =TRUNC(F15*H15,2) -> 64372.62
H16: TOTAL GRUPO 01 | I16: =SUM(I14:I15) -> 622004.76

Sheet PLANILHA GRUPO 02
A1: Ministério da Integração e do Desenvolvimento Regional
A2: Companhia de Desenvolvimento dos Vales do São Francisco e do Parnaíba
A4: PLANILHA ORÇAMENTÁRIA - ORÇAMENTO NÃO DESONERADO
A5: OBRA: | B5: ='RESUMO - Planilha Orçamentária '!B5:E5 -> Contratação, por Sistema De Registro De Preços (SRP), de empresas especializadas para a execução de inspeções de segurança em barragens de terceiros ou inspeções não periódicas, localizadas na área de atuação da Codevasf | G5: BDI (serv.): | H5: ='BDI serviço'!D17 -> 0.283471382 | I5: Bancos de dados:
A6: LOCAL: | B6: ='RESUMO - Planilha Orçamentária '!B6:D6 -> Barragens nos Estados da Bahia, Pernambuco, Paraíba, Rio Grande Do Norte, Piauí, Mato Grosso, Goiás, Minas Gerais e Tocantins | G6: BDI (forn.): | H6: ='BDI forn'!D23 -> 0.136 | I6: ='RESUMO - Planilha Orçamentária '!I6 -> FEV/25 - SINAPI/DF
A7: DATA BASE: | B7: ='RESUMO - Planilha Orçamentária '!B7 -> Março, 2026 | E7: Encargos sociais - Horistas:
A8: PRAZO: | B8: ='RESUMO - Planilha Orçamentária '!B8 -> 10 meses | E8: Encargos sociais - Mensalista:
G9: Desconto: | H9: 0
A11: ITEM | B11: REFERÊNCIA | D11: DESCRIÇÃO | E11: UNID. | F11: QUANT. | G11: CUSTO UNITÁRIO | H11: PREÇO UNITÁRIO | I11: PREÇO TOTAL
B12: FONTE | C12: CÓDIGO
D13: GRUPO 02
A14: 3 | B14: PRÓPRIA | C14: CPU.02 | D14: Execução de Inspeção e Relatório de Inspeção de Segurança Especial | E14: unid. | F14: 39 | G14: =(1-$H$9)*(SUMIFS(CPU!$G:$G,CPU!$A:$A,'RESUMO - Planilha Orçamentária '!$C18,CPU!$H:$H,"ss")+SUMIFS(CPU!$G:$G,CPU!$A:$A,'RESUMO - Planilha Orçamentária '!$C18,CPU!$H:$H,"mdo")+SUMIF('Comp SINAPI MG 09-2024 Desoner'!G:G,'RESUMO - Planilha Orçamentária '!C18,'Comp SINAPI MG 09-2024 Desoner'!K:K)+SUMIF('Ins SINAPI MG 09-2024 Desoner'!A:A,'RESUMO - Planilha Orçamentária '!C18,'Ins SINAPI MG 09-2024 Desoner'!E:E)) -> 19158.4 | H14: =TRUNC(G14*(1+$H$5),2) -> 24589.25 | I14: =TRUNC(F14*H14,2) -> 958980.75
A15: 4 | B15: PRÓPRIA | C15: CPU.03 | D15: Passagem aérea (Ida e Volta) | E15: unid. | F15: 39 | G15: =TRUNC((1-$H$9)*(SUMIFS(CPU!$G:$G,CPU!$A:$A,'RESUMO - Planilha Orçamentária '!$C19,CPU!$H:$H,"ss")+SUMIFS(CPU!$G:$G,CPU!$A:$A,'RESUMO - Planilha Orçamentária '!$C19,CPU!$H:$H,"mdo")+SUMIF('Comp SINAPI MG 09-2024 Desoner'!G:G,'RESUMO - Planilha Orçamentária '!C19,'Comp SINAPI MG 09-2024 Desoner'!K:K)+SUMIF('Ins SINAPI MG 09-2024 Desoner'!A:A,'RESUMO - Planilha Orçamentária '!C19,'Ins SINAPI MG 09-2024 Desoner'!E:E)),2) -> 1452.98 | H15: =TRUNC(G15*(1+$H$6),2) -> 1650.58 | I15: =TRUNC(F15*H15,2) -> 64372.62
H16: TOTAL GRUPO 02 | I16: =SUM(I14:I15) -> 1023353.37

Sheet Cronograma
A1: Ministério da Integração e do Desenvolvimento Regional
A2: Companhia de Desenvolvimento dos Vales do São Francisco e do Parnaíba
A4: CRONOGRAMA FÍSICO-FINANCEIRO NÃO DESONERADO
A5: ='RESUMO - Planilha Orçamentária '!A5 -> OBRA: | B5: ='RESUMO - Planilha Orçamentária '!B5 -> Contratação, por Sistema De Registro De Preços (SRP), de empresas especializadas para a execução de inspeções de segurança em barragens de terceiros ou inspeções não periódicas, localizadas na área de atuação da Codevasf
A6: ='RESUMO - Planilha Orçamentária '!A6 -> LOCAL: | B6: ='RESUMO - Planilha Orçamentária '!B6:D6 -> Barragens nos Estados da Bahia, Pernambuco, Paraíba, Rio Grande Do Norte, Piauí, Mato Grosso, Goiás, Minas Gerais e Tocantins
A7: ='RESUMO - Planilha Orçamentária '!A7 -> DATA BASE: | B7: ='RESUMO - Planilha Orçamentária '!B7 -> Março, 2026
A8: ='RESUMO - Planilha Orçamentária '!A8 -> PRAZO: | B8: ='RESUMO - Planilha Orçamentária '!B8 -> 10 meses
A9: ITEM | B9: DESCRIÇÃO | C9: TOTAL POR ETAPA | D9: MESES | J9: TOTAL
D10: 1 | E10: 2 | F10: 3 | G10: 4 | H10: 5 | I10: 6
A11: 1 | B11: ='RESUMO - Planilha Orçamentária '!D14 -> Execução de Inspeção e Relatório de Inspeção de Segurança Regular | C11: ='RESUMO - Planilha Orçamentária '!I14 -> 557632.14 | D11: =$C11*D12 -> 83644.821 | E11: =$C11*E12 -> 83644.821 | F11: 111526.428 | G11: 83644.821 | H11: 111526.428 | I11: 83644.821 | J11: =SUM(D11:I11) -> 557632.14 | K11: R$
C12: =C11/C11 -> 1 | D12: 0.15 | E12: 0.15 | F12: 0.2 | G12: 0.15 | H12: 0.2 | I12: 0.15 | J12: 1 | K12: %
A13: 2 | B13: ='RESUMO - Planilha Orçamentária '!D15 -> Passagem aérea (Ida e Volta) | C13: ='RESUMO - Planilha Orçamentária '!I15 -> 64372.62 | D13: =$C13*D14 -> 9655.893 | E13: =$C13*E14 -> 9655.893 | F13: 12874.524 | G13: 9655.893 | H13: 12874.524 | I13: 9655.893 | J13: 64372.62 | K13: R$
C14: =C13/C13 -> 1 | D14: =D12 -> 0.15 | E14: =E12 -> 0.15 | F14: =F12 -> 0.2 | G14: =G12 -> 0.15 | H14: 0.2 | I14: =I12 -> 0.15 | J14: 1 | K14: %
A15: 3 | B15: ='RESUMO - Planilha Orçamentária '!D18 -> Execução de Inspeção e Relatório de Inspeção de Segurança Especial | C15: ='RESUMO - Planilha Orçamentária '!I18 -> 958980.75 | D15: =$C15*D16 -> 383592.3 | F15: =$C15*F16 -> 287694.225 | H15: =$C15*H16 -> 287694.225 | J15: 958980.75 | K15: R$
C16: =C15/C15 -> 1 | D16: 0.4 | F16: 0.3 | H16: 0.3 | J16: 1 | K16: %
A17: ='RESUMO - Planilha Orçamentária '!A19 -> 4 | B17: ='RESUMO - Planilha Orçamentária '!D19 -> Passagem aérea (Ida e Volta) | C17: ='RESUMO - Planilha Orçamentária '!I19 -> 64372.62 | D17: =$C17*D18 -> 25749.048 | F17: =$C17*F18 -> 19311.786 | H17: =$C17*H18 -> 19311.786 | J17: 64372.62 | K17: R$
C18: =C17/C17 -> 1 | D18: 0.4 | F18: 0.3 | H18: 0.3 | J18: 1 | K18: %
B19: VALOR TOTAL: | C19: =SUMIF($K$11:$K$18,"R$",C$11:C$18) -> 1645358.13 | D19: 502642.062 | E19: 93300.714 | F19: 431406.963 | G19: 93300.714 | H19: 431406.963 | I19: 93300.714 | J19: 1645358.13
B20: VALOR ACUMULADO: | D20: =D19 -> 502642.062 | E20: =E19+D20 -> 595942.776 | F20: 1027349.739 | G20: 1120650.453 | H20: 1552057.416 | I20: 1645358.13 | J20: =I20 -> 1645358.13 | M20: =IF(J20='RESUMO - Planilha Orçamentária '!I23,"ok","verificar") -> ok
B21: FÍSICO PARCIAL: | D21: =SUMIF($K$11:$K$18,"R$",D$11:D$18)/$C$19 -> 0.3054909766 | E21: 0.05670541404 | F21: 0.2621963906 | G21: 0.05670541404 | H21: 0.2621963906 | I21: 0.05670541404 | J21: =J19/$C$19 -> 1
B22: AVANÇO FÍSICO: | D22: =D21 -> 0.3054909766 | E22: =E21+D22 -> 0.3621963906 | F22: 0.6243927813 | G22: 0.6810981953 | H22: 0.943294586 | I22: 1

Sheet BDI serviço
A1: Planilha de Cálculo Exemplificativa para o BDI na Tabela de Preços de Consultoria
A2: Descrição das Parcelas | C2: Valores
A3: Despesas Indiretas | C3: % sobre PV | D3: % sobre CD
A4: Administração Central | B4: Variável - f (CD) | C4: =D4/(1+D$17/100) -> 3.390389217 | D4: 3.4
A5: Despesas Financeiras | B5: 1.04 | C5: =D5/(1+D$17/100) -> 0.9373429011 | D5: 0.94
A6: Riscos | B6: 0,50% do PV | C6: 0.5 | D6: 1
A7: Seguros e Garantias Contratuais | B7: 0,10% do PV | C7: 0.1 | D7: 0.28
B8: Subtotal 1 | C8: =SUM(C4:C7) -> 4.927732118 | D8: =SUM(D4:D7) -> 5.62
A9: Benefícios | C9: % sobre PV | D9: % sobre CD
A10: Lucro | B10: Variável - f (CD) | C10: =D10/(1+D$17/100) -> 6.980213093 | D10: 7
B11: Subtotal 2 | C11: =C10 -> 6.980213093 | D11: =D10 -> 7
A12: Tributos | C12: % sobre PV | D12: % sobre CD
A13: PIS | B13: 1,65% do PV | C13: =1.65*0.8 -> 1.32 | D13: =C13*(1+D$17/100) -> 1.323741822
A14: COFINS | B14: 7,60% do PV | C14: =7.6*0.8 -> 6.08 | D14: =C14*(1+D$17/100) -> 6.09723506
A15: ISSQN* | B15: 5,00% do PV | C15: 5 | D15: =C15*(1+D$17/100) -> 5.014173569
B16: Subtotal 3 | C16: =SUM(C13:C15) -> 12.4 | D16: =SUM(D13:D15) -> 12.43515045
A17: Total - BDI (%) | C17: =C8+C11+C16 -> 24.30794521 | D17: =((1+(D4/100+D10/100-($B5/100*D10/100)))/(1-($B5/100+C7/100+C6/100+C13/100+C14/100+C15/100))-1) -> 0.283471382
A18: Observação: (*) Limite máximo adotado de 5%, valor variável em função da legislação de cada município. As empresas licitantes deverão adotar as alíquotas pertinentes.

Sheet BDI forn
A1: Ministério do Desenvolvimento Regional
A2: Companhia de Desenvolvimento dos Vales do São Francisco e do Parnaíba
A4: COMPOSIÇÃO DE BDI - FORNECIMENTO - NÃO DESONERADO
A5: ='RESUMO - Planilha Orçamentária '!A5 -> OBRA: | B5: ='RESUMO - Planilha Orçamentária '!B5 -> Contratação, por Sistema De Registro De Preços (SRP), de empresas especializadas para a execução de inspeções de segurança em barragens de terceiros ou inspeções não periódicas, localizadas na área de atuação da Codevasf | D5: BDI (serv.): | E5: ='BDI serviço'!D17 -> 0.283471382
A6: ='RESUMO - Planilha Orçamentária '!A6 -> LOCAL: | B6: ='PLANILHA GRUPO 01'!B6:D6 -> Barragens nos Estados da Bahia, Pernambuco, Paraíba, Rio Grande Do Norte, Piauí, Mato Grosso, Goiás, Minas Gerais e Tocantins | D6: BDI (forn.): | E6: =D23 -> 0.136
A7: ='RESUMO - Planilha Orçamentária '!A7 -> DATA BASE: | B7: ='RESUMO - Planilha Orçamentária '!B7 -> Março, 2026
A8: ='RESUMO - Planilha Orçamentária '!A8 -> PRAZO: | B8: ='RESUMO - Planilha Orçamentária '!B8 -> 10 meses
A9: ITEM | B9: DESCRIÇÃO | C9: SIGLA | D9: % APLICADO
A11: 1 | B11: ADMINISTRAÇÃO CENTRAL | C11: AC | D11: 0.03
A12: 2 | B12: IMPOSTOS | C12: T | D12: =SUM(D13:D16) -> 0.0365
A13: 2.1 | B13: ISS (*)
A14: 2.2 | B14: PIS | D14: 0.0065
A15: 2.3 | B15: Cofins | D15: 0.03
A16: 2.4 | B16: Contribuição previdênciária sobre a receita bruta (CPRB)
A17: 3 | B17: SEGURO, GARANTIA E RISCO | D17: =SUM(D18:D20) -> 0.0086
A18: 3.1 | B18: Seguro | C18: S | D18: 0.003
A19: 3.2 | B19: Garantia | C19: G
A20: 3.3 | B20: Risco | C20: R | D20: 0.0056
A21: 4 | B21: DESPESAS FINANCEIRAS | C21: DF | D21: 0.0085
A22: 5 | B22: LUCRO | C22: L | D22: 0.045
B23: BDI ADOTADO: | D23: =TRUNC(((((1+D11+D17)*(1+D21)*(1+D22))/(1-D12))-1),4) -> 0.136
A24: Considerações:
H173: =SUM(H174:H177) -> 0
D177: mec | F177: 2 | G177: 128

Sheet CPU
A1: Ministério da Integração e do Desenvolvimento Regional
A2: Companhia de Desenvolvimento dos Vales do São Francisco e do Parnaíba
A4: COMPOSIÇÕES DE PREÇOS UNITÁRIOS - ORÇAMENTO NÃO DESONERADO
A5: ='RESUMO - Planilha Orçamentária '!A5 -> OBRA: | B5: ='RESUMO - Planilha Orçamentária '!B5 -> Contratação, por Sistema De Registro De Preços (SRP), de empresas especializadas para a execução de inspeções de segurança em barragens de terceiros ou inspeções não periódicas, localizadas na área de atuação da Codevasf
A6: ='RESUMO - Planilha Orçamentária '!A6 -> LOCAL: | B6: ='RESUMO - Planilha Orçamentária '!B6:D6 -> Barragens nos Estados da Bahia, Pernambuco, Paraíba, Rio Grande Do Norte, Piauí, Mato Grosso, Goiás, Minas Gerais e Tocantins
A7: ='RESUMO - Planilha Orçamentária '!A7 -> DATA BASE: | B7: ='RESUMO - Planilha Orçamentária '!B7 -> Março, 2026
A8: ='RESUMO - Planilha Orçamentária '!A8 -> PRAZO: | B8: ='RESUMO - Planilha Orçamentária '!B8 -> 10 meses
A9: REFERÊNCIA | B9: CÓDIGO | C9: DESCRIÇÃO | D9: UNIDADE | E9: ÍNDICE | F9: CUSTO UNITÁRIO | G9: CUSTO TOTAL
B10: ='RESUMO - Planilha Orçamentária '!C14 -> CPU.01 | C10: =VLOOKUP(B10,'RESUMO - Planilha Orçamentária '!C$13:F$46,2) -> Execução de Inspeção e Relatório de Inspeção de Segurança Regular | D10: =VLOOKUP(B10,'RESUMO - Planilha Orçamentária '!C$13:F$46,3) -> unid. | E10: 1 | G10: =TRUNC(SUM(G24,G21,G12,G11),2) -> 11140.31 | H10: S | I10: 9867.93
A11: =B10 -> CPU.01 | C11: MATERIAL | G11: 0 | H11: ss
A12: =B10 -> CPU.01 | C12: EQUIPAMENTOS | G12: =SUM(G13:G20) -> 1093.22 | H12: ss
A13: CODEVASF | C13: Veículo tipo pick-up, cabine dupla - 2.0 16V 4x4 diesel Aut. | D13: dia | E13: 2 | F13: ='CPU-VEICULO_PickUp'!$C$11 -> 459.2521235 | G13: =TRUNC(E13*F13,2) -> 918.5 | H13: ca
A14: COTAÇÃO | C14: trena digital | D14: mês | E14: 0.25 | F14: ='COMPOSICAO EQUIPAMENTOS'!$T$89 -> 12.98 | G14: 3.24
A15: COTAÇÃO | C15: fissurometro | D15: mês | E15: =E$32 -> 0.25 | F15: ='COMPOSICAO EQUIPAMENTOS'!T159 -> 0.61 | G15: 0.15
A16: COTAÇÃO | C16: GPS de mão | D16: mês | E16: =E$32 -> 0.25 | F16: ='COMPOSICAO EQUIPAMENTOS'!T103 -> 127.66 | G16: 31.91
A17: COTAÇÃO | C17: Câmera fotográfica para vídeo e fotos | D17: mês | E17: =E$14 -> 0.25 | F17: ='COMPOSICAO EQUIPAMENTOS'!$T$177 -> 79.12 | G17: 19.78
A18: COTAÇÃO | C18: trena metálica | D18: mês | E18: =E$14 -> 0.25 | F18: ='COMPOSICAO EQUIPAMENTOS'!$T$195 -> 6.39 | G18: 1.59
A19: COTAÇÃO | C19: Lanternas | D19: mês | E19: =E$14 -> 0.25 | F19: ='COMPOSICAO EQUIPAMENTOS'!T213 -> 9.52 | G19: 2.38
A20: COTAÇÃO | C20: ='COMPOSICAO EQUIPAMENTOS'!B216 -> Kit detector de vazamentos (Lanterna UV+contraste) | D20: unid. | E20: 0.25 | F20: ='COMPOSICAO EQUIPAMENTOS'!S$239 -> 462.7 | G20: =TRUNC(E20*F20,2) -> 115.67
A21: =B10 -> CPU.01 | C21: SERVIÇOS | G21: =SUM(G22:G23) -> 834.53 | H21: ss
A22: CREA - 2024 | C22: Anotação de Responsabilidade Técnica (ART) | D22: unid. | E22: 1 | F22: 285.59 | G22: =TRUNC(E22*F22,2) -> 285.59
A23: CODEVASF | C23: Hospedagem | D23: unid. | E23: 2 | F23: ='CPU HOSPEDAGEM'!C19 -> 274.47 | G23: =TRUNC(E23*F23,2) -> 548.94
A24: =B10 -> CPU.01 | C24: MÃO DE OBRA | G24: =SUM(G25:G26) -> 9212.56 | H24: mdo
A25: SINAPI | B25: 90778 | C25: Engenheiro Civil/Geotécnico ou Estrutural (ADAPTADO SINAPI 90778) | D25: hora | E25: =Memorial!L42*8+Memorial!M42*8/2 -> 28 | F25: 164.51 | G25: =TRUNC(E25*F25,2) -> 4606.28 | J25: =E25+E26 -> 56
A26: SINAPI | B26: 90778 | C26: Engenheiro Civil/Hidráulico (ADAPTADO SINAPI 90778) | D26: hora | E26: =Memorial!L42*8+Memorial!M42*8/2 -> 28 | F26: 164.51 | G26: =TRUNC(E26*F26,2) -> 4606.28
B28: ='RESUMO - Planilha Orçamentária '!C18 -> CPU.02 | C28: =VLOOKUP(B28,'RESUMO - Planilha Orçamentária '!C$13:F$46,2) -> Execução de Inspeção e Relatório de Inspeção de Segurança Especial | D28: =VLOOKUP(B28,'RESUMO - Planilha Orçamentária '!C$13:F$46,3) -> unid. | E28: 1 | G28: =TRUNC(SUM(G48,G45,G30,G29),2) -> 19158.4 | H28: S
A29: =B28 -> CPU.02 | C29: MATERIAL | G29: 0 | H29: ss
A30: =B28 -> CPU.02 | C30: EQUIPAMENTOS | G30: =SUM(G31:G43) -> 1657.4 | H30: ss
A31: CODEVASF | C31: Veículo tipo pick-up, cabine dupla - 2.0 16V 4x4 diesel Aut. | D31: dia | E31: 2 | F31: ='CPU-VEICULO_PickUp'!$C$11 -> 459.2521235 | G31: =TRUNC(E31*F31,2) -> 918.5 | H31: ca
A32: COTAÇÃO | C32: Drone para ortofoto georreferenciada | D32: mês | E32: =E14 -> 0.25 | F32: ='COMPOSICAO EQUIPAMENTOS'!T33 -> 1790.82 | G32: 447.7
A33: COTAÇÃO | C33: sensor de umidade | D33: mês | E33: =E$32 -> 0.25 | F33: ='COMPOSICAO EQUIPAMENTOS'!T140 -> 28.16 | G33: 7.04
A34: COTAÇÃO | C34: fissurometro | D34: mês | E34: 0.25 | F34: ='COMPOSICAO EQUIPAMENTOS'!T159 -> 0.61 | G34: 0.15
A35: COTAÇÃO | C35: GPS de mão | D35: mês | E35: 0.25 | F35: ='COMPOSICAO EQUIPAMENTOS'!T103 -> 127.66 | G35: 31.91
A36: COTAÇÃO | C36: Câmera de inspeção endoscópica | D36: mês | E36: 0.25 | F36: ='COMPOSICAO EQUIPAMENTOS'!T123 -> 179.8 | G36: 44.95
A37: COTAÇÃO | C37: Agisoft Metashape | D37: mês | E37: 0.25 | F37: ='COMPOSICAO EQUIPAMENTOS'!T18 -> 17.84 | G37: 4.46
A38: COTAÇÃO | C38: Software CAD - Desenho assistido por computador | D38: mês | E38: 0.25 | F38: ='COMPOSICAO EQUIPAMENTOS'!T56 -> 240.15 | G38: 60.03
A39: COTAÇÃO | C39: trena digital | D39: mês | E39: 0.25 | F39: ='COMPOSICAO EQUIPAMENTOS'!$T$89 -> 12.98 | G39: 3.24
A40: COTAÇÃO | C40: Câmera fotográfica para vídeo e fotos | D40: mês | E40: 0.25 | F40: ='COMPOSICAO EQUIPAMENTOS'!$T$177 -> 79.12 | G40: 19.78
A41: COTAÇÃO | C41: trena metálica | D41: mês | E41: 0.25 | F41: ='COMPOSICAO EQUIPAMENTOS'!$T$195 -> 6.39 | G41: 1.59
A42: COTAÇÃO | C42: Lanternas | D42: mês | E42: 0.25 | F42: ='COMPOSICAO EQUIPAMENTOS'!T213 -> 9.52 | G42: 2.38
A43: COTAÇÃO | C43: ='COMPOSICAO EQUIPAMENTOS'!B216 -> Kit detector de vazamentos (Lanterna UV+contraste) | D43: unid. | E43: 0.25 | F43: ='COMPOSICAO EQUIPAMENTOS'!S$239 -> 462.7 | G43: 115.67
A45: =B28 -> CPU.02 | C45: SERVIÇOS | G45: =G46+G47 -> 1109 | H45: ss
A46: CREA - 2024 | C46: Anotação de Responsabilidade Técnica (ART) | D46: unid. | E46: 1 | F46: 285.59 | G46: =TRUNC(E46*F46,2) -> 285.59
A47: CODEVASF | C47: Hospedagem | D47: unid. | E47: =3 -> 3 | F47: ='CPU HOSPEDAGEM'!C19 -> 274.47 | G47: =TRUNC(E47*F47,2) -> 823.41
A48: =B28 -> CPU.02 | C48: MÃO DE OBRA | G48: =SUM(G49:G52) -> 16392 | H48: mdo
A49: SINAPI | B49: 90778 | C49: Engenheiro Civil/Geotécnico e/ou Mecânico (ADAPTADO SINAPI 90778) | D49: hora | E49: =Memorial!L42*8+Memorial!N42*8/2 -> 32 | F49: 164.51 | G49: =TRUNC(E49*F49,2) -> 5264.32 | J49: =E49+E50+E51 -> 96
A50: SINAPI | B50: 90778 | C50: Engenheiro Civil/Hidráulico e/ou Mecânico (ADAPTADO SINAPI 90778) | D50: hora | E50: =Memorial!L42*8+Memorial!N42*8/2 -> 32 | F50: 164.51 | G50: =TRUNC(E50*F50,2) -> 5264.32
A51: SINAPI | B51: 90778 | C51: Engenheiro Civil/Estrutural e/ou Mecânico (ADAPTADO SINAPI 90778) | D51: hora | E51: =Memorial!L42*8+Memorial!N42*4 -> 32 | F51: 164.51 | G51: =TRUNC(E51*F51,2) -> 5264.32
A52: SINAPI | B52: 90775 | C52: DESENHISTA PROJETISTA COM ENCARGOS COMPLEMENTARES | D52: hora | E52: =8*3 -> 24 | F52: 24.96 | G52: =TRUNC(E52*F52,2) -> 599.04
B54: ='RESUMO - Planilha Orçamentária '!C15 -> CPU.03 | C54: =VLOOKUP(B54,'RESUMO - Planilha Orçamentária '!C$13:F$46,2) -> Passagem aérea (Ida e Volta) | D54: =VLOOKUP(B54,'RESUMO - Planilha Orçamentária '!C$13:F$46,3) -> unid. | E54: 1 | G54: =SUM(G59,G58,G56,G55) -> 1452.98 | H54: S
A55: =B54 -> CPU.03 | C55: MATERIAL | G55: 0 | H55: ss
A56: =B54 -> CPU.03 | C56: EQUIPAMENTOS | G56: =G57 -> 1452.98 | H56: ss
A57: COTAÇÃO | B57: 2026-03-13 | C57: Cotação Voo | D57: unid. | E57: 1 | F57: ='Passagem aérea'!B6 -> 1452.980552 | G57: =TRUNC(E57*F57,2) -> 1452.98 | H57: ca
A58: =B54 -> CPU.03 | C58: SERVIÇOS | G58: 0 | H58: ss
A59: =B54 -> CPU.03 | C59: MÃO DE OBRA | H59: mdo

Sheet Encargos Sociais
A1: Ministério da Integração e do Desenvolvimento Regional
A2: Companhia de Desenvolvimento dos Vales do São Francisco e do Parnaíba
A4: COMPOSIÇÃO DE ENCARGOS SOCIAIS SOBRE A MÃO DE OBRA
A5: ='RESUMO - Planilha Orçamentária '!A5 -> OBRA: | B5: ='RESUMO - Planilha Orçamentária '!B5 -> Contratação, por Sistema De Registro De Preços (SRP), de empresas especializadas para a execução de inspeções de segurança em barragens de terceiros ou inspeções não periódicas, localizadas na área de atuação da Codevasf
A6: ='RESUMO - Planilha Orçamentária '!A6 -> LOCAL: | B6: BARRAGENS INCRA
A7: ='RESUMO - Planilha Orçamentária '!A7 -> DATA BASE: | B7: ='RESUMO - Planilha Orçamentária '!B7 -> Março, 2026
A8: ='RESUMO - Planilha Orçamentária '!A8 -> PRAZO: | B8: ='RESUMO - Planilha Orçamentária '!B8 -> 10 meses
A11: Encargos Sociais – Distrito Federal VIGÊNCIA A PARTIR DE 01/2026
A12: ENCARGOS SOCIAIS SOBRE A MÃO DE OBRA
A13: CÓDIGO | B13: DESCRIÇÃO | C13: COM DESONERAÇÃO | E13: SEM DESONERAÇÃO
C14: HORISTA % | D14: MENSALISTA % | E14: HORISTA % | F14: MENSALISTA %
A15: GRUPO A
A16: A1 | B16: INSS | C16: 0.1 | D16: 0.1 | E16: 0.2 | F16: 0.2
A17: A2 | B17: SESI | C17: 0.015 | D17: 0.015 | E17: 0.015 | F17: 0.015
A18: A3 | B18: SENAI | C18: 0.01 | D18: 0.01 | E18: 0.01 | F18: 0.01
A19: A4 | B19: INCRA | C19: 0.002 | D19: 0.002 | E19: 0.002 | F19: 0.002
A20: A5 | B20: SEBRAE | C20: 0.006 | D20: 0.006 | E20: 0.006 | F20: 0.006
A21: A6 | B21: Salário Educação | C21: 0.025 | D21: 0.025 | E21: 0.025 | F21: 0.025
A22: A7 | B22: Seguro Contra Acidentes de Trabalho | C22: 0.03 | D22: 0.03 | E22: 0.03 | F22: 0.03
A23: A8 | B23: FGTS | C23: 0.08 | D23: 0.08 | E23: 0.08 | F23: 0.08
A24: A9 | B24: SECONCI | C24: 0.01 | D24: 0.01 | E24: 0.01 | F24: 0.01
A25: A | B25: Total | C25: =SUM(C16:C24) -> 0.278 | D25: =SUM(D16:D24) -> 0.278 | E25: =SUM(E16:E24) -> 0.378 | F25: =SUM(F16:F24) -> 0.378
A26: GRUPO B
A27: B1 | B27: Repouso Semanal Remunerado | C27: 0.176 | D27: Não incide | E27: 0.176 | F27: Não incide
A28: B2 | B28: Feriados | C28: 0.0338 | D28: Não incide | E28: 0.0338 | F28: Não incide
A29: B3 | B29: Auxílio - Enfermidade | C29: 0.0087 | D29: 0.0067 | E29: 0.0087 | F29: 0.0067
A30: B4 | B30: 13º Salário | C30: 0.1063 | D30: 0.0824 | E30: 0.1063 | F30: 0.0824
A31: B5 | B31: Licença Paternidade | C31: 0.0007 | D31: 0.0005 | E31: 0.0007 | F31: 0.0005
A32: B6 | B32: Faltas Justificadas | C32: 0.0072 | D32: 0.0056 | E32: 0.0072 | F32: 0.0056
A33: B7 | B33: Dias de Chuvas | C33: 0.0138 | D33: Não incide | E33: 0.0138 | F33: Não incide
A34: B8 | B34: Auxílio Acidente de Trabalho | C34: 0.0003 | D34: 0.0002 | E34: 0.0003 | F34: 0.0002
A35: B9 | B35: Férias Gozadas | C35: 0.0899 | D35: 0.0697 | E35: 0.0899 | F35: 0.0697
A36: B10 | B36: Salário Maternidade | C36: 0.0003 | D36: 0.0003 | E36: 0.0003 | F36: 0.0003
A37: B | B37: Total | C37: =SUM(C27:C36) -> 0.437 | D37: =SUM(D27:D36) -> 0.1654 | E37: =SUM(E27:E36) -> 0.437 | F37: =SUM(F27:F36) -> 0.1654
A38: GRUPO C
A39: C1 | B39: Aviso Prévio Indenizado | C39: 0.043 | D39: 0.0333 | E39: 0.043 | F39: 0.0333
A40: C2 | B40: Aviso Prévio Trabalhado | C40: 0.0011 | D40: 0.0009 | E40: 0.0011 | F40: 0.0009
A41: C3 | B41: Férias Indenizadas | C41: 0.0508 | D41: 0.0394 | E41: 0.0508 | F41: 0.0394
A42: C4 | B42: Depósito Rescisão Sem Justa Causa | C42: 0.0182 | D42: 0.0141 | E42: 0.0182 | F42: 0.0141
A43: C5 | B43: Indenização Adicional | C43: 0.0036 | D43: 0.0028 | E43: 0.0036 | F43: 0.0028
A44: C | B44: Total | C44: =SUM(C39:C43) -> 0.1167 | D44: =SUM(D39:D43) -> 0.0905 | E44: =SUM(E39:E43) -> 0.1167 | F44: =SUM(F39:F43) -> 0.0905
A45: GRUPO D
A46: D1 | B46: Reincidência de Grupo A sobre Grupo B | C46: 0.1109 | D46: 0.0377 | E46: 0.1652 | F46: 0.0625
A47: D2 | B47: Reincidência de Grupo A sobre Aviso Prévio Trabalhado e Reincidência do FGTS sobre Aviso Prévio Indenizado | C47: 0.0037 | D47: 0.0029 | E47: 0.0039 | F47: 0.003
A48: D | B48: Total | C48: =SUM(C46:C47) -> 0.1146 | D48: =SUM(D46:D47) -> 0.0406 | E48: =SUM(E46:E47) -> 0.1691 | F48: =SUM(F46:F47) -> 0.0655
A49: TOTAL(A+B+C+D) | C49: =C25+C37+C44+C48 -> 0.9463 | D49: =D25+D37+D44+D48 -> 0.5745 | E49: =E25+E37+E44+E48 -> 1.1008 | F49: =F25+F37+F44+F48 -> 0.6994
A50: Fonte: Informação Dias de Chuva – INMET

Sheet COMPOSICAO EQUIPAMENTOS
A1: Cotações data 03/2026
A3: COTAÇÃO Software p/ o drone - Agisoft Metashape
A4: Fonte: | B4: https://rochasoftwares.com
B5: https://sevensoftwares.com.br/ | N5: Cotação 1 | O5: Cotação 2 | P5: Cotação 3 | Q5: Cotação 4 | R5: Cotação 5
B6: https://sarsoftwares.com/ | N6: 449 | O6: 499 | P6: 479
S8: CV= | T8: =STDEVA(N6:R6)/AVERAGE(N6:R6) -> 0.05290703879
S9: Média: | T9: =AVERAGE(N6:R6) -> 475.6666667
S10: Mediana: | T10: =MEDIAN(N6:R6) -> 479
S11: Menor: | T11: =SMALL(T9:T10,1) -> 475.6666667
M16: VALOR DE AQUISIÇÃO | N16: VALOR DA DEPRECIAÇÃO | R16: MANUTENÇÃO | T16: VALOR MENSAL TOTAL (R$)
N17: Tempo de Utilização (Anos) | O17: Meses p/Ano de Uso | P17: Percentual Residual (%) | Q17: Depreciação Mensal - R$ | R17: Percentual Anual (%) | S17: Valor Mensal (R$)
M18: =T11 -> 475.6666667 | N18: 2 | O18: 12 | P18: 0.1 | Q18: =ROUND((M18*(100%-P18))/(N18*O18),2) -> 17.84 | R18: 0 | S18: =ROUND((R18*M18)/12,2) -> 0 | T18: =S18+Q18 -> 17.84
A21: COTAÇÃO Drone
A22: Fonte: Google shopping | N22: Cotação 1 | O22: Cotação 2 | P22: Cotação 3 | Q22: Cotação 4 | R22: Cotação 5 | S22: Cotação 6
N23: 39590 | O23: 37610.5 | P23: 49990 | Q23: 41503.88 | R23: 42324.32 | S23: 36905
S25: CV= | T25: =STDEVA(N23:S23)/AVERAGE(N23:S23) -> 0.1147733942
S26: Média: | T26: =AVERAGE(N23:S23) -> 41320.61667
S27: Mediana: | T27: =MEDIAN(N23:S23) -> 40546.94
S28: Menor: | T28: =SMALL(T26:T27,1) -> 40546.94
M31: VALOR DE AQUISIÇÃO | N31: VALOR DA DEPRECIAÇÃO | R31: MANUTENÇÃO | T31: VALOR MENSAL TOTAL (R$)
N32: Tempo de Utilização (Anos) | O32: Meses p/Ano de Uso | P32: Percentual Residual (%) | Q32: Depreciação Mensal - R$ | R32: Percentual Anual (%) | S32: Valor Mensal (R$)
M33: =T28 -> 40546.94 | N33: 2 | O33: 12 | P33: 0.1 | Q33: =ROUND((M33*(100%-P33))/(N33*O33),2) -> 1520.51 | R33: 0.08 | S33: =ROUND((R33*M33)/12,2) -> 270.31 | T33: =S33+Q33 -> 1790.82
A51: Cotação | B51: Software Autodesk AutoCAD
M54: VALOR DE AQUISIÇÃO | N54: VALOR DA DEPRECIAÇÃO | R54: MANUTENÇÃO | T54: VALOR MENSAL TOTAL (R$)
N55: Tempo de Utilização (Anos) | O55: Meses p/Ano de Uso | P55: Percentual Residual (%) | Q55: Depreciação Mensal - R$ | R55: Percentual Anual (%) | S55: Valor Mensal (R$)
M56: 6404 | N56: 2 | O56: 12 | P56: 0.1 | Q56: =ROUND((M56*(100%-P56))/(N56*O56),2) -> 240.15 | R56: 0 | S56: =ROUND((R56*M56)/12,2) -> 0 | T56: =S56+Q56 -> 240.15
A73: Cotação | B73: Trena digital laser
O75: Cotação 1 | P75: Cotação 2 | Q75: Cotação 3 | R75: Cotação 4 | S75: Cotação 5 | T75: Cotação 6
O76: 360.96 | Q76: 360.96 | R76: 213.8 | S76: 239.35
P77: 142.4
S79: CV= | T79: =STDEVA(O76:T76)/AVERAGE(O76:T76) -> 0.2664870186
S80: Média: | T80: =AVERAGE(O76:T76) -> 293.7675
S81: Mediana: | T81: =MEDIAN(O76:T76) -> 300.155
S82: Menor: | T82: =SMALL(T80:T81,1) -> 293.7675
M87: VALOR DE AQUISIÇÃO | N87: VALOR DA DEPRECIAÇÃO | R87: MANUTENÇÃO | T87: VALOR MENSAL TOTAL (R$)
N88: Tempo de Utilização (Anos) | O88: Meses p/Ano de Uso | P88: Percentual Residual (%) | Q88: Depreciação Mensal - R$ | R88: Percentual Anual (%) | S88: Valor Mensal (R$)
M89: =T82 -> 293.7675 | N89: 2 | O89: 12 | P89: 0.1 | Q89: =ROUND((M89*(100%-P89))/(N89*O89),2) -> 11.02 | R89: 0.08 | S89: =ROUND((R89*M89)/12,2) -> 1.96 | T89: =S89+Q89 -> 12.98 | W89: =T89*10 -> 129.8
A92: Cotação | B92: GPS de mão | O92: Cotação 1 | P92: Cotação 2 | Q92: Cotação 3 | R92: Cotação 4 | S92: Cotação 5 | T92: Cotação 6
O93: 1999 | P93: 3123.87 | Q93: 3348 | R93: 3359 | S93: 2621.91
S96: CV= | T96: =STDEVA(O93:T93)/AVERAGE(O93:T93) -> 0.2010080002
S97: Média: | T97: =AVERAGE(O93:T93) -> 2890.356
S98: Mediana: | T98: =MEDIAN(O93:T93) -> 3123.87
S99: Menor: | T99: =SMALL(T97:T98,1) -> 2890.356
M101: VALOR DE AQUISIÇÃO | N101: VALOR DA DEPRECIAÇÃO | R101: MANUTENÇÃO | T101: VALOR MENSAL TOTAL (R$)
N102: Tempo de Utilização (Anos) | O102: Meses p/Ano de Uso | P102: Percentual Residual (%) | Q102: Depreciação Mensal - R$ | R102: Percentual Anual (%) | S102: Valor Mensal (R$)
M103: =T99 -> 2890.356 | N103: 2 | O103: 12 | P103: 0.1 | Q103: =ROUND((M103*(100%-P103))/(N103*O103),2) -> 108.39 | R103: 0.08 | S103: =ROUND((R103*M103)/12,2) -> 19.27 | T103: =S103+Q103 -> 127.66 | W103: =T103*10 -> 1276.6
A106: Cotação | B106: Câmera de inspeção endoscópica
O111: Cotação 1 | P111: Cotação 2 | Q111: Cotação 3 | R111: Cotação 4 | S111: Cotação 5 | T111: Cotação 6
O112: 4230 | P112: 3453.52 | Q112: 3640 | R112: 4800.54 | S112: 4230
S115: CV= | T115: =STDEVA(O112:T112)/AVERAGE(O112:T112) -> 0.1317062365
S116: Média: | T116: =AVERAGE(O112:T112) -> 4070.812
S117: Mediana: | T117: =MEDIAN(O112:T112) -> 4230
S118: Menor: | T118: =SMALL(T116:T117,1) -> 4070.812
M121: VALOR DE AQUISIÇÃO | N121: VALOR DA DEPRECIAÇÃO | R121: MANUTENÇÃO | T121: VALOR MENSAL TOTAL (R$)
N122: Tempo de Utilização (Anos) | O122: Meses p/Ano de Uso | P122: Percentual Residual (%) | Q122: Depreciação Mensal - R$ | R122: Percentual Anual (%) | S122: Valor Mensal (R$)
M123: =T118 -> 4070.812 | N123: 2 | O123: 12 | P123: 0.1 | Q123: =ROUND((M123*(100%-P123))/(N123*O123),2) -> 152.66 | R123: 0.08 | S123: =ROUND((R123*M123)/12,2) -> 27.14 | T123: =S123+Q123 -> 179.8 | W123: =T123*10 -> 1798
A126: Cotação | B126: Sensor de umidade
O129: Cotação 1 | P129: Cotação 2 | Q129: Cotação 3 | R129: Cotação 4 | S129: Cotação 5 | T129: Cotação 6
P130: 494.26 | Q130: 673.45 | R130: 714 | S130: 668.71
O131: 177.61
S133: CV= | T133: =STDEVA(O130:T130)/AVERAGE(O130:T130) -> 0.1532310021
S134: Média: | T134: =AVERAGE(O130:T130) -> 637.605
S135: Mediana: | T135: =MEDIAN(O130:T130) -> 671.08
S136: Menor: | T136: =SMALL(T134:T135,1) -> 637.605
M138: VALOR DE AQUISIÇÃO | N138: VALOR DA DEPRECIAÇÃO | R138: MANUTENÇÃO | T138: VALOR MENSAL TOTAL (R$)
N139: Tempo de Utilização (Anos) | O139: Meses p/Ano de Uso | P139: Percentual Residual (%) | Q139: Depreciação Mensal - R$ | R139: Percentual Anual (%) | S139: Valor Mensal (R$)
M140: =T136 -> 637.605 | N140: 2 | O140: 12 | P140: 0.1 | Q140: =ROUND((M140*(100%-P140))/(N140*O140),2) -> 23.91 | R140: 0.08 | S140: =ROUND((R140*M140)/12,2) -> 4.25 | T140: =S140+Q140 -> 28.16 | W140: =T140*10 -> 281.6
A144: Cotação | B144: fissurômetro | O144: Cotação 1 | P144: Cotação 2 | Q144: Cotação 3 | R144: Cotação 4 | S144: Cotação 5 | T144: Cotação 6
O145: 12.98 | P145: 13.16 | Q145: 12.32 | R145: 14.8 | S145: 20.24 | T145: 21.61
S148: CV= | T148: =STDEVA(O145:T145)/AVERAGE(O145:T145) -> 0.2546723457
S149: Média: | T149: =AVERAGE(O145:T145) -> 15.85166667
S150: Mediana: | T150: =MEDIAN(O145:T145) -> 13.98
S151: Menor: | T151: =SMALL(T149:T150,1) -> 13.98
M157: VALOR DE AQUISIÇÃO | N157: VALOR DA DEPRECIAÇÃO | R157: MANUTENÇÃO | T157: VALOR MENSAL TOTAL (R$)
N158: Tempo de Utilização (Anos) | O158: Meses p/Ano de Uso | P158: Percentual Residual (%) | Q158: Depreciação Mensal - R$ | R158: Percentual Anual (%) | S158: Valor Mensal (R$)
M159: =T151 -> 13.98 | N159: 2 | O159: 12 | P159: 0.1 | Q159: =ROUND((M159*(100%-P159))/(N159*O159),2) -> 0.52 | R159: 0.08 | S159: =ROUND((R159*M159)/12,2) -> 0.09 | T159: =S159+Q159 -> 0.61
A162: Cotação | B162: Camera fotografica digital | O162: Cotação 1 | P162: Cotação 2 | Q162: Cotação 3 | R162: Cotação 4 | S162: Cotação 5 | T162: Cotação 6
O163: 1804.05 | P163: 2336.15 | Q163: 1471.55 | R163: 1430 | S163: 1779 | T163: 2399.9
S166: CV= | T166: =STDEVA(O163:T163)/AVERAGE(O163:T163) -> 0.2221643676
S167: Média: | T167: =AVERAGE(O163:T163) -> 1870.108333
S168: Mediana: | T168: =MEDIAN(O163:T163) -> 1791.525
S169: Menor: | T169: =SMALL(T167:T168,1) -> 1791.525
M175: VALOR DE AQUISIÇÃO | N175: VALOR DA DEPRECIAÇÃO | R175: MANUTENÇÃO | T175: VALOR MENSAL TOTAL (R$)
N176: Tempo de Utilização (Anos) | O176: Meses p/Ano de Uso | P176: Percentual Residual (%) | Q176: Depreciação Mensal - R$ | R176: Percentual Anual (%) | S176: Valor Mensal (R$)
M177: =T169 -> 1791.525 | N177: 2 | O177: 12 | P177: 0.1 | Q177: =ROUND((M177*(100%-P177))/(N177*O177),2) -> 67.18 | R177: 0.08 | S177: =ROUND((R177*M177)/12,2) -> 11.94 | T177: =S177+Q177 -> 79.12
A180: Cotação | B180: Trena metálica | O180: Cotação 1 | P180: Cotação 2 | Q180: Cotação 3 | R180: Cotação 4 | S180: Cotação 5 | T180: Cotação 6
O181: 205.8 | P181: 199 | Q181: 172.9 | R181: 128.9 | S181: 146
S184: CV= | T184: =STDEVA(O181:T181)/AVERAGE(O181:T181) -> 0.1943880551
S185: Média: | T185: =AVERAGE(O181:T181) -> 170.52
S186: Mediana: | T186: =MEDIAN(O181:T181) -> 172.9
S187: Menor: | T187: =SMALL(T185:T186,1) -> 170.52
M193: VALOR DE AQUISIÇÃO | N193: VALOR DA DEPRECIAÇÃO | R193: MANUTENÇÃO | T193: VALOR MENSAL TOTAL (R$)
N194: Tempo de Utilização (Anos) | O194: Meses p/Ano de Uso | P194: Percentual Residual (%) | Q194: Depreciação Mensal - R$ | R194: Percentual Anual (%) | S194: Valor Mensal (R$)
M195: =T187 -> 170.52 | N195: 2 | O195: 12 | P195: 0.1 | Q195: =ROUND((M195*(100%-P195))/(N195*O195),2) -> 6.39 | R195: 0 | S195: =ROUND((R195*M195)/12,2) -> 0 | T195: =S195+Q195 -> 6.39
A198: Cotação | B198: Lanternas | O198: Cotação 1 | P198: Cotação 2 | Q198: Cotação 3 | R198: Cotação 4 | S198: Cotação 5 | T198: Cotação 6
O199: 238 | P199: 348 | Q199: 239 | R199: 253.76 | S199: 287.99
S202: CV= | T202: =STDEVA(O199:T199)/AVERAGE(O199:T199) -> 0.1696316349
S203: Média: | T203: =AVERAGE(O199:T199) -> 273.35
S204: Mediana: | T204: =MEDIAN(O199:T199) -> 253.76
S205: Menor: | T205: =SMALL(T203:T204,1) -> 253.76
M211: VALOR DE AQUISIÇÃO | N211: VALOR DA DEPRECIAÇÃO | R211: MANUTENÇÃO | T211: VALOR MENSAL TOTAL (R$)
N212: Tempo de Utilização (Anos) | O212: Meses p/Ano de Uso | P212: Percentual Residual (%) | Q212: Depreciação Mensal - R$ | R212: Percentual Anual (%) | S212: Valor Mensal (R$)
M213: =T205 -> 253.76 | N213: 2 | O213: 12 | P213: 0.1 | Q213: =ROUND((M213*(100%-P213))/(N213*O213),2) -> 9.52 | R213: 0 | S213: =ROUND((R213*M213)/12,2) -> 0 | T213: =S213+Q213 -> 9.52
A216: Cotação | B216: Kit detector de vazamentos (Lanterna UV+contraste) | O216: Cotação 1 | P216: Cotação 2 | Q216: Cotação 3 | R216: Cotação 4 | S216: Cotação 5 | T216: Cotação 6
O217: 460.74 | Q217: 590 | R217: 411.6
P218: 711.9
S219: CV= | T219: =STDEVA(O217:T217)/AVERAGE(O217:T217) -> 0.1890457891
S220: Média: | T220: =AVERAGE(O217:T217) -> 487.4466667
S221: Mediana: | T221: =MEDIAN(O217:T217) -> 460.74
S222: Menor: | T222: =SMALL(T220:T221,1) -> 460.74
O225: Cotação 1 | P225: Cotação 2 | Q225: Cotação 3 | R225: Cotação 4 | S225: Cotação 5 | T225: Cotação 6
P226: 35.9 | Q226: 47.77 | R226: 61.98 | S226: 63.18
O227: 29.8
S228: CV= | T228: =STDEVA(O226:T226)/AVERAGE(O226:T226) -> 0.2476578558
S229: Média: | T229: =AVERAGE(O226:T226) -> 52.2075
S230: Mediana: | T230: =MEDIAN(O226:T226) -> 54.875
S231: Menor: | T231: =SMALL(T229:T230,1) -> 52.2075
M234: VALOR DE AQUISIÇÃO | N234: VALOR DA DEPRECIAÇÃO | R234: MANUTENÇÃO | T234: VALOR MENSAL TOTAL (R$)
N235: Tempo de Utilização (Anos) | O235: Meses p/Ano de Uso | P235: Percentual Residual (%) | Q235: Depreciação Mensal - R$ | R235: Percentual Anual (%) | S235: Valor Mensal (R$)
M236: =T231 -> 52.2075 | N236: 2 | O236: 12 | P236: 0.1 | Q236: =ROUND((M236*(100%-P236))/(N236*O236),2) -> 1.96 | R236: 0 | S236: =ROUND((R236*M236)/12,2) -> 0 | T236: =S236+Q236 -> 1.96
S238: VALOR TOTAL DO KIT
S239: =T236+T222 -> 462.7

Sheet Memorial
B2: Código SNISB | C2: Nome da Barragem | D2: Tipo de Material | E2: UF | F2: MUNICÍPIO DA BARRAGEM | G2: Latitude | H2: Longitude | I2: DISTÂNCIA (KM) BARRAGEM - AEROPORTO | J2: Municipio Aeroporto | K2: DISTÂNCIA (KM) Ida e Volta da barragem ao aeroporto | L2: TEMPO (DIAS) deslocamento+ inspeção | M2: Tempo (dias) Relatório (ISR) | N2: Tempo (dias) Relatório (ISE) | O2: Capacidade_hm_ | P2: Comprimento_Coroamento_m | Q2: Tipo_de_Material | R2: Abragência Codevasf | V2: AEROPORTOS
B3: 18079 | C3: Santa Maria | D3: Terra | E3: BA | F3: PEDRO ALEXANDRE | G3: -10.01944 | H3: -37.84444 | I3: 188 | J3: Aracaju/SE | K3: =I3*2 -> 376 | L3: 2 | M3: 3 | N3: 4 | O3: 0.42 | P3: 215.68 | Q3: Terra | R3: 15ª Superintendência Regional | V3: Juazeiro do Norte: (-7.2189,-39.2701),
B4: 20821 | C4: P.A. Lagoa das Pedras - Barragem 01 | D4: Terra | E4: GO | F4: CABECEIRAS | G4: -15.87072 | H4: -46.95436 | I4: 157 | J4: Brasília | K4: 314 | L4: =L$3 -> 2 | M4: 3 | N4: 4 | O4: 0.756 | P4: 70 | Q4: Sem Informação | R4: 10ª Superintendência Regional | V4: Campina Grande: (-7.2699,-35.8964),
B5: 27910 | C5: Barragem do Libório | D5: Concreto | E5: GO | F5: ÁGUA FRIA DE GOIÁS | G5: -14.97231 | H5: -47.61861 | I5: 137 | J5: Brasília | K5: 274 | L5: =L$3 -> 2 | M5: 3 | N5: 4 | O5: 0.121 | P5: 246 | Q5: Terra | R5: 13ª Superintendência Regional | V5: Natal: (-5.9114,-35.2477),
B6: 23898 | C6: BARRAGEM DA CAATINGA | D6: Terra Homogênea | E6: MG | F6: BOCAIÚVA | G6: -17.56694 | H6: -43.90631 | I6: 119 | J6: Montes Claros | K6: 238 | L6: 2 | M6: 3 | N6: 4 | O6: 23 | Q6: Sem Informação | R6: 13ª Superintendência Regional | V6: Mossoró: (-5.2019,-37.3643),
B7: 19994 | C7: PDS Bordolândia | D7: CCR | E7: MT | F7: BOM JESUS DO ARAGUAIA | G7: -12.08572 | H7: -51.62603 | I7: 868 | J7: Cuiabá/MT | K7: 1736 | L7: 2 | M7: 3 | N7: 4 | O7: 2.515 | P7: 478 | Q7: Terra | R7: 13ª Superintendência Regional | V7: Petrolina: (-9.3624,-40.5691),
B8: 7367 | C8: Santo Antônio I | D8: Terra | E8: PB | F8: CAJAZEIRAS | G8: -6.89411 | H8: -38.46434 | I8: 135 | J8: Juazeiro do Norte/CE | K8: 270 | L8: 2 | M8: 3 | N8: 4 | O8: 0.839 | P8: 464.35 | Q8: Terra | R8: 13ª Superintendência Regional | V8: Teresina: (-5.0607,-42.8235),
B9: 7410 | C9: Floresta | D9: Terra | E9: PB | F9: SOUSA | G9: -6.84949 | H9: -38.15604 | I9: 188 | J9: Juazeiro do Norte/CE | K9: 376 | L9: 2 | M9: 3 | N9: 4 | O9: 1.516 | P9: 201.07 | Q9: Terra | R9: 13ª Superintendência Regional | V9: Vilhena: (-12.6944,-60.0983),
B10: 7465 | C10: Fazenda | D10: Terra | E10: PB | F10: CONDADO | G10: -6.91175 | H10: -37.66849 | I10: 245 | J10: Juazeiro do Norte/CE | K10: 490 | L10: 2 | M10: 3 | N10: 4 | O10: 0.366 | P10: 291.76 | Q10: Terra | R10: 13ª Superintendência Regional | V10: Montes Claros: (-16.7069,-43.8189)
B11: 7520 | C11: Açude Velho | D11: Terra | E11: PB | F11: SANTA TERESINHA | G11: -7.1423 | H11: -37.44196 | I11: 264 | J11: Juazeiro do Norte/CE | K11: 528 | L11: 2 | M11: 3 | N11: 4 | O11: 0.942 | P11: 151.08 | Q11: Terra | R11: 12ª Superintendência Regional | V11: Recife: -8.1265 , -34.9236
B12: 7534 | C12: Jacobina | D12: Terra | E12: PB | F12: SÃO JOSÉ DE ESPINHARAS | G12: -6.92402 | H12: -37.38812 | I12: 281 | J12: Juazeiro do Norte/CE | K12: 562 | L12: 2 | M12: 3 | N12: 4 | O12: 0.481 | P12: 438.47 | Q12: Terra | R12: 13ª Superintendência Regional | V12: Petrolina: -9.3624 , -40.5691
B13: 7536 | C13: Da Lama | D13: Terra | E13: PB | F13: SÃO JOSÉ DE ESPINHARAS | G13: -6.93367 | H13: -37.3862 | I13: 279 | J13: Juazeiro do Norte/CE | K13: 558 | L13: 2 | M13: 3 | N13: 4 | O13: 1.016 | P13: 328.32 | Q13: Terra | R13: 13ª Superintendência Regional
B14: 7630 | C14: Várzea | D14: Terra | E14: PB | F14: VÁRZEA | G14: -6.76306 | H14: -37.04722 | I14: 312 | J14: João Pessoa/PB | K14: 624 | L14: 2 | M14: 3 | N14: 4 | O14: 3.423 | P14: 672.14 | Q14: Terra | R14: 12ª Superintendência Regional
B15: 7672 | C15: Juvêncio | D15: SI | E15: PB | F15: CAMALAÚ | G15: -7.90924 | H15: -36.84427 | I15: 295 | J15: João Pessoa/PB | K15: 590 | L15: 2 | M15: 3 | N15: 4 | O15: 2.177 | P15: 206.31 | Q15: Terra | R15: 13ª Superintendência Regional
B16: 7774 | C16: Bonfim | D16: Terra | E16: PB | F16: CAMPINA GRANDE | G16: -7.25406 | H16: -36.04547 | I16: 146 | J16: João Pessoa/PB | K16: 292 | L16: 2 | M16: 3 | N16: 4 | O16: 0.925 | P16: 306.17 | Q16: Terra | R16: 13ª Superintendência Regional
B17: 7776 | C17: Quixaba | D17: SI | E17: PB | F17: CAMPINA GRANDE | G17: -7.35463 | H17: -36.04226 | I17: 151 | J17: João Pessoa/PB | K17: 302 | L17: 2 | M17: 3 | N17: 4 | O17: 3.089 | P17: 379.99 | Q17: Terra | R17: 13ª Superintendência Regional
B18: 7837 | C18: Ipanema | D18: Terra | E18: PB | F18: RIACHÃO DO POÇO | G18: -7.1435 | H18: -35.30595 | I18: 52.9 | J18: João Pessoa/PB | K18: 105.8 | L18: 2 | M18: 3 | N18: 4 | O18: 1.061 | P18: 337.43 | Q18: Terra | R18: 13ª Superintendência Regional
B19: 7859 | C19: Itanhém | D19: Terra | E19: PB | F19: SAPÉ | G19: -7.08066 | H19: -35.13548 | I19: 35.5 | J19: João Pessoa/PB | K19: 71 | L19: 2 | M19: 3 | N19: 4 | O19: 1.533 | P19: 375.98 | Q19: Terra | R19: 7ª Superintendência Regional
B20: 18250 | C20: Timbaúba | D20: SI | E20: PB | F20: SOSSÊGO | G20: -6.78194 | H20: -36.22472 | I20: 215 | J20: João Pessoa/PB | K20: 430 | L20: 2 | M20: 3 | N20: 4 | O20: 0.453 | P20: 146.04 | Q20: Terra | R20: 6ª Superintendência Regional
B21: 30959 | C21: Jusante Timbaúba (Código SRE 183) | D21: Terra | E21: PB | F21: SOSSÊGO | G21: -6.77944 | H21: -36.22528 | I21: 215 | J21: João Pessoa/PB | K21: 430 | L21: 2 | M21: 3 | N21: 4 | Q21: Sem Informação | R21: 12ª Superintendência Regional
B22: 145 | C22: Assentamento Boi Branco | D22: Terra | E22: PE | F22: IATI | G22: -8.92125 | H22: -36.87844 | I22: 286 | J22: Recife/PE | K22: 572 | L22: 2 | M22: 3 | N22: 4 | O22: 0.53 | P22: 104 | Q22: Terra | R22: 13ª Superintendência Regional
B23: 20956 | C23: PA Nossa Sra Aparecida | D23: Terra | E23: PE | F23: MANARI | G23: -8.95194 | H23: -37.68553 | I23: 362 | J23: Recife/PE | K23: 724 | L23: =L$3 -> 2 | M23: 3 | N23: 4 | O23: 0.047 | Q23: Sem Informação | R23: 12ª Superintendência Regional
B24: 23903 | C24: Umburanas | D24: Terra | E24: PE | F24: CUSTÓDIA | G24: -8.13436 | H24: -37.67089 | I24: 342 | J24: Recife/PE | K24: 684 | L24: 2 | M24: 3 | N24: 4 | O24: 1.306 | P24: 162 | Q24: Terra | R24: 12ª Superintendência Regional
B25: 17984 | C25: Açude Várzea | D25: Terra | E25: PI | F25: CASTELO DO PIAUÍ | G25: -5.309 | H25: -41.446 | I25: 206 | J25: Teresina/PI | K25: 412 | L25: 2 | M25: 3 | N25: 4 | Q25: Terra | R25: 12ª Superintendência Regional
B26: 7611 | C26: ESTRELA DO OESTE | D26: Terra | E26: RN | F26: PARAÚ | G26: -5.71505 | H26: -37.11219 | I26: 237 | J26: Natal/RN | K26: 474 | L26: 2 | M26: 3 | N26: 4 | O26: 0.343 | P26: 182.81 | Q26: Terra | R26: SEDE
B27: 7769 | C27: SÃO PEDRO I | D27: Terra | E27: RN | F27: PEDRA PRETA | G27: -5.56675 | H27: -36.07391 | I27: 149 | J27: Natal/RN | K27: 298 | L27: 2 | M27: 3 | N27: 4 | O27: 0.355 | P27: 309.27 | Q27: Terra | R27: 12ª Superintendência Regional
B28: 18176 | C28: JOBEAR | D28: Terra | E28: RN | F28: SÃO RAFAEL | G28: -5.90565 | H28: -36.85861 | I28: 301 | J28: Natal/RN | K28: 602 | L28: 2 | M28: 3 | N28: 4 | O28: 0.3 | P28: 0 | Q28: Terra | R28: 9ª Superintendência Regional
B29: 19069 | C29: Santa Maria | D29: Terra | E29: RN | F29: AFONSO BEZERRA | G29: -5.49028 | H29: -36.64306 | I29: 189 | J29: Natal/RN | K29: 378 | L29: 2 | M29: 3 | N29: 4 | O29: 0.375 | Q29: Sem Informação | R29: 3ª Superintendência Regional
B30: 19243 | C30: PALESTINA 2 | D30: - | E30: RN | F30: SANTANA DO MATOS | G30: -5.94028 | H30: -36.79194 | I30: 205 | J30: Natal/RN | K30: 410 | L30: 2 | M30: 3 | N30: 4 | O30: 0.2 | P30: 130 | Q30: Terra | R30: 4ª Superintendência Regional
B31: 19244 | C31: Saquinho | D31: Terra | E31: RN | F31: SANTANA DO MATOS | G31: -5.82417 | H31: -36.40222 | I31: 175 | J31: Natal/RN | K31: 350 | L31: 2 | M31: 3 | N31: 4 | O31: 0.2 | P31: 262 | Q31: Terra | R31: 12ª Superintendência Regional
B32: 20189 | C32: ARAPUÁ | D32: Terra | E32: RN | F32: SANTANA DO MATOS | G32: -5.95189 | H32: -36.77114 | I32: 203 | J32: Natal/RN | K32: 406 | L32: 2 | M32: 3 | N32: 4 | O32: 0.34 | P32: 142.16 | Q32: Terra | R32: 12ª Superintendência Regional
B33: 22181 | C33: Augustinho | D33: Terra | E33: RN | F33: BENTO FERNANDES | G33: -5.67549 | H33: -35.81334 | I33: 87 | J33: Natal/RN | K33: 174 | L33: 2 | M33: 3 | N33: 4 | Q33: Sem Informação | R33: 12ª Superintendência Regional
B34: 22193 | C34: ESPINHEIRO 1 | D34: Terra | E34: RN | F34: BENTO FERNANDES | G34: -5.70556 | H34: -35.83194 | I34: 84 | J34: Natal/RN | K34: 168 | L34: 2 | M34: 3 | N34: 4 | Q34: Sem Informação | R34: 1ª Superintendência Regional
B35: 22252 | C35: 3 CORAÇÕES DA SERRA | D35: Terra | E35: RN | F35: SERRA CAIADA | G35: -6.11619 | H35: -35.74895 | I35: 77.4 | J35: Natal/RN | K35: 154.8 | L35: 2 | M35: 3 | N35: 4 | Q35: Sem Informação | R35: 3ª Superintendência Regional
B36: 21017 | C36: PA São Cristovão | D36: Terra | E36: SE | F36: CARIRA | G36: -10.20303 | H36: -37.70317 | I36: 139 | J36: Aracaju/SE | K36: 278 | L36: 2 | M36: 3 | N36: 4 | O36: 0 | Q36: Sem Informação | R36: 9ª Superintendência Regional
B37: 5262 | C37: PA DESTILARIA I | D37: SI | E37: TO | F37: PALMEIRAS DO TOCANTINS | G37: -6.63258 | H37: -47.78331 | I37: 498 | J37: Palmas/TO | K37: 996 | L37: 2 | M37: 3 | N37: 4 | O37: 0.096 | P37: 245 | Q37: Terra | R37: 10ª Superintendência Regional
B38: 30616 | C38: PA DESTILARIA II | D38: Terra | E38: TO | F38: PALMEIRAS DO TOCANTINS | G38: -6.62475 | H38: -47.78267 | I38: 491 | J38: Palmas/TO | K38: 982 | L38: 2 | M38: 3 | N38: 4 | O38: 0.045 | P38: 181 | Q38: Terra | R38: 13ª Superintendência Regional
B39: 31056 | C39: PA 1° DE MAIO | D39: Terra | E39: TO | F39: CASEARA | G39: -9.54181 | H39: -49.77914 | I39: 260 | J39: Palmas/TO | K39: 520 | L39: =L$3 -> 2 | M39: 3 | N39: 4 | O39: 1.005 | P39: 471 | Q39: Terra | R39: 10ª Superintendência Regional
B40: 32235 | C40: P.A BOA SORTE | D40: SI | E40: TO | F40: CRIXÁS DO TOCANTINS | G40: -11.22215 | H40: -49.32026 | I40: 221 | J40: Palmas/TO | K40: 442 | L40: =L$3 -> 2 | M40: 3 | N40: 4 | O40: 0.09 | P40: 518 | Q40: Terra | R40: 10ª Superintendência Regional
B41: 33991 | C41: BARRAGEM PA DA MATA | D41: Terra | E41: TO | F41: ARAGUACEMA | G41: -9.05275 | H41: -49.49661 | I41: 268 | J41: Palmas/TO | K41: 536 | L41: =L$3 -> 2 | M41: 3 | N41: 4 | O41: 0.568 | P41: 185 | Q41: Terra | R41: 10ª Superintendência Regional
H42: Média | I42: =AVERAGE(I3:I41) -> 232.4051282 | K42: =AVERAGE(K3:K41) -> 464.8102564 | L42: =AVERAGE(L3:L41) -> 2 | M42: =AVERAGE(M3:M41) -> 3 | N42: =AVERAGE(N3:N41) -> 4

Sheet CPU-VEICULO_PickUp
A5: Composição de Preços de Locação de Veículo tipo pick-up
B6: Data de atualização: | C6: 2026-02-11 | E6: CV | F6: Média | G6: Mediana | K6: CV | L6: Média | M6: Mediana | V6: CV | W6: Média | X6: Mediana
A7: CODEVASF | E7: =_xlfn.STDEV.S(E10:H10)/AVERAGE(E10:H10) -> 0.08811025869 | F7: =AVERAGE(E10:H10) -> 209327.5 | G7: =MEDIAN(E10:H10) -> 212401 | K7: =_xlfn.STDEV.S(L9:S9)/AVERAGE(L9:S9) -> 0.1994963157 | L7: =AVERAGE(L9:S9) -> 38.95375 | M7: =MEDIAN(L9:S9) -> 38.935 | V7: =_xlfn.STDEV.S(W9:AD9)/AVERAGE(W9:AD9) -> 0.2938004244 | W7: =AVERAGE(W9:AD9) -> 584.03875 | X7: =MEDIAN(W9:AD9) -> 513.99
A8: OBS: Preço sem BDI e sem motorista BDI= | E8: Preço FIPE | J8: PRODUTO | K8: MENOR (MÉDIA, MEDIANA) | L8: COT. 1 | M8: COT. 2 | N8: COT. 3 | O8: COT. 4 | P8: COT. 5 | Q8: COT. 6 | R8: COT. 7 | S8: COT. 8 | U8: PRODUTO | V8: MENOR (MÉDIA, MEDIANA) | W8: COT. 1 | X8: COT. 2 | Y8: COT. 3 | Z8: COT. 4 | AA8: COT. 5 | AB8: COT. 6 | AC8: COT. 7 | AD8: COT. 8
A9: Veículo tipo pick-up, cabine dupla - 2.0 16V 4x4 diesel Aut. | E9: Toro Volcano 2.0 16V 4x4 TB Diesel Aut. | F9: Toro Volcano 2.2 16V 4x4 TB Diesel Aut. | G9: Toro Ranch 2.2 16V 4x4 TB Diesel Aut. | H9: RAMPAGE BIG HORN 2.2 TB CD 4X4 Die Aut. | J9: LUBRIFICANTE 5W30 | K9: =SMALL(L7:M7,1) -> 38.935 | L9: 26.9 | M9: 38.97 | N9: 43.65 | O9: 47.12 | P9: 33.43 | Q9: 32.76 | R9: 49.9 | S9: 38.9 | U9: Pneu 225/65 R17 | V9: =SMALL(W7:X7,1) -> 513.99 | W9: 516.8 | X9: 896.8 | Y9: 778.91 | Z9: 437.4 | AA9: 619.2 | AB9: 406.22 | AC9: 505.8 | AD9: 511.18
B10: Custo Mensal (R$): | C10: =C51 -> 10103.54672 | E10: 187078 | F10: 201281 | G10: 223521 | H10: 225430
B11: Custo Diária (R$): | C11: =C10/22 -> 459.2521235
B12: Custo Horário (R$): | C12: =C10/176 -> 57.40651544
A13: A | B13: Depreciação mensal do equipamento
A14: A1 | B14: Preço de Aquisição | C14: =SMALL(F7:G7,1) -> 209327.5
A15: A2 | B15: Tempo previsto de vida útil (meses) | C15: 36
A16: A3 | B16: Previsão de recup. Na venda do bem usado | C16: 0.7
A17: A4 | B17: Custo mensal [A1-(A3xA1)]/A2 | C17: =(C14-(C16*C14))/C15 -> 1744.395833
A18: B | B18: Juros pelo Capital empregado
A19: B1 | B19: Taxa mensal de Juros * | C19: =POWER(1+C56,1/12)-1 -> 0.01164157501
A20: B2 | B20: Juros s/depreciação/aluguel (B1xA4) | C20: =C19*C17 -> 20.30751494
A21: C | B21: Conservação e manutenção ** | C21: 0.75
A22: C1 | B22: Taxa de gastos s/a deprec. Inc. seguros (%) | C22: =C21 -> 0.75 | AF22: PREÇO DO DIESEL | AG22: 6.12
A23: C2 | B23: Incidência mensal (C1xA4) | C23: =C22*C17 -> 1308.296875 | AF23: https://precos.petrobras.com.br/sele%C3%A7%C3%A3o-de-estados-diesel
A24: D | B24: Combustível
A25: D1 | B25: Média mensal de quilômetro por veículo | C25: =Memorial!K42*22 -> 10225.82564
A26: D2 | B26: Preço do litro de combustível | C26: =AG22 -> 6.12
A27: D3 | B27: Quilômetros rodados com um litro combustivel | C27: 10
A28: D4 | B28: Combustivel (D1/D3)*D2 | C28: =(C25/C27)*C26 -> 6258.205292
A29: E | B29: Lubrificantes
A30: E1 | B30: Quilometragem do Contrato (D1*12) | C30: =C25*36 -> 368129.7231
A31: E2 | B31: Franquia por troca de óleo (km) | C31: 10000
A32: E3 | B32: Preço do litro de óleo | C32: =K9 -> 38.935
A33: E4 | B33: Quantidade de litros de óleo por troca | C33: 5
A34: E5 | B34: Quantidade de dias do Contrato | C34: =365*3 -> 1095
A35: E6 | B35: Lubrificantes E = (E1*E3*E4*30)/E2*E5 | C35: =(C30*C32*C33*30)/(C31*C34) -> 196.3442571
A36: F | B36: Pneus
A37: F1 | B37: Quilometragem do Contrato | C37: =C30 -> 368129.7231
A38: F2 | B38: Vida do Pneu em quilômetros | C38: 45000
A39: F3 | B39: Quantidade de pneus | C39: 5
A40: F4 | B40: Preço do Pneu | C40: =V9 -> 513.99
A41: F5 | B41: Quantidade de dias do contrato | C41: =C34 -> 1095
A42: F6 | B42: Pneus = (F1*F3*F4*30)/(F2*F5) | C42: =(C37*C39*C40*30)/(C38*C41) -> 575.9969448
A43: G | B43: Motorista
A44: G1 | B44: Salário com encargos sociais | C44: 0
A45: H | B45: Custo Mensal
B46: Sem Motorista (A4+B2+C2+D4+E6+F6) | C46: =C17+C20+C23+C28+C35+C42 -> 10103.54672
B47: Com Motorista (A4+B2+C2+D4+E6+F6+G1) | C47: =C17+C20+C23+C28+C35+C42+C44 -> 10103.54672
A48: I | B48: Custo Direto p/ km Rodado
B49: Sem Motorista | C49: =C46/C25 -> 0.9880421466
B50: Com Motorista | C50: =C47/C25 -> 0.9880421466
A51: J | B51: Preço cobrado sem BDI | C51: =C46*(1+C8) -> 10103.54672
A52: J1 | B52: Sem Motorista | C52: =C51 -> 10103.54672
A53: J2 | B53: Com Motorista | C53: =C47 -> 10103.54672 | I53: https://www.google.com/search?q=lubrificante+5w30+1l&sa=X&sca_esv=c77f5342bf7e367a&tbm=shop&ei=e0uKZ-DcDNKp5OUPkOKj6QY&ved=0ahUKEwighoOy3_yKAxXSFLkGHRDxKG0Q4dUDCAg&uact=5&oq=lubrificante+5w30+1l&gs_lp=Egtwcm9kdWN0cy1jYyIUbHVicmlmaWNhbnRlIDV3MzAgMWxIgQ9Q4AlY8Q1wAHgAkAEAmAFroAGgA6oBAzEuM7gBA8gBAPgBAZgCAqAC0gHCAgUQABiABMICBhAAGAcYHsICBhAAGAgYHsICBhAAGBYYHpgDAIgGAZIHAzEuMaAHxQU&sclient=products-cc | T53: https://www.google.com/search?q=pneu+225%2F65+R17&sa=X&biw=1600&bih=757&tbm=shop&sxsrf=AJOqlzWsb-d4PS1_OUOEhKmRc2RbtSg3RQ%3A1677092596279&ei=9Gb2Y9K5ENTa5OUPvLykGA&ved=0ahUKEwjSg9Pj6Kn9AhVULbkGHTweCQMQ4dUDCAg&uact=5&oq=pneu+225%2F65+R17&gs_lcp=Cgtwcm9kdWN0cy1jYxADMgsIABCABBCxAxCDATIFCAAQgAQyBwgAEIAEEAoyBwgAEIAEEAoyBwgAEIAEEAoyBwgAEIAEEAoyBwgAEIAEEAoyBQgAEIAEMgcIABCABBAKMgcIABCABBAKOgQIIxAnOgQIABBDSgQIQRgAUABYoTJgqUBoAHAAeACAAdIFiAGUKZIBDTAuMi42LjIuMi4yLjGYAQCgAQHAAQE&sclient=products-cc
B55: OBSERVAÇÕES:
A56: * | B56: Calculado com base na taxa SELIC JANEIRO/2026: | C56: 0.149
B57: Taxa de Juros Selic — Português (Brasil) (www.gov.br)
A58: ** | B58: Conservação e manutenção - é calculado com o uso de um coeficiente multiplicador "k", conforme tabela abaixo, sobre a
B59: depreciação mensal do equipamento (Item A da planilha de composição de preços). Os valores de K são fornecidos por
B60: fabricantes.
B61: Metodologia conforme a bibliografia "Como Preparar Orçamentos de Obras", 3 edição, Aldo Dórea Mattos, 2019.

Sheet CPU HOSPEDAGEM
C1: =C15+C17 -> 91.77121212
B2: Engenharia Consultiva da Codevasf
B3: CPU - HOSPEDAGEM EQUIPE DE CAMPO (4 PESSOAS/MÊS) | D3: Código/Referencia
B4: ALUGUEL | C4: 3074.56 | D4: F020003334/EMBASA insumo | E4: ok
B5: Aquisição de Mobiliário | C5: =41.81*C16 -> 167.24 | D5: B8954/DNIT
B6: Material de limpeza e diarista | C6: =131.67+(123*8) -> 1115.67 | D6: 10563/ORSE - E200300131/EMBASA | E6: OK
B7: manutenção da casa alugada - Serviços Gerais/Vigia | C7: 2771.31 | D7: 41096/SINAPI | E7: OK
B8: Energia | C8: 180 | D8: 10555/ORSE | E8: OK
B9: Água | C9: 394.99 | D9: 10554/ORSE | E9: OK
B10: telefone/Internet | C10: =154.99+89 -> 243.99 | D10: 10557/10558/ORSE | E10: OK
B11: IPTU (mês) | C11: =(C4*0.5)/12 -> 128.1066667
B13: Custo Mensal: | C13: =SUM(C4:C12) -> 8075.866667
B14: Custo Mensal por pessoa: | C14: =C13/C16 -> 2018.966667
B15: Custo diário por pessoa: | C15: =C14/22 -> 91.77121212
B16: número de pessoas: | C16: 4
B17: Alimentação: | C17: 0 | D17: Tabela Diária Codevasf 2025
B19: Diária Total (alimentação + hospedagem): | C19: 274.47 | D19: Tabela da Codevasf

Sheet Lista com todas as barragens IN (hidden)
B2: Código SNISB | C2: Nome da Barragem | D2: Tipo de Material | E2: UF | F2: MUNICÍPIO DA BARRAGEM | G2: Latitude | H2: Longitude | I2: DISTÂNCIA (KM) BARRAGEM - AEROPORTO | J2: Municipio Aeroporto | K2: DISTÂNCIA (KM) Ida e Volta da barragem ao aeroporto | L2: TEMPO (DIAS) | M2: Quantidade de dias para elaboração do relatório | N2: TEMPO TOTAL (DIAS) | O2: Capacidade_hm_ | P2: Comprimento_Coroamento_m | Q2: Tipo_de_Material | V2: AEROPORTOS
B3: 18079 | C3: Santa Maria | D3: Terra | E3: BA | F3: PEDRO ALEXANDRE | G3: -10.01944 | H3: -37.84444 | I3: 115 | J3: Paulo Afonso | K3: =I3*2 -> 230 | L3: 1.5 | M3: 3 | N3: =M3*L3 -> 4.5 | O3: 0.42 | P3: 215.68 | Q3: Terra | V3: Juazeiro do Norte: (-7.2189,-39.2701),
B4: 20940 | C4: PA Castro Alves | D4: Alvenaria | E4: ES | F4: PEDRO CANÁRIO | G4: -18.22164 | H4: -40.04422 | I4: 276 | J4: Vitória | K4: =I4*2 -> 552 | L4: 1.5 | M4: 3 | N4: =M4*L4 -> 4.5 | O4: 0 | Q4: Sem Informação | V4: João Pessoa: (-7.1458,-34.9486),
B5: 27910 | C5: Barragem do Libório | D5: Concreto | E5: GO | F5: ÁGUA FRIA DE GOIÁS | G5: -14.97231 | H5: -47.61861 | I5: 137 | J5: Brasília | K5: 274 | L5: 1.5 | M5: 3 | N5: =M5*L5 -> 4.5 | O5: 0.121 | P5: 246 | Q5: Terra | V5: Campina Grande: (-7.2699,-35.8964),
B6: 20821 | C6: P.A. Lagoa das Pedras - Barragem 01 | D6: Terra | E6: GO | F6: CABECEIRAS | G6: -15.87072 | H6: -46.95436 | I6: 157 | J6: Brasília | K6: 314 | L6: 1.5 | M6: 3 | N6: =M6*L6 -> 4.5 | O6: 0.756 | P6: 70 | Q6: Sem Informação | V6: Natal: (-5.9114,-35.2477),
B7: 23898 | C7: BARRAGEM DA CAATINGA | D7: Terra Homogênea | E7: MG | F7: BOCAIÚVA | G7: -17.56694 | H7: -43.90631 | I7: 119 | J7: Montes Claros | K7: 238 | L7: 1.5 | M7: 3 | N7: =M7*L7 -> 4.5 | O7: 23 | Q7: Sem Informação | V7: Mossoró: (-5.2019,-37.3643),
B8: 27892 | C8: Represa Bicano | D8: SI | E8: MG | F8: CAMPINA VERDE | G8: -19.52508 | H8: -49.49878 | I8: 172 | J8: Uberlândia | K8: 344 | L8: 1.5 | M8: 3 | N8: =M8*L8 -> 4.5 | O8: 0.142 | Q8: Sem Informação | V8: Petrolina: (-9.3624,-40.5691),
B9: 32241 | C9: Barragem 1 - Grande | D9: Terra | E9: MS | F9: SIDROLÂNDIA | G9: -20.96163 | H9: -54.74662 | I9: 71.2 | J9: Campo Grande/MS | K9: 142.4 | L9: 1.5 | M9: 3 | N9: 4.5 | Q9: Sem Informação | V9: Paulo Afonso: (-9.4009,-38.2506),
B10: 32242 | C10: Barragem 2 | D10: Terra | E10: MS | F10: SIDROLÂNDIA | G10: -20.97443 | H10: -54.75172 | I10: 84.4 | J10: Campo Grande/MS | K10: 168.8 | L10: 1.5 | M10: 3 | N10: 4.5 | Q10: Sem Informação | V10: Brasília: (-15.8697,-47.9208),
B11: 32243 | C11: Barragem 3 | D11: Terra | E11: MS | F11: SIDROLÂNDIA | G11: -20.98005 | H11: -54.75484 | I11: 93.3 | J11: Campo Grande/MS | K11: 186.6 | L11: 1.5 | M11: 3 | N11: 4.5 | Q11: Sem Informação | V11: Palmas: (-10.2915,-48.3570),
B12: 19994 | C12: PDS Bordolândia | D12: CCR | E12: MT | F12: BOM JESUS DO ARAGUAIA | G12: -12.08572 | H12: -51.62603 | I12: 868 | J12: Cuiabá/MT | K12: 1736 | L12: 1.5 | M12: 3 | N12: 4.5 | O12: 2.515 | P12: 478 | Q12: Terra | V12: Cuiabá: (-15.6529,-56.1167),
B13: 21003 | C13: Gleba Barranqueira XIII | D13: Terra | E13: MT | F13: CÁCERES | G13: -16.30475 | H13: -58.62389 | I13: 347 | J13: Cuiabá/MT | K13: 694 | L13: 1.5 | M13: 3 | N13: 4.5 | O13: 0 | Q13: Sem Informação | V13: Imperatriz: (-5.5313,-47.4605),
B14: 21004 | C14: Gleba Barranqueira XIII | D14: Terra | E14: MT | F14: CÁCERES | G14: -16.29083 | H14: -58.62222 | I14: 347.5 | J14: Cuiabá/MT | K14: 695 | L14: 1.5 | M14: 3 | N14: 4.5 | O14: 0 | Q14: Sem Informação | V14: Uberlândia: (-18.8836,-48.2253),
B15: 21005 | C15: Gleba Barranqueira XIII | D15: Terra | E15: MT | F15: CÁCERES | G15: -16.31167 | H15: -58.62306 | I15: 348 | J15: Cuiabá/MT | K15: 696 | L15: 1.5 | M15: 3 | N15: 4.5 | O15: 0 | Q15: Sem Informação | V15: Campo Grande: (-20.4686,-54.6725),
B16: 21013 | C16: Gleba Tarumã | D16: Terra | E16: MT | F16: VILA BELA DA SANTÍSSIMA TRINDADE | G16: -16.19192 | H16: -59.54008 | I16: 466 | J16: Cuiabá/MT | K16: 932 | L16: 1.5 | M16: 3 | N16: 4.5 | O16: 0 | Q16: Sem Informação | V16: Aracaju: (-10.984,-37.0703),
B17: 7367 | C17: Santo Antônio I | D17: Terra | E17: PB | F17: CAJAZEIRAS | G17: -6.89411 | H17: -38.46434 | I17: 135 | J17: Juazeiro do Norte/CE | K17: 270 | L17: 1.5 | M17: 3 | N17: 4.5 | O17: 0.839 | P17: 464.35 | Q17: Terra | V17: Teresina: (-5.0607,-42.8235),
B18: 7672 | C18: Juvêncio | D18: SI | E18: PB | F18: CAMALAÚ | G18: -7.90924 | H18: -36.84427 | I18: 295 | J18: João Pessoa/PB | K18: 590 | L18: 1.5 | M18: 3 | N18: 4.5 | O18: 2.177 | P18: 206.31 | Q18: Terra | V18: Vilhena: (-12.6944,-60.0983),
B19: 7774 | C19: Bonfim | D19: Terra | E19: PB | F19: CAMPINA GRANDE | G19: -7.25406 | H19: -36.04547 | I19: 146 | J19: João Pessoa/PB | K19: 292 | L19: 1.5 | M19: 3 | N19: 4.5 | O19: 0.925 | P19: 306.17 | Q19: Terra | V19: Porto Alegre: (-29.9939,-51.1714),
B20: 7776 | C20: Quixaba | D20: SI | E20: PB | F20: CAMPINA GRANDE | G20: -7.35463 | H20: -36.04226 | I20: 151 | J20: João Pessoa/PB | K20: 302 | L20: 1.5 | M20: 3 | N20: 4.5 | O20: 3.089 | P20: 379.99 | Q20: Terra | V20: Montes Claros: (-16.7069,-43.8189)
B21: 7465 | C21: Fazenda | D21: Terra | E21: PB | F21: CONDADO | G21: -6.91175 | H21: -37.66849 | I21: 245 | J21: Juazeiro do Norte/CE | K21: 490 | L21: 1.5 | M21: 3 | N21: 4.5 | O21: 0.366 | P21: 291.76 | Q21: Terra | V21: Recife: -8.1265 , -34.9236
B22: 7837 | C22: Ipanema | D22: Terra | E22: PB | F22: RIACHÃO DO POÇO | G22: -7.1435 | H22: -35.30595 | I22: 52.9 | J22: João Pessoa/PB | K22: 105.8 | L22: 1.5 | M22: 3 | N22: 4.5 | O22: 1.061 | P22: 337.43 | Q22: Terra | V22: Petrolina: -9.3624 , -40.5691
B23: 7520 | C23: Açude Velho | D23: Terra | E23: PB | F23: SANTA TERESINHA | G23: -7.1423 | H23: -37.44196 | I23: 264 | J23: Juazeiro do Norte/CE | K23: 528 | L23: 1.5 | M23: 3 | N23: 4.5 | O23: 0.942 | P23: 151.08 | Q23: Terra
B24: 7534 | C24: Jacobina | D24: Terra | E24: PB | F24: SÃO JOSÉ DE ESPINHARAS | G24: -6.92402 | H24: -37.38812 | I24: 281 | J24: Juazeiro do Norte/CE | K24: 562 | L24: 1.5 | M24: 3 | N24: 4.5 | O24: 0.481 | P24: 438.47 | Q24: Terra
B25: 7536 | C25: Da Lama | D25: Terra | E25: PB | F25: SÃO JOSÉ DE ESPINHARAS | G25: -6.93367 | H25: -37.3862 | I25: 279 | J25: Juazeiro do Norte/CE | K25: 558 | L25: 1.5 | M25: 3 | N25: 4.5 | O25: 1.016 | P25: 328.32 | Q25: Terra
B26: 7859 | C26: Itanhém | D26: Terra | E26: PB | F26: SAPÉ | G26: -7.08066 | H26: -35.13548 | I26: 35.5 | J26: João Pessoa/PB | K26: 71 | L26: 1.5 | M26: 3 | N26: 4.5 | O26: 1.533 | P26: 375.98 | Q26: Terra
B27: 18250 | C27: Timbaúba | D27: SI | E27: PB | F27: SOSSÊGO | G27: -6.78194 | H27: -36.22472 | I27: 215 | J27: João Pessoa/PB | K27: 430 | L27: 1.5 | M27: 3 | N27: 4.5 | O27: 0.453 | P27: 146.04 | Q27: Terra
B28: 30959 | C28: Jusante Timbaúba (Código SRE 183) | D28: Terra | E28: PB | F28: SOSSÊGO | G28: -6.77944 | H28: -36.22528 | I28: 215 | J28: João Pessoa/PB | K28: 430 | L28: 1.5 | M28: 3 | N28: 4.5 | Q28: Sem Informação
B29: 7410 | C29: Floresta | D29: Terra | E29: PB | F29: SOUSA | G29: -6.84949 | H29: -38.15604 | I29: 188 | J29: Juazeiro do Norte/CE | K29: 376 | L29: 1.5 | M29: 3 | N29: 4.5 | O29: 1.516 | P29: 201.07 | Q29: Terra
B30: 7630 | C30: Várzea | D30: Terra | E30: PB | F30: VÁRZEA | G30: -6.76306 | H30: -37.04722 | I30: 312 | J30: João Pessoa/PB | K30: 624 | L30: 1.5 | M30: 3 | N30: 4.5 | O30: 3.423 | P30: 672.14 | Q30: Terra
B31: 23903 | C31: Umburanas | D31: Terra | E31: PE | F31: CUSTÓDIA | G31: -8.13436 | H31: -37.67089 | I31: 342 | J31: Recife/PE | K31: 684 | L31: 1.5 | M31: 3 | N31: 4.5 | O31: 1.306 | P31: 162 | Q31: Terra
B32: 145 | C32: Assentamento Boi Branco | D32: Terra | E32: PE | F32: IATI | G32: -8.92125 | H32: -36.87844 | I32: 286 | J32: Recife/PE | K32: 572 | L32: 1.5 | M32: 3 | N32: 4.5 | O32: 0.53 | P32: 104 | Q32: Terra
B33: 20956 | C33: PA Nossa Sra Aparecida | D33: Terra | E33: PE | F33: MANARI | G33: -8.95194 | H33: -37.68553 | I33: 109 | J33: Paulo Afonso/BA | K33: 218 | L33: 1.5 | M33: 3 | N33: 4.5 | O33: 0.047 | Q33: Sem Informação
B34: 17984 | C34: Açude Várzea | D34: Terra | E34: PI | F34: CASTELO DO PIAUÍ | G34: -5.309 | H34: -41.446 | I34: 206 | J34: Teresina/PI | K34: 412 | L34: 1.5 | M34: 3 | N34: 4.5 | Q34: Terra
B35: 19069 | C35: Santa Maria | D35: Terra | E35: RN | F35: AFONSO BEZERRA | G35: -5.49028 | H35: -36.64306 | I35: 189 | J35: Natal/RN | K35: 378 | L35: 1.5 | M35: 3 | N35: 4.5 | O35: 0.375 | Q35: Sem Informação
B36: 22181 | C36: Augustinho | D36: Terra | E36: RN | F36: BENTO FERNANDES | G36: -5.67549 | H36: -35.81334 | I36: 87 | J36: Natal/RN | K36: 174 | L36: 1.5 | M36: 3 | N36: 4.5 | Q36: Sem Informação
B37: 22193 | C37: ESPINHEIRO 1 | D37: Terra | E37: RN | F37: BENTO FERNANDES | G37: -5.70556 | H37: -35.83194 | I37: 84 | J37: Natal/RN | K37: 168 | L37: 1.5 | M37: 3 | N37: 4.5 | Q37: Sem Informação
B38: 7611 | C38: ESTRELA DO OESTE | D38: Terra | E38: RN | F38: PARAÚ | G38: -5.71505 | H38: -37.11219 | I38: 237 | J38: Natal/RN | K38: 474 | L38: 1.5 | M38: 3 | N38: 4.5 | O38: 0.343 | P38: 182.81 | Q38: Terra
B39: 7769 | C39: SÃO PEDRO I | D39: Terra | E39: RN | F39: PEDRA PRETA | G39: -5.56675 | H39: -36.07391 | I39: 149 | J39: Natal/RN | K39: 298 | L39: 1.5 | M39: 3 | N39: 4.5 | O39: 0.355 | P39: 309.27 | Q39: Terra
B40: 19243 | C40: PALESTINA 2 | D40: - | E40: RN | F40: SANTANA DO MATOS | G40: -5.94028 | H40: -36.79194 | I40: 205 | J40: Natal/RN | K40: 410 | L40: 1.5 | M40: 3 | N40: 4.5 | O40: 0.2 | P40: 130 | Q40: Terra
B41: 19244 | C41: Saquinho | D41: Terra | E41: RN | F41: SANTANA DO MATOS | G41: -5.82417 | H41: -36.40222 | I41: 175 | J41: Natal/RN | K41: 350 | L41: 1.5 | M41: 3 | N41: 4.5 | O41: 0.2 | P41: 262 | Q41: Terra
B42: 20189 | C42: ARAPUÁ | D42: Terra | E42: RN | F42: SANTANA DO MATOS | G42: -5.95189 | H42: -36.77114 | I42: 203 | J42: Natal/RN | K42: 406 | L42: 1.5 | M42: 3 | N42: 4.5 | O42: 0.34 | P42: 142.16 | Q42: Terra
B43: 18176 | C43: JOBEAR | D43: Terra | E43: RN | F43: SÃO RAFAEL | G43: -5.90565 | H43: -36.85861 | I43: 301 | J43: Natal/RN | K43: 602 | L43: 1.5 | M43: 3 | N43: 4.5 | O43: 0.3 | P43: 0 | Q43: Terra
B44: 22252 | C44: 3 CORAÇÕES DA SERRA | D44: Terra | E44: RN | F44: SERRA CAIADA | G44: -6.11619 | H44: -35.74895 | I44: 77.4 | J44: Natal/RN | K44: 154.8 | L44: 1.5 | M44: 3 | N44: =M44*L44 -> 4.5 | Q44: Sem Informação
B45: 20923 | C45: Gleba Iquê | D45: Terra | E45: RO | F45: VILHENA | G45: -12.62061 | H45: -60.07064 | I45: 11 | J45: Vilhena/RO | K45: 22 | L45: 1.5 | M45: 3 | N45: 4.5 | O45: 0 | Q45: Sem Informação
B46: 20924 | C46: Gleba Iquê | D46: Alvenaria | E46: RO | F46: VILHENA | G46: -12.62692 | H46: -60.06714 | I46: 11 | J46: Vilhena/RO | K46: 22 | L46: 1.5 | M46: 3 | N46: 4.5 | Q46: Sem Informação
B47: 20925 | C47: Gleba Iquê | D47: Terra | E47: RO | F47: VILHENA | G47: -12.62297 | H47: -60.06981 | I47: 11 | J47: Vilhena/RO | K47: 22 | L47: 1.5 | M47: 3 | N47: 4.5 | O47: 0 | Q47: Sem Informação
B48: 20926 | C48: Gleba Iquê | D48: Terra | E48: RO | F48: VILHENA | G48: -12.63892 | H48: -60.06331 | I48: 11 | J48: Vilhena/RO | K48: 22 | L48: 1.5 | M48: 3 | N48: 4.5 | O48: 0 | Q48: Sem Informação
B49: 23888 | C49: Caroline Nunes Soares | D49: CCR | E49: RS | F49: SÃO GABRIEL | G49: -30.48789 | H49: -54.36444 | I49: 346 | J49: Porto Alegre/RS | K49: 692 | L49: 1.5 | M49: 3 | N49: 4.5 | O49: 0.18 | Q49: Sem Informação
B50: 17114 | C50: Associação dos Moradores do Assentamento Filhos de Sepé/Distrito de Irrigação Águas Claras | D50: Terra Homogênea | E50: RS | F50: VIAMÃO | G50: -30.07369 | H50: -50.86181 | I50: 41.5 | J50: Porto Alegre/RS | K50: 83 | L50: 1.5 | M50: 3 | N50: 4.5 | O50: 12.973 | Q50: Sem Informação
B51: 21017 | C51: PA São Cristovão | D51: Terra | E51: SE | F51: CARIRA | G51: -10.20303 | H51: -37.70317 | I51: 139 | J51: Aracaju/SE | K51: 278 | L51: 1.5 | M51: 3 | N51: 4.5 | O51: 0 | Q51: Sem Informação
B52: 33991 | C52: BARRAGEM PA DA MATA | D52: Terra | E52: TO | F52: ARAGUACEMA | G52: -9.05275 | H52: -49.49661 | I52: 268 | J52: Palmas/TO | K52: 536 | L52: 1.5 | M52: 3 | N52: 4.5 | O52: 0.568 | P52: 185 | Q52: Terra
B53: 31056 | C53: PA 1° DE MAIO | D53: Terra | E53: TO | F53: CASEARA | G53: -9.54181 | H53: -49.77914 | I53: 260 | J53: Palmas/TO | K53: 520 | L53: 1.5 | M53: 3 | N53: 4.5 | O53: 1.005 | P53: 471 | Q53: Terra
B54: 32235 | C54: P.A BOA SORTE | D54: SI | E54: TO | F54: CRIXÁS DO TOCANTINS | G54: -11.22215 | H54: -49.32026 | I54: 221 | J54: Palmas/TO | K54: 442 | L54: 1.5 | M54: 3 | N54: 4.5 | O54: 0.09 | P54: 518 | Q54: Terra
B55: 5262 | C55: PA DESTILARIA I | D55: SI | E55: TO | F55: PALMEIRAS DO TOCANTINS | G55: -6.63258 | H55: -47.78331 | I55: 498 | J55: Palmas/TO | K55: 996 | L55: 1.5 | M55: 3 | N55: 4.5 | O55: 0.096 | P55: 245 | Q55: Terra
B56: 30616 | C56: PA DESTILARIA II | D56: Terra | E56: TO | F56: PALMEIRAS DO TOCANTINS | G56: -6.62475 | H56: -47.78267 | I56: 491 | J56: Palmas/TO | K56: 982 | L56: 1.5 | M56: 3 | N56: 4.5 | O56: 0.045 | P56: 181 | Q56: Terra
H57: Média | I57: =AVERAGE(I3:I56) -> 210.6425926 | K57: =AVERAGE(K3:K56) -> 421.2851852 | L57: =AVERAGE(L3:L56) -> 1.5 | M57: =AVERAGE(M3:M56) -> 3 | N57: =AVERAGE(N3:N56) -> 4.5
C59: Confecção de relatório | D59: Tempo (horas)
C60: Engenheiro geotecnico ou estrutural | D60: 36
C61: Engenheiro Hidráulico | D61: 8

Sheet Passagem aérea
A1: COTAÇÃO DE PREÇO DE PASSAGEM AÉREA
A3: Preço
A4: Média | B4: =AVERAGE(B9:B18) -> 1452.980552 | D4: DESTINO | F4: RECIFE | O4: DESTINO | Q4: PALMAS | Z4: DESTINO | AB4: MONTES CLAROS | AK4: DESTINO | AM4: CUIABÁ | AV4: DESTINO | AX4: JUAZEIRO DO NORTE | BG4: DESTINO | BI4: JOÃO PESSOA | BR4: DESTINO | BT4: TERESINA | CC4: DESTINO | CE4: NATAL | CN4: DESTINO | CP4: Aracaju | CY4: DESTINO | DA4: BRASÍLIA
A5: Mediana | B5: =MEDIAN(B9:B18) -> 1493.545455 | D5: MÉDIA DE PREÇO | F5: =AVERAGE(F9,F10,F11,F30,F31,F32,F51,F52,F53,F74,F75,F76) -> 1433.125 | O5: MÉDIA DE PREÇO | Q5: =AVERAGE(Q9,Q10,Q11,Q30,Q31,Q32,Q51,Q52,Q53,Q74,Q75,Q76) -> 1546.454545 | Z5: MÉDIA DE PREÇO | AB5: =AVERAGE(AB9,AB10,AB11,AB30,AB31,AB32,AB51,AB52,AB53,AB74,AB75,AB76) -> 1440.636364 | AK5: MÉDIA DE PREÇO | AM5: =AVERAGE(AM9,AM10,AM11,AM30,AM31,AM32,AM51,AM52,AM53,AM74,AM75,AM76) -> 1249.818182 | AV5: MÉDIA DE PREÇO | AX5: =AVERAGE(AX9,AX10,AX11,AX30,AX31,AX32,AX51,AX52,AX53,AX74,AX75,AX76) -> 1150.571429 | BG5: MÉDIA DE PREÇO | BI5: =AVERAGE(BI9,BI10,BI11,BI30,BI31,BI32,BI51,BI52,BI53,BI74,BI75,BI76) -> 1582.222222 | BR5: MÉDIA DE PREÇO | BT5: =AVERAGE(BT9,BT10,BT11,BT30,BT31,BT32,BT51,BT52,BT53,BT74,BT75,BT76) -> 1556.1 | CC5: MÉDIA DE PREÇO | CE5: =AVERAGE(CE9,CE10,CE11,CE30,CE31,CE32,CE51,CE52,CE53,CE74,CE75,CE76) -> 1870.7 | CN5: MÉDIA DE PREÇO | CP5: =AVERAGE(CP9,CP10,CP11,CP30,CP31,CP32,CP51,CP52,CP53,CP74,CP75,CP76) -> 1687.4 | CY5: MÉDIA DE PREÇO | DA5: =AVERAGE(DA9,DA10,DA11,DA30,DA31,DA32,DA51,DA52,DA53,DA74,DA75,DA76) -> 1012.777778
A6: Menor | B6: =SMALL(B4:B5,1) -> 1452.980552
D7: BRASÍLIA - PAULO AFONSO | O7: BRASÍLIA - PALMAS | Z7: BRASÍLIA - MONTES CLAROS | AK7: BRASÍLIA - CUIABA | AV7: BRASÍLIA - JUAZEIRO DO NORTE | BG7: BRASÍLIA - JOÃO PESSOA | BR7: BRASÍLIA - TERESINA | CC7: BRASÍLIA - NATAL | CN7: BRASÍLIA - ARACAJU | CY7: BRASÍLIA - BRASÍLIA
A8: DESTINO | B8: PREÇO MÉDIO | D8: DATA DA CONSULTA | F8: 2026-03-13 | O8: DATA DA CONSULTA | Q8: 2026-03-10 | Z8: DATA DA CONSULTA | AB8: 2026-03-10 | AK8: DATA DA CONSULTA | AM8: 2026-03-10 | AV8: DATA DA CONSULTA | AX8: 2026-03-10 | BG8: DATA DA CONSULTA | BI8: 2026-03-10 | BR8: DATA DA CONSULTA | BT8: 2026-03-10 | CC8: DATA DA CONSULTA | CE8: 2026-03-10 | CN8: DATA DA CONSULTA | CP8: 2026-03-10 | CY8: DATA DA CONSULTA | DA8: 2026-03-10
A9: =F4 -> RECIFE | B9: =F5 -> 1433.125 | D9: AZUL | F9: 1120 | O9: AZUL | Q9: 1180 | Z9: AZUL | AB9: 1216 | AK9: AZUL | AM9: 997 | AV9: AZUL | AX9: 1439 | BG9: AZUL | BI9: 1345 | BR9: AZUL | BT9: 1770 | CC9: AZUL | CE9: 1614 | CN9: AZUL | CP9: 1801 | CY9: AZUL
A10: =Q4 -> PALMAS | B10: =Q5 -> 1546.454545 | D10: LATAM | F10: 1190 | O10: LATAM | Q10: 1800 | Z10: LATAM | AB10: 1043 | AK10: LATAM | AM10: 1270 | AV10: LATAM | AX10: 993 | BG10: LATAM | BI10: 1540 | BR10: LATAM | BT10: 1564 | CC10: LATAM | CE10: 2515 | CN10: LATAM | CP10: 1079 | CY10: LATAM
A11: =AB4 -> MONTES CLAROS | B11: =AB5 -> 1440.636364 | D11: GOL | F11: 1377 | O11: GOL | Q11: 2211 | Z11: GOL | AB11: 1910 | AK11: GOL | AM11: 1299 | AV11: GOL | BG11: GOL | BR11: GOL | BT11: 1985 | CC11: GOL | CE11: 2093 | CN11: GOL | CP11: 1897 | CY11: GOL
A12: =AM4 -> CUIABÁ | B12: =AM5 -> 1249.818182
A13: =AX4 -> JUAZEIRO DO NORTE | B13: =AX5 -> 1150.571429
A14: =BI4 -> JOÃO PESSOA | B14: =BI5 -> 1582.222222
A15: =BT4 -> TERESINA | B15: =BT5 -> 1556.1
A16: =CE4 -> NATAL | B16: =CE5 -> 1870.7
A17: =CP4 -> Aracaju | B17: =CP5 -> 1687.4
A18: =DA4 -> BRASÍLIA | B18: =DA5 -> 1012.777778
D28: SÃO PAULO - RECIFE | O28: SÃO PAULO - PALMAS | Z28: SÃO PAULO - MONTES CLAROS | AK28: SÃO PAULO - CUIABA | AV28: SÃO PAULO - JUAZEIRO DO NORTE | BG28: SÃO PAULO - JOÃO PESSOA | BR28: SÃO PAULO - TERESINA | CC28: SÃO PAULO - NATAL | CN28: SÃO PAULO - ARACAJU | CY28: SÃO PAULO - BRASÍLIA
D30: AZUL | F30: 1119 | O30: AZUL | Q30: 1243 | Z30: AZUL | AB30: 966 | AK30: AZUL | AM30: 943 | AV30: AZUL | BG30: AZUL | BI30: 971 | BR30: AZUL | BT30: 1367 | CC30: AZUL | CE30: 1661 | CN30: AZUL | CP30: 1470 | CY30: AZUL | DA30: 365
D31: LATAM | F31: 969 | O31: LATAM | Q31: 1336 | Z31: LATAM | AB31: 994 | AK31: LATAM | AM31: 1016 | AV31: LATAM | AX31: 1174 | BG31: LATAM | BI31: 1284 | BR31: LATAM | BT31: 1574 | CC31: LATAM | CE31: 1718 | CN31: LATAM | CP31: 1596 | CY31: LATAM | DA31: 486
D32: GOL | F32: 1232 | O32: GOL | Q32: 1660 | Z32: GOL | AB32: 1856 | AK32: GOL | AM32: 1133 | AV32: GOL | AX32: 1088 | BG32: GOL | BR32: GOL | CC32: GOL | CE32: 1403 | CN32: GOL | CP32: 1268 | CY32: GOL | DA32: 491
D49: RECIFE - RECIFE | O49: RECIFE - PALMAS | Z49: RECIFE - MONTES CLAROS | AK49: RECIFE - CUIABA | AV49: RECIFE - JUAZEIRO DO NORTE | BG49: RECIFE - JOÃO PESSOA | BR49: RECIFE - TERESINA | CC49: RECIFE - NATAL | CN49: RECIFE - ARACAJU | CY49: RECIFE - BRASÍLIA
D51: AZUL | O51: AZUL | Q51: 1440 | Z51: AZUL | AB51: 1494 | AK51: AZUL | AM51: 1487 | AV51: AZUL | AX51: 540 | BG51: AZUL | BI51: 1286 | BR51: AZUL | BT51: 663 | CC51: AZUL | CE51: 1160 | CN51: AZUL | CY51: AZUL | DA51: 1329
D52: LATAM | O52: LATAM | Q52: 2228 | Z52: LATAM | AB52: 1524 | AK52: LATAM | AM52: 1728 | AV52: LATAM | BG52: LATAM | BI52: 2684 | BR52: LATAM | BT52: 1343 | CC52: LATAM | CN52: LATAM | CP52: 1276 | CY52: LATAM | DA52: 1915
D53: GOL | O53: GOL | Z53: GOL | AK53: GOL | AV53: GOL | BG53: GOL | BI53: 2341 | BR53: GOL | CC53: GOL | CE53: 1749 | CN53: GOL | CY53: GOL | DA53: 1417
D72: PORTO ALEGRE - RECIFE | O72: PORTO ALEGRE - MONTES CLAROS | Z72: PORTO ALEGRE - MONTES CLAROS | AK72: PORTO ALEGRE - CUIABA | AV72: PORTO ALEGRE - JUAZEIRO DO NORTE | BG72: PORTO ALEGRE - JOÃO PESSOA | BR72: PORTO ALEGRE - TERESINA | CC72: PORTO ALEGRE - NATAL | CN72: PORTO ALEGRE - ARACAJU | CY72: PORTO ALEGRE - BRASÍLIA
D74: AZUL | F74: 1860 | O74: AZUL | Q74: 1204 | Z74: AZUL | AB74: 1235 | AK74: AZUL | AM74: 1154 | AV74: AZUL | AX74: 1277 | BG74: AZUL | BI74: 1451 | BR74: AZUL | BT74: 1251 | CC74: AZUL | CN74: AZUL | CP74: 1982 | CY74: AZUL | DA74: 1154
D75: LATAM | F75: 2598 | O75: LATAM | Q75: 1233 | Z75: LATAM | AB75: 1265 | AK75: LATAM | AM75: 1314 | AV75: LATAM | AX75: 1543 | BG75: LATAM | BI75: 1338 | BR75: LATAM | BT75: 1519 | CC75: LATAM | CE75: 2386 | CN75: LATAM | CP75: 2113 | CY75: LATAM | DA75: 1310
D76: GOL | O76: GOL | Q76: 1476 | Z76: GOL | AB76: 2344 | AK76: GOL | AM76: 1407 | AV76: GOL | BG76: GOL | BR76: GOL | BT76: 2525 | CC76: GOL | CE76: 2408 | CN76: GOL | CP76: 2392 | CY76: GOL | DA76: 648

Sheet Comp SINAPI MG 09-2024 Desoner (hidden)
A1: PCI.817.01 - CUSTO DE COMPOSIÇÕES - SINTÉTICO DATA DE EMISSÃO: 10/10/2024 23:30:17 DATA DE RT: 10/10/2024
A2: ENCARGOS SOCIAIS SOBRE PREÇOS DA MÃO-DE-OBRA: 108,90%(HORA) 67,79%(MÊS)
A3: ABRANGÊNCIA : NACIONAL LOCALIDADE : BELO HORIZONTE DATA DE PREÇO : 09/2024 REFERÊNCIA COLETA : MEDIANO
A5: DESCRICAO DA CLASSE | B5: SIGLA DA CLASSE | C5: DESCRICAO DO TIPO 1 | D5: SIGLA DO TIPO 1 | E5: CODIGO DO AGRUPADOR | F5: DESCRICAO DO AGRUPADOR | G5: CODIGO DA COMPOSICAO | H5: DESCRICAO DA COMPOSICAO | I5: UNIDADE | J5: ORIGEM DE PREÇO | K5: CUSTO TOTAL | L5: VINCULO
A7: ASSENTAMENTO DE TUBOS E PECAS | B7: ASTU | C7: FORNEC E/OU ASSENT DE TUBO DE FERRO FUNDIDO JUNTA ELASTICA | D7: 45 | G7: 97141 | H7: ASSENTAMENTO DE TUBO DE FERRO FUNDIDO PARA REDE DE ÁGUA, DN 80 MM, JUNTA ELÁSTICA, INSTALADO EM LOCAL COM NÍVEL ALTO DE INTERFERÊNCIAS (NÃO INCLUI FORNECIMENTO). AF_05/2024 | I7: M | J7: COEFICIENTE DE REPRESENTATIVIDADE | K7: 4.94 | L7: CAIXA REFERENCIAL
A8: ASSENTAMENTO DE TUBOS E PECAS | B8: ASTU | C8: FORNEC E/OU ASSENT DE TUBO DE FERRO FUNDIDO JUNTA ELASTICA | D8: 45 | G8: 97142 | H8: ASSENTAMENTO DE TUBO DE FERRO FUNDIDO PARA REDE DE ÁGUA, DN 100 MM, JUNTA ELÁSTICA, INSTALADO EM LOCAL COM NÍVEL ALTO DE INTERFERÊNCIAS (NÃO INCLUI FORNECIMENTO). AF_05/2024 | I8: M | J8: COEFICIENTE DE REPRESENTATIVIDADE | K8: 5.68 | L8: CAIXA REFERENCIAL
A9: ASSENTAMENTO DE TUBOS E PECAS | B9: ASTU | C9: FORNEC E/OU ASSENT DE TUBO DE FERRO FUNDIDO JUNTA ELASTICA | D9: 45 | G9: 97143 | H9: ASSENTAMENTO DE TUBO DE FERRO FUNDIDO PARA REDE DE ÁGUA, DN 150 MM, JUNTA ELÁSTICA, INSTALADO EM LOCAL COM NÍVEL ALTO DE INTERFERÊNCIAS (NÃO INCLUI FORNECIMENTO). AF_05/2024 | I9: M | J9: COEFICIENTE DE REPRESENTATIVIDADE | K9: 7.5 | L9: CAIXA REFERENCIAL
A10: ASSENTAMENTO DE TUBOS E PECAS | B10: ASTU | C10: FORNEC E/OU ASSENT DE TUBO DE FERRO FUNDIDO JUNTA ELASTICA | D10: 45 | G10: 97144 | H10: ASSENTAMENTO DE TUBO DE FERRO FUNDIDO PARA REDE DE ÁGUA, DN 200 MM, JUNTA ELÁSTICA, INSTALADO EM LOCAL COM NÍVEL ALTO DE INTERFERÊNCIAS (NÃO INCLUI FORNECIMENTO). AF_05/2024 | I10: M | J10: COEFICIENTE DE REPRESENTATIVIDADE | K10: 9.31 | L10: CAIXA REFERENCIAL
A11: ASSENTAMENTO DE TUBOS E PECAS | B11: ASTU | C11: FORNEC E/OU ASSENT DE TUBO DE FERRO FUNDIDO JUNTA ELASTICA | D11: 45 | G11: 97145 | H11: ASSENTAMENTO DE TUBO DE FERRO FUNDIDO PARA REDE DE ÁGUA, DN 250 MM, JUNTA ELÁSTICA, INSTALADO EM LOCAL COM NÍVEL ALTO DE INTERFERÊNCIAS (NÃO INCLUI FORNECIMENTO). AF_05/2024 | I11: M | J11: COEFICIENTE DE REPRESENTATIVIDADE | K11: 11.13 | L11: CAIXA REFERENCIAL
A12: ASSENTAMENTO DE TUBOS E PECAS | B12: ASTU | C12: FORNEC E/OU ASSENT DE TUBO DE FERRO FUNDIDO JUNTA ELASTICA | D12: 45 | G12: 97146 | H12: ASSENTAMENTO DE TUBO DE FERRO FUNDIDO PARA REDE DE ÁGUA, DN 300 MM, JUNTA ELÁSTICA, INSTALADO EM LOCAL COM NÍVEL ALTO DE INTERFERÊNCIAS (NÃO INCLUI FORNECIMENTO). AF_05/2024 | I12: M | J12: COEFICIENTE DE REPRESENTATIVIDADE | K12: 12.97 | L12: CAIXA REFERENCIAL
A13: ASSENTAMENTO DE TUBOS E PECAS | B13: ASTU | C13: FORNEC E/OU ASSENT DE TUBO DE FERRO FUNDIDO JUNTA ELASTICA | D13: 45 | G13: 97147 | H13: ASSENTAMENTO DE TUBO DE FERRO FUNDIDO PARA REDE DE ÁGUA, DN 350 MM, JUNTA ELÁSTICA, INSTALADO EM LOCAL COM NÍVEL ALTO DE INTERFERÊNCIAS (NÃO INCLUI FORNECIMENTO). AF_05/2024 | I13: M | J13: COEFICIENTE DE REPRESENTATIVIDADE | K13: 14.8 | L13: CAIXA REFERENCIAL
A14: ASSENTAMENTO DE TUBOS E PECAS | B14: ASTU | C14: FORNEC E/OU ASSENT DE TUBO DE FERRO FUNDIDO JUNTA ELASTICA | D14: 45 | G14: 97148 | H14: ASSENTAMENTO DE TUBO DE FERRO FUNDIDO PARA REDE DE ÁGUA, DN 400 MM, JUNTA ELÁSTICA, INSTALADO EM LOCAL COM NÍVEL ALTO DE INTERFERÊNCIAS (NÃO INCLUI FORNECIMENTO). AF_05/2024 | I14: M | J14: COEFICIENTE DE REPRESENTATIVIDADE | K14: 16.63 | L14: CAIXA REFERENCIAL
A15: ASSENTAMENTO DE TUBOS E PECAS | B15: ASTU | C15: FORNEC E/OU ASSENT DE TUBO DE FERRO FUNDIDO JUNTA ELASTICA | D15: 45 | G15: 97149 | H15: ASSENTAMENTO DE TUBO DE FERRO FUNDIDO PARA REDE DE ÁGUA, DN 450 MM, JUNTA ELÁSTICA, INSTALADO EM LOCAL COM NÍVEL ALTO DE INTERFERÊNCIAS (NÃO INCLUI FORNECIMENTO). AF_05/2024 | I15: M | J15: COEFICIENTE DE REPRESENTATIVIDADE | K15: 18.49 | L15: CAIXA REFERENCIAL
A16: ASSENTAMENTO DE TUBOS E PECAS | B16: ASTU | C16: FORNEC E/OU ASSENT DE TUBO DE FERRO FUNDIDO JUNTA ELASTICA | D16: 45 | G16: 97150 | H16: ASSENTAMENTO DE TUBO DE FERRO FUNDIDO PARA REDE DE ÁGUA, DN 500 MM, JUNTA ELÁSTICA, INSTALADO EM LOCAL COM NÍVEL ALTO DE INTERFERÊNCIAS (NÃO INCLUI FORNECIMENTO). AF_05/2024 | I16: M | J16: COEFICIENTE DE REPRESENTATIVIDADE | K16: 23.14 | L16: CAIXA REFERENCIAL
A17: ASSENTAMENTO DE TUBOS E PECAS | B17: ASTU | C17: FORNEC E/OU ASSENT DE TUBO DE FERRO FUNDIDO JUNTA ELASTICA | D17: 45 | G17: 97151 | H17: ASSENTAMENTO DE TUBO DE FERRO FUNDIDO PARA REDE DE ÁGUA, DN 600 MM, JUNTA ELÁSTICA, INSTALADO EM LOCAL COM NÍVEL ALTO DE INTERFERÊNCIAS (NÃO INCLUI FORNECIMENTO). AF_05/2024 | I17: M | J17: COEFICIENTE DE REPRESENTATIVIDADE | K17: 27.28 | L17: CAIXA REFERENCIAL
A18: ASSENTAMENTO DE TUBOS E PECAS | B18: ASTU | C18: FORNEC E/OU ASSENT DE TUBO DE FERRO FUNDIDO JUNTA ELASTICA | D18: 45 | G18: 97152 | H18: ASSENTAMENTO DE TUBO DE FERRO FUNDIDO PARA REDE DE ÁGUA, DN 700 MM, JUNTA ELÁSTICA, INSTALADO EM LOCAL COM NÍVEL ALTO DE INTERFERÊNCIAS (NÃO INCLUI FORNECIMENTO). AF_05/2024 | I18: M | J18: COEFICIENTE DE REPRESENTATIVIDADE | K18: 31.16 | L18: CAIXA REFERENCIAL
A19: ASSENTAMENTO DE TUBOS E PECAS | B19: ASTU | C19: FORNEC E/OU ASSENT DE TUBO DE FERRO FUNDIDO JUNTA ELASTICA | D19: 45 | G19: 97153 | H19: ASSENTAMENTO DE TUBO DE FERRO FUNDIDO PARA REDE DE ÁGUA, DN 800 MM, JUNTA ELÁSTICA, INSTALADO EM LOCAL COM NÍVEL ALTO DE INTERFERÊNCIAS (NÃO INCLUI FORNECIMENTO). AF_05/2024 | I19: M | J19: COEFICIENTE DE REPRESENTATIVIDADE | K19: 35.19 | L19: CAIXA REFERENCIAL
A20: ASSENTAMENTO DE TUBOS E PECAS | B20: ASTU | C20: FORNEC E/OU ASSENT DE TUBO DE FERRO FUNDIDO JUNTA ELASTICA | D20: 45 | G20: 97154 | H20: ASSENTAMENTO DE TUBO DE FERRO FUNDIDO PARA REDE DE ÁGUA, DN 900 MM, JUNTA ELÁSTICA, INSTALADO EM LOCAL COM NÍVEL ALTO DE INTERFERÊNCIAS (NÃO INCLUI FORNECIMENTO). AF_05/2024 | I20: M | J20: COEFICIENTE DE REPRESENTATIVIDADE | K20: 39.26 | L20: CAIXA REFERENCIAL
A21: ASSENTAMENTO DE TUBOS E PECAS | B21: ASTU | C21: FORNEC E/OU ASSENT DE TUBO DE FERRO FUNDIDO JUNTA ELASTICA | D21: 45 | G21: 97155 | H21: ASSENTAMENTO DE TUBO DE FERRO FUNDIDO PARA REDE DE ÁGUA, DN 1000 MM, JUNTA ELÁSTICA, INSTALADO EM LOCAL COM NÍVEL ALTO DE INTERFERÊNCIAS (NÃO INCLUI FORNECIMENTO). AF_05/2024 | I21: M | J21: COEFICIENTE DE REPRESENTATIVIDADE | K21: 43.34 | L21: CAIXA REFERENCIAL
A22: ASSENTAMENTO DE TUBOS E PECAS | B22: ASTU | C22: FORNEC E/OU ASSENT DE TUBO DE FERRO FUNDIDO JUNTA ELASTICA | D22: 45 | G22: 97156 | H22: ASSENTAMENTO DE TUBO DE FERRO FUNDIDO PARA REDE DE ÁGUA, DN 1200 MM, JUNTA ELÁSTICA, INSTALADO EM LOCAL COM NÍVEL ALTO DE INTERFERÊNCIAS (NÃO INCLUI FORNECIMENTO). AF_05/2024 | I22: M | J22: COEFICIENTE DE REPRESENTATIVIDADE | K22: 51.87 | L22: CAIXA REFERENCIAL
A23: ASSENTAMENTO DE TUBOS E PECAS | B23: ASTU | C23: FORNEC E/OU ASSENT DE TUBO DE FERRO FUNDIDO JUNTA ELASTICA | D23: 45 | G23: 97157 | H23: ASSENTAMENTO DE TUBO DE FERRO FUNDIDO PARA REDE DE ÁGUA, DN 80 MM, JUNTA ELÁSTICA, INSTALADO EM LOCAL COM NÍVEL BAIXO DE INTERFERÊNCIAS (NÃO INCLUI FORNECIMENTO). AF_05/2024 | I23: M | J23: COEFICIENTE DE REPRESENTATIVIDADE | K23: 3.7 | L23: CAIXA REFERENCIAL
A24: ASSENTAMENTO DE TUBOS E PECAS | B24: ASTU | C24: FORNEC E/OU ASSENT DE TUBO DE FERRO FUNDIDO JUNTA ELASTICA | D24: 45 | G24: 97158 | H24: ASSENTAMENTO DE TUBO DE FERRO FUNDIDO PARA REDE DE ÁGUA, DN 100 MM, JUNTA ELÁSTICA, INSTALADO EM LOCAL COM NÍVEL BAIXO DE INTERFERÊNCIAS (NÃO INCLUI FORNECIMENTO). AF_05/2024 | I24: M | J24: COEFICIENTE DE REPRESENTATIVIDADE | K24: 4.31 | L24: CAIXA REFERENCIAL
A25: ASSENTAMENTO DE TUBOS E PECAS | B25: ASTU | C25: FORNEC E/OU ASSENT DE TUBO DE FERRO FUNDIDO JUNTA ELASTICA | D25: 45 | G25: 97159 | H25: ASSENTAMENTO DE TUBO DE FERRO FUNDIDO PARA REDE DE ÁGUA, DN 150 MM, JUNTA ELÁSTICA, INSTALADO EM LOCAL COM NÍVEL BAIXO DE INTERFERÊNCIAS (NÃO INCLUI FORNECIMENTO). AF_05/2024 | I25: M | J25: COEFICIENTE DE REPRESENTATIVIDADE | K25: 5.81 | L25: CAIXA REFERENCIAL
A26: ASSENTAMENTO DE TUBOS E PECAS | B26: ASTU | C26: FORNEC E/OU ASSENT DE TUBO DE FERRO FUNDIDO JUNTA ELASTICA | D26: 45 | G26: 97160 | H26: ASSENTAMENTO DE TUBO DE FERRO FUNDIDO PARA REDE DE ÁGUA, DN 200 MM, JUNTA ELÁSTICA, INSTALADO EM LOCAL COM NÍVEL BAIXO DE INTERFERÊNCIAS (NÃO INCLUI FORNECIMENTO). AF_05/2024 | I26: M | J26: COEFICIENTE DE REPRESENTATIVIDADE | K26: 7.28 | L26: CAIXA REFERENCIAL
A27: ASSENTAMENTO DE TUBOS E PECAS | B27: ASTU | C27: FORNEC E/OU ASSENT DE TUBO DE FERRO FUNDIDO JUNTA ELASTICA | D27: 45 | G27: 97161 | H27: ASSENTAMENTO DE TUBO DE FERRO FUNDIDO PARA REDE DE ÁGUA, DN 250 MM, JUNTA ELÁSTICA, INSTALADO EM LOCAL COM NÍVEL BAIXO DE INTERFERÊNCIAS (NÃO INCLUI FORNECIMENTO). AF_05/2024 | I27: M | J27: COEFICIENTE DE REPRESENTATIVIDADE | K27: 8.78 | L27: CAIXA REFERENCIAL
A28: ASSENTAMENTO DE TUBOS E PECAS | B28: ASTU | C28: FORNEC E/OU ASSENT DE TUBO DE FERRO FUNDIDO JUNTA ELASTICA | D28: 45 | G28: 97162 | H28: ASSENTAMENTO DE TUBO DE FERRO FUNDIDO PARA REDE DE ÁGUA, DN 300 MM, JUNTA ELÁSTICA, INSTALADO EM LOCAL COM NÍVEL BAIXO DE INTERFERÊNCIAS (NÃO INCLUI FORNECIMENTO). AF_05/2024 | I28: M | J28: COEFICIENTE DE REPRESENTATIVIDADE | K28: 10.3 | L28: CAIXA REFERENCIAL
A29: ASSENTAMENTO DE TUBOS E PECAS | B29: ASTU | C29: FORNEC E/OU ASSENT DE TUBO DE FERRO FUNDIDO JUNTA ELASTICA | D29: 45 | G29: 97163 | H29: ASSENTAMENTO DE TUBO DE FERRO FUNDIDO PARA REDE DE ÁGUA, DN 350 MM, JUNTA ELÁSTICA, INSTALADO EM LOCAL COM NÍVEL BAIXO DE INTERFERÊNCIAS (NÃO INCLUI FORNECIMENTO). AF_05/2024 | I29: M | J29: COEFICIENTE DE REPRESENTATIVIDADE | K29: 11.78 | L29: CAIXA REFERENCIAL
A30: ASSENTAMENTO DE TUBOS E PECAS | B30: ASTU | C30: FORNEC E/OU ASSENT DE TUBO DE FERRO FUNDIDO JUNTA ELASTICA | D30: 45 | G30: 97164 | H30: ASSENTAMENTO DE TUBO DE FERRO FUNDIDO PARA REDE DE ÁGUA, DN 400 MM, JUNTA ELÁSTICA, INSTALADO EM LOCAL COM NÍVEL BAIXO DE INTERFERÊNCIAS (NÃO INCLUI FORNECIMENTO). AF_05/2024 | I30: M | J30: COEFICIENTE DE REPRESENTATIVIDADE | K30: 13.29 | L30: CAIXA REFERENCIAL
A31: ASSENTAMENTO DE TUBOS E PECAS | B31: ASTU | C31: FORNEC E/OU ASSENT DE TUBO DE FERRO FUNDIDO JUNTA ELASTICA | D31: 45 | G31: 97165 | H31: ASSENTAMENTO DE TUBO DE FERRO FUNDIDO PARA REDE DE ÁGUA, DN 450 MM, JUNTA ELÁSTICA, INSTALADO EM LOCAL COM NÍVEL BAIXO DE INTERFERÊNCIAS (NÃO INCLUI FORNECIMENTO). AF_05/2024 | I31: M | J31: COEFICIENTE DE REPRESENTATIVIDADE | K31: 14.83 | L31: CAIXA REFERENCIAL
A32: ASSENTAMENTO DE TUBOS E PECAS | B32: ASTU | C32: FORNEC E/OU ASSENT DE TUBO DE FERRO FUNDIDO JUNTA ELASTICA | D32: 45 | G32: 97166 | H32: ASSENTAMENTO DE TUBO DE FERRO FUNDIDO PARA REDE DE ÁGUA, DN 500 MM, JUNTA ELÁSTICA, INSTALADO EM LOCAL COM NÍVEL BAIXO DE INTERFERÊNCIAS (NÃO INCLUI FORNECIMENTO). AF_05/2024 | I32: M | J32: COEFICIENTE DE REPRESENTATIVIDADE | K32: 18.22 | L32: CAIXA REFERENCIAL
A33: ASSENTAMENTO DE TUBOS E PECAS | B33: ASTU | C33: FORNEC E/OU ASSENT DE TUBO DE FERRO FUNDIDO JUNTA ELASTICA | D33: 45 | G33: 97167 | H33: ASSENTAMENTO DE TUBO DE FERRO FUNDIDO PARA REDE DE ÁGUA, DN 600 MM, JUNTA ELÁSTICA, INSTALADO EM LOCAL COM NÍVEL BAIXO DE INTERFERÊNCIAS (NÃO INCLUI FORNECIMENTO). AF_05/2024 | I33: M | J33: COEFICIENTE DE REPRESENTATIVIDADE | K33: 21.58 | L33: CAIXA REFERENCIAL
A34: ASSENTAMENTO DE TUBOS E PECAS | B34: ASTU | C34: FORNEC E/OU ASSENT DE TUBO DE FERRO FUNDIDO JUNTA ELASTICA | D34: 45 | G34: 97168 | H34: ASSENTAMENTO DE TUBO DE FERRO FUNDIDO PARA REDE DE ÁGUA, DN 700 MM, JUNTA ELÁSTICA, INSTALADO EM LOCAL COM NÍVEL BAIXO DE INTERFERÊNCIAS (NÃO INCLUI FORNECIMENTO). AF_05/2024 | I34: M | J34: COEFICIENTE DE REPRESENTATIVIDADE | K34: 24.66 | L34: CAIXA REFERENCIAL
A35: ASSENTAMENTO DE TUBOS E PECAS | B35: ASTU | C35: FORNEC E/OU ASSENT DE TUBO DE FERRO FUNDIDO JUNTA ELASTICA | D35: 45 | G35: 97169 | H35: ASSENTAMENTO DE TUBO DE FERRO FUNDIDO PARA REDE DE ÁGUA, DN 800 MM, JUNTA ELÁSTICA, INSTALADO EM LOCAL COM NÍVEL BAIXO DE INTERFERÊNCIAS (NÃO INCLUI FORNECIMENTO). AF_05/2024 | I35: M | J35: COEFICIENTE DE REPRESENTATIVIDADE | K35: 27.9 | L35: CAIXA REFERENCIAL
A36: ASSENTAMENTO DE TUBOS E PECAS | B36: ASTU | C36: FORNEC E/OU ASSENT DE TUBO DE FERRO FUNDIDO JUNTA ELASTICA | D36: 45 | G36: 97170 | H36: ASSENTAMENTO DE TUBO DE FERRO FUNDIDO PARA REDE DE ÁGUA, DN 900 MM, JUNTA ELÁSTICA, INSTALADO EM LOCAL COM NÍVEL BAIXO DE INTERFERÊNCIAS (NÃO INCLUI FORNECIMENTO). AF_05/2024 | I36: M | J36: COEFICIENTE DE REPRESENTATIVIDADE | K36: 31.16 | L36: CAIXA REFERENCIAL
A37: ASSENTAMENTO DE TUBOS E PECAS | B37: ASTU | C37: FORNEC E/OU ASSENT DE TUBO DE FERRO FUNDIDO JUNTA ELASTICA | D37: 45 | G37: 97171 | H37: ASSENTAMENTO DE TUBO DE FERRO FUNDIDO PARA REDE DE ÁGUA, DN 1000 MM, JUNTA ELÁSTICA, INSTALADO EM LOCAL COM NÍVEL BAIXO DE INTERFERÊNCIAS (NÃO INCLUI FORNECIMENTO). AF_05/2024 | I37: M | J37: COEFICIENTE DE REPRESENTATIVIDADE | K37: 34.46 | L37: CAIXA REFERENCIAL
A38: ASSENTAMENTO DE TUBOS E PECAS | B38: ASTU | C38: FORNEC E/OU ASSENT DE TUBO DE FERRO FUNDIDO JUNTA ELASTICA | D38: 45 | G38: 97172 | H38: ASSENTAMENTO DE TUBO DE FERRO FUNDIDO PARA REDE DE ÁGUA, DN 1200 MM, JUNTA ELÁSTICA, INSTALADO EM LOCAL COM NÍVEL BAIXO DE INTERFERÊNCIAS (NÃO INCLUI FORNECIMENTO). AF_05/2024 | I38: M | J38: COEFICIENTE DE REPRESENTATIVIDADE | K38: 41.41 | L38: CAIXA REFERENCIAL
A39: ASSENTAMENTO DE TUBOS E PECAS | B39: ASTU | C39: FORNEC E/OU ASSENT DE TUBO DE FERRO FUNDIDO JUNTA ELASTICA | D39: 45 | G39: 105249 | H39: ASSENTAMENTO DE CONEXÃO 2 ACESSOS ALINHADOS DE FERRO FUNDIDO PARA REDE DE ÁGUA, DN 1200, JUNTA ELÁSTICA, INSTALADO EM LOCAL COM NÍVEL ALTO DE INTERFERÊNCIAS (NÃO INCLUI FORNECIMENTO). AF_05/2024 | I39: UN | J39: COEFICIENTE DE REPRESENTATIVIDADE | K39: 114.65 | L39: CAIXA REFERENCIAL
A40: ASSENTAMENTO DE TUBOS E PECAS | B40: ASTU | C40: FORNEC E/OU ASSENT DE TUBO DE FERRO FUNDIDO JUNTA ELASTICA | D40: 45 | G40: 105250 | H40: ASSENTAMENTO DE CONEXÃO 2 ACESSOS INCLINADOS DE FERRO FUNDIDO PARA REDE DE ÁGUA, DN 80, JUNTA ELÁSTICA, INSTALADO EM LOCAL COM NÍVEL ALTO DE INTERFERÊNCIAS (NÃO INCLUI FORNECIMENTO). AF_05/2024 | I40: UN | J40: COEFICIENTE DE REPRESENTATIVIDADE | K40: 15.64 | L40: CAIXA REFERENCIAL
A41: ASSENTAMENTO DE TUBOS E PECAS | B41: ASTU | C41: FORNEC E/OU ASSENT DE TUBO DE FERRO FUNDIDO JUNTA ELASTICA | D41: 45 | G41: 105251 | H41: ASSENTAMENTO DE CONEXÃO 2 ACESSOS INCLINADOS DE FERRO FUNDIDO PARA REDE DE ÁGUA, DN 100, JUNTA ELÁSTICA, INSTALADO EM LOCAL COM NÍVEL ALTO DE INTERFERÊNCIAS (NÃO INCLUI FORNECIMENTO). AF_05/2024 | I41: UN | J41: COEFICIENTE DE REPRESENTATIVIDADE | K41: 17.95 | L41: CAIXA REFERENCIAL
A42: ASSENTAMENTO DE TUBOS E PECAS | B42: ASTU | C42: FORNEC E/OU ASSENT DE TUBO DE FERRO FUNDIDO JUNTA ELASTICA | D42: 45 | G42: 105252 | H42: ASSENTAMENTO DE CONEXÃO 2 ACESSOS INCLINADOS DE FERRO FUNDIDO PARA REDE DE ÁGUA, DN 150, JUNTA ELÁSTICA, INSTALADO EM LOCAL COM NÍVEL ALTO DE INTERFERÊNCIAS (NÃO INCLUI FORNECIMENTO). AF_05/2024 | I42: UN | J42: COEFICIENTE DE REPRESENTATIVIDADE | K42: 23.64 | L42: CAIXA REFERENCIAL
A43: ASSENTAMENTO DE TUBOS E PECAS | B43: ASTU | C43: FORNEC E/OU ASSENT DE TUBO DE FERRO FUNDIDO JUNTA ELASTICA | D43: 45 | G43: 105253 | H43: ASSENTAMENTO DE CONEXÃO 2 ACESSOS INCLINADOS DE FERRO FUNDIDO PARA REDE DE ÁGUA, DN 200, JUNTA ELÁSTICA, INSTALADO EM LOCAL COM NÍVEL ALTO DE INTERFERÊNCIAS (NÃO INCLUI FORNECIMENTO). AF_05/2024 | I43: UN | J43: COEFICIENTE DE REPRESENTATIVIDADE | K43: 29.33 | L43: CAIXA REFERENCIAL
A44: ASSENTAMENTO DE TUBOS E PECAS | B44: ASTU | C44: FORNEC E/OU ASSENT DE TUBO DE FERRO FUNDIDO JUNTA ELASTICA | D44: 45 | G44: 105254 | H44: ASSENTAMENTO DE CONEXÃO 2 ACESSOS INCLINADOS DE FERRO FUNDIDO PARA REDE DE ÁGUA, DN 250, JUNTA ELÁSTICA, INSTALADO EM LOCAL COM NÍVEL ALTO DE INTERFERÊNCIAS (NÃO INCLUI FORNECIMENTO). AF_05/2024 | I44: UN | J44: COEFICIENTE DE REPRESENTATIVIDADE | K44: 35.18 | L44: CAIXA REFERENCIAL
A45: ASSENTAMENTO DE TUBOS E PECAS | B45: ASTU | C45: FORNEC E/OU ASSENT DE TUBO DE FERRO FUNDIDO JUNTA ELASTICA | D45: 45 | G45: 105255 | H45: ASSENTAMENTO DE CONEXÃO 2 ACESSOS INCLINADOS DE FERRO FUNDIDO PARA REDE DE ÁGUA, DN 300, JUNTA ELÁSTICA, INSTALADO EM LOCAL COM NÍVEL ALTO DE INTERFERÊNCIAS (NÃO INCLUI FORNECIMENTO). AF_05/2024 | I45: UN | J45: COEFICIENTE DE REPRESENTATIVIDADE | K45: 40.99 | L45: CAIXA REFERENCIAL
A46: ASSENTAMENTO DE TUBOS E PECAS | B46: ASTU | C46: FORNEC E/OU ASSENT DE TUBO DE FERRO FUNDIDO JUNTA ELASTICA | D46: 45 | G46: 105256 | H46: ASSENTAMENTO DE CONEXÃO 2 ACESSOS INCLINADOS DE FERRO FUNDIDO PARA REDE DE ÁGUA, DN 350, JUNTA ELÁSTICA, INSTALADO EM LOCAL COM NÍVEL ALTO DE INTERFERÊNCIAS (NÃO INCLUI FORNECIMENTO). AF_05/2024 | I46: UN | J46: COEFICIENTE DE REPRESENTATIVIDADE | K46: 46.81 | L46: CAIXA REFERENCIAL
A47: ASSENTAMENTO DE TUBOS E PECAS | B47: ASTU | C47: FORNEC E/OU ASSENT DE TUBO DE FERRO FUNDIDO JUNTA ELASTICA | D47: 45 | G47: 105257 | H47: ASSENTAMENTO DE CONEXÃO 2 ACESSOS INCLINADOS DE FERRO FUNDIDO PARA REDE DE ÁGUA, DN 400, JUNTA ELÁSTICA, INSTALADO EM LOCAL COM NÍVEL ALTO DE INTERFERÊNCIAS (NÃO INCLUI FORNECIMENTO). AF_05/2024 | I47: UN | J47: COEFICIENTE DE REPRESENTATIVIDADE | K47: 52.63 | L47: CAIXA REFERENCIAL
A48: ASSENTAMENTO DE TUBOS E PECAS | B48: ASTU | C48: FORNEC E/OU ASSENT DE TUBO DE FERRO FUNDIDO JUNTA ELASTICA | D48: 45 | G48: 105258 | H48: ASSENTAMENTO DE CONEXÃO 2 ACESSOS ALINHADOS DE FERRO FUNDIDO PARA REDE DE ÁGUA, DN 400, JUNTA ELÁSTICA, INSTALADO EM LOCAL COM NÍVEL BAIXO DE INTERFERÊNCIAS (NÃO INCLUI FORNECIMENTO). AF_05/2024 | I48: UN | J48: COEFICIENTE DE REPRESENTATIVIDADE | K48: 29.18 | L48: CAIXA REFERENCIAL
A49: ASSENTAMENTO DE TUBOS E PECAS | B49: ASTU | C49: FORNEC E/OU ASSENT DE TUBO DE FERRO FUNDIDO JUNTA ELASTICA | D49: 45 | G49: 105259 | H49: ASSENTAMENTO DE CONEXÃO 3 ACESSOS DE FERRO FUNDIDO PARA REDE DE ÁGUA, DN 100, JUNTA ELÁSTICA, INSTALADO EM LOCAL COM NÍVEL BAIXO DE INTERFERÊNCIAS (NÃO INCLUI FORNECIMENTO). AF_05/2024 | I49: UN | J49: COEFICIENTE DE REPRESENTATIVIDADE | K49: 18.88 | L49: CAIXA REFERENCIAL
A50: ASSENTAMENTO DE TUBOS E PECAS | B50: ASTU | C50: FORNEC E/OU ASSENT DE TUBO DE FERRO FUNDIDO JUNTA ELASTICA | D50: 45 | G50: 105261 | H50: ASSENTAMENTO DE CONEXÃO 2 ACESSOS ALINHADOS DE FERRO FUNDIDO PARA REDE DE ÁGUA, DN 450, JUNTA ELÁSTICA, INSTALADO EM LOCAL COM NÍVEL BAIXO DE INTERFERÊNCIAS (NÃO INCLUI FORNECIMENTO). AF_05/2024 | I50: UN | J50: COEFICIENTE DE REPRESENTATIVIDADE | K50: 32.63 | L50: CAIXA REFERENCIAL
A51: ASSENTAMENTO DE TUBOS E PECAS | B51: ASTU | C51: FORNEC E/OU ASSENT DE TUBO DE FERRO FUNDIDO JUNTA ELASTICA | D51: 45 | G51: 105262 | H51: ASSENTAMENTO DE CONEXÃO 2 ACESSOS ALINHADOS DE FERRO FUNDIDO PARA REDE DE ÁGUA, DN 500, JUNTA ELÁSTICA, INSTALADO EM LOCAL COM NÍVEL BAIXO DE INTERFERÊNCIAS (NÃO INCLUI FORNECIMENTO). AF_05/2024 | I51: UN | J51: COEFICIENTE DE REPRESENTATIVIDADE | K51: 39.92 | L51: CAIXA REFERENCIAL
A52: ASSENTAMENTO DE TUBOS E PECAS | B52: ASTU | C52: FORNEC E/OU ASSENT DE TUBO DE FERRO FUNDIDO JUNTA ELASTICA | D52: 45 | G52: 105263 | H52: ASSENTAMENTO DE CONEXÃO 2 ACESSOS ALINHADOS DE FERRO FUNDIDO PARA REDE DE ÁGUA, DN 600, JUNTA ELÁSTICA, INSTALADO EM LOCAL COM NÍVEL BAIXO DE INTERFERÊNCIAS (NÃO INCLUI FORNECIMENTO). AF_05/2024 | I52: UN | J52: COEFICIENTE DE REPRESENTATIVIDADE | K52: 47.41 | L52: CAIXA REFERENCIAL
A53: ASSENTAMENTO DE TUBOS E PECAS | B53: ASTU | C53: FORNEC E/OU ASSENT DE TUBO DE FERRO FUNDIDO JUNTA ELASTICA | D53: 45 | G53: 105264 | H53: ASSENTAMENTO DE CONEXÃO 2 ACESSOS ALINHADOS DE FERRO FUNDIDO PARA REDE DE ÁGUA, DN 700, JUNTA ELÁSTICA, INSTALADO EM LOCAL COM NÍVEL BAIXO DE INTERFERÊNCIAS (NÃO INCLUI FORNECIMENTO). AF_05/2024 | I53: UN | J53: COEFICIENTE DE REPRESENTATIVIDADE | K53: 54.19 | L53: CAIXA REFERENCIAL
A54: ASSENTAMENTO DE TUBOS E PECAS | B54: ASTU | C54: FORNEC E/OU ASSENT DE TUBO DE FERRO FUNDIDO JUNTA ELASTICA | D54: 45 | G54: 105265 | H54: ASSENTAMENTO DE CONEXÃO 2 ACESSOS ALINHADOS DE FERRO FUNDIDO PARA REDE DE ÁGUA, DN 800, JUNTA ELÁSTICA, INSTALADO EM LOCAL COM NÍVEL BAIXO DE INTERFERÊNCIAS (NÃO INCLUI FORNECIMENTO). AF_05/2024 | I54: UN | J54: COEFICIENTE DE REPRESENTATIVIDADE | K54: 61.24 | L54: CAIXA REFERENCIAL
A55: ASSENTAMENTO DE TUBOS E PECAS | B55: ASTU | C55: FORNEC E/OU ASSENT DE TUBO DE FERRO FUNDIDO JUNTA ELASTICA | D55: 45 | G55: 105266 | H55: ASSENTAMENTO DE CONEXÃO 2 ACESSOS ALINHADOS DE FERRO FUNDIDO PARA REDE DE ÁGUA, DN 900, JUNTA ELÁSTICA, INSTALADO EM LOCAL COM NÍVEL BAIXO DE INTERFERÊNCIAS (NÃO INCLUI FORNECIMENTO). AF_05/2024 | I55: UN | J55: COEFICIENTE DE REPRESENTATIVIDADE | K55: 68.47 | L55: CAIXA REFERENCIAL
A56: ASSENTAMENTO DE TUBOS E PECAS | B56: ASTU | C56: FORNEC E/OU ASSENT DE TUBO DE FERRO FUNDIDO JUNTA ELASTICA | D56: 45 | G56: 105267 | H56: ASSENTAMENTO DE CONEXÃO 2 ACESSOS ALINHADOS DE FERRO FUNDIDO PARA REDE DE ÁGUA, DN 1000, JUNTA ELÁSTICA, INSTALADO EM LOCAL COM NÍVEL BAIXO DE INTERFERÊNCIAS (NÃO INCLUI FORNECIMENTO). AF_05/2024 | I56: UN | J56: COEFICIENTE DE REPRESENTATIVIDADE | K56: 75.82 | L56: CAIXA REFERENCIAL
A57: ASSENTAMENTO DE TUBOS E PECAS | B57: ASTU | C57: FORNEC E/OU ASSENT DE TUBO DE FERRO FUNDIDO JUNTA ELASTICA | D57: 45 | G57: 105268 | H57: ASSENTAMENTO DE CONEXÃO 2 ACESSOS ALINHADOS DE FERRO FUNDIDO PARA REDE DE ÁGUA, DN 1200, JUNTA ELÁSTICA, INSTALADO EM LOCAL COM NÍVEL BAIXO DE INTERFERÊNCIAS (NÃO INCLUI FORNECIMENTO). AF_05/2024 | I57: UN | J57: COEFICIENTE DE REPRESENTATIVIDADE | K57: 93.17 | L57: CAIXA REFERENCIAL
A58: ASSENTAMENTO DE TUBOS E PECAS | B58: ASTU | C58: FORNEC E/OU ASSENT DE TUBO DE FERRO FUNDIDO JUNTA ELASTICA | D58: 45 | G58: 105269 | H58: ASSENTAMENTO DE CONEXÃO 2 ACESSOS INCLINADOS DE FERRO FUNDIDO PARA REDE DE ÁGUA, DN 80, JUNTA ELÁSTICA, INSTALADO EM LOCAL COM NÍVEL BAIXO DE INTERFERÊNCIAS (NÃO INCLUI FORNECIMENTO). AF_05/2024 | I58: UN | J58: COEFICIENTE DE REPRESENTATIVIDADE | K58: 11.83 | L58: CAIXA REFERENCIAL
A59: ASSENTAMENTO DE TUBOS E PECAS | B59: ASTU | C59: FORNEC E/OU ASSENT DE TUBO DE FERRO FUNDIDO JUNTA ELASTICA | D59: 45 | G59: 105270 | H59: ASSENTAMENTO DE CONEXÃO 2 ACESSOS INCLINADOS DE FERRO FUNDIDO PARA REDE DE ÁGUA, DN 450, JUNTA ELÁSTICA, INSTALADO EM LOCAL COM NÍVEL ALTO DE INTERFERÊNCIAS (NÃO INCLUI FORNECIMENTO). AF_05/2024 | I59: UN | J59: COEFICIENTE DE REPRESENTATIVIDADE | K59: 58.57 | L59: CAIXA REFERENCIAL
A60: ASSENTAMENTO DE TUBOS E PECAS | B60: ASTU | C60: FORNEC E/OU ASSENT DE TUBO DE FERRO FUNDIDO JUNTA ELASTICA | D60: 45 | G60: 105271 | H60: ASSENTAMENTO DE CONEXÃO 2 ACESSOS INCLINADOS DE FERRO FUNDIDO PARA REDE DE ÁGUA, DN 500, JUNTA ELÁSTICA, INSTALADO EM LOCAL COM NÍVEL ALTO DE INTERFERÊNCIAS (NÃO INCLUI FORNECIMENTO). AF_05/2024 | I60: UN | J60: COEFICIENTE DE REPRESENTATIVIDADE | K60: 73.11 | L60: CAIXA REFERENCIAL
A61: ASSENTAMENTO DE TUBOS E PECAS | B61: ASTU | C61: FORNEC E/OU ASSENT DE TUBO DE FERRO FUNDIDO JUNTA ELASTICA | D61: 45 | G61: 105272 | H61: ASSENTAMENTO DE CONEXÃO 2 ACESSOS INCLINADOS DE FERRO FUNDIDO PARA REDE DE ÁGUA, DN 600, JUNTA ELÁSTICA, INSTALADO EM LOCAL COM NÍVEL ALTO DE INTERFERÊNCIAS (NÃO INCLUI FORNECIMENTO). AF_05/2024 | I61: UN | J61: COEFICIENTE DE REPRESENTATIVIDADE | K61: 86.28 | L61: CAIXA REFERENCIAL
A62: ASSENTAMENTO DE TUBOS E PECAS | B62: ASTU | C62: FORNEC E/OU ASSENT DE TUBO DE FERRO FUNDIDO JUNTA ELASTICA | D62: 45 | G62: 105273 | H62: ASSENTAMENTO DE CONEXÃO 2 ACESSOS INCLINADOS DE FERRO FUNDIDO PARA REDE DE ÁGUA, DN 700, JUNTA ELÁSTICA, INSTALADO EM LOCAL COM NÍVEL ALTO DE INTERFERÊNCIAS (NÃO INCLUI FORNECIMENTO). AF_05/2024 | I62: UN | J62: COEFICIENTE DE REPRESENTATIVIDADE | K62: 98.74 | L62: CAIXA REFERENCIAL
A63: ASSENTAMENTO DE TUBOS E PECAS | B63: ASTU | C63: FORNEC E/OU ASSENT DE TUBO DE FERRO FUNDIDO JUNTA ELASTICA | D63: 45 | G63: 105274 | H63: ASSENTAMENTO DE CONEXÃO 2 ACESSOS INCLINADOS DE FERRO FUNDIDO PARA REDE DE ÁGUA, DN 800, JUNTA ELÁSTICA, INSTALADO EM LOCAL COM NÍVEL ALTO DE INTERFERÊNCIAS (NÃO INCLUI FORNECIMENTO). AF_05/2024 | I63: UN | J63: COEFICIENTE DE REPRESENTATIVIDADE | K63: 111.49 | L63: CAIXA REFERENCIAL
A64: ASSENTAMENTO DE TUBOS E PECAS | B64: ASTU | C64: FORNEC E/OU ASSENT DE TUBO DE FERRO FUNDIDO JUNTA ELASTICA | D64: 45 | G64: 105275 | H64: ASSENTAMENTO DE CONEXÃO 2 ACESSOS INCLINADOS DE FERRO FUNDIDO PARA REDE DE ÁGUA, DN 900, JUNTA ELÁSTICA, INSTALADO EM LOCAL COM NÍVEL ALTO DE INTERFERÊNCIAS (NÃO INCLUI FORNECIMENTO). AF_05/2024 | I64: UN | J64: COEFICIENTE DE REPRESENTATIVIDADE | K64: 124.39 | L64: CAIXA REFERENCIAL
A65: ASSENTAMENTO DE TUBOS E PECAS | B65: ASTU | C65: FORNEC E/OU ASSENT DE TUBO DE FERRO FUNDIDO JUNTA ELASTICA | D65: 45 | G65: 105276 | H65: ASSENTAMENTO DE CONEXÃO 2 ACESSOS INCLINADOS DE FERRO FUNDIDO PARA REDE DE ÁGUA, DN 1000, JUNTA ELÁSTICA, INSTALADO EM LOCAL COM NÍVEL ALTO DE INTERFERÊNCIAS (NÃO INCLUI FORNECIMENTO). AF_05/2024 | I65: UN | J65: COEFICIENTE DE REPRESENTATIVIDADE | K65: 137.44 | L65: CAIXA REFERENCIAL
A66: ASSENTAMENTO DE TUBOS E PECAS | B66: ASTU | C66: FORNEC E/OU ASSENT DE TUBO DE FERRO FUNDIDO JUNTA ELASTICA | D66: 45 | G66: 105277 | H66: ASSENTAMENTO DE CONEXÃO 2 ACESSOS INCLINADOS DE FERRO FUNDIDO PARA REDE DE ÁGUA, DN 1200, JUNTA ELÁSTICA, INSTALADO EM LOCAL COM NÍVEL ALTO DE INTERFERÊNCIAS (NÃO INCLUI FORNECIMENTO). AF_05/2024 | I66: UN | J66: COEFICIENTE DE REPRESENTATIVIDADE | K66: 166.17 | L66: CAIXA REFERENCIAL
A67: ASSENTAMENTO DE TUBOS E PECAS | B67: ASTU | C67: FORNEC E/OU ASSENT DE TUBO DE FERRO FUNDIDO JUNTA ELASTICA | D67: 45 | G67: 105278 | H67: ASSENTAMENTO DE CONEXÃO 3 ACESSOS DE FERRO FUNDIDO PARA REDE DE ÁGUA, DN 80, JUNTA ELÁSTICA, INSTALADO EM LOCAL COM NÍVEL ALTO DE INTERFERÊNCIAS (NÃO INCLUI FORNECIMENTO). AF_05/2024 | I67: UN | J67: COEFICIENTE DE REPRESENTATIVIDADE | K67: 21.33 | L67: CAIXA REFERENCIAL
A68: ASSENTAMENTO DE TUBOS E PECAS | B68: ASTU | C68: FORNEC E/OU ASSENT DE TUBO DE FERRO FUNDIDO JUNTA ELASTICA | D68: 45 | G68: 105279 | H68: ASSENTAMENTO DE CONEXÃO 3 ACESSOS DE FERRO FUNDIDO PARA REDE DE ÁGUA, DN 100, JUNTA ELÁSTICA, INSTALADO EM LOCAL COM NÍVEL ALTO DE INTERFERÊNCIAS (NÃO INCLUI FORNECIMENTO). AF_05/2024 | I68: UN | J68: COEFICIENTE DE REPRESENTATIVIDADE | K68: 24.5 | L68: CAIXA REFERENCIAL
A69: ASSENTAMENTO DE TUBOS E PECAS | B69: ASTU | C69: FORNEC E/OU ASSENT DE TUBO DE FERRO FUNDIDO JUNTA ELASTICA | D69: 45 | G69: 105280 | H69: ASSENTAMENTO DE CONEXÃO 3 ACESSOS DE FERRO FUNDIDO PARA REDE DE ÁGUA, DN 150, JUNTA ELÁSTICA, INSTALADO EM LOCAL COM NÍVEL ALTO DE INTERFERÊNCIAS (NÃO INCLUI FORNECIMENTO). AF_05/2024 | I69: UN | J69: COEFICIENTE DE REPRESENTATIVIDADE | K69: 32.25 | L69: CAIXA REFERENCIAL
A70: ASSENTAMENTO DE TUBOS E PECAS | B70: ASTU | C70: FORNEC E/OU ASSENT DE TUBO DE FERRO FUNDIDO JUNTA ELASTICA | D70: 45 | G70: 105281 | H70: ASSENTAMENTO DE CONEXÃO 3 ACESSOS DE FERRO FUNDIDO PARA REDE DE ÁGUA, DN 200, JUNTA ELÁSTICA, INSTALADO EM LOCAL COM NÍVEL ALTO DE INTERFERÊNCIAS (NÃO INCLUI FORNECIMENTO). AF_05/2024 | I70: UN | J70: COEFICIENTE DE REPRESENTATIVIDADE | K70: 39.99 | L70: CAIXA REFERENCIAL
A71: ASSENTAMENTO DE TUBOS E PECAS | B71: ASTU | C71: FORNEC E/OU ASSENT DE TUBO DE FERRO FUNDIDO JUNTA ELASTICA | D71: 45 | G71: 105282 | H71: ASSENTAMENTO DE CONEXÃO 2 ACESSOS INCLINADOS DE FERRO FUNDIDO PARA REDE DE ÁGUA, DN 100, JUNTA ELÁSTICA, INSTALADO EM LOCAL COM NÍVEL BAIXO DE INTERFERÊNCIAS (NÃO INCLUI FORNECIMENTO). AF_05/2024 | I71: UN | J71: COEFICIENTE DE REPRESENTATIVIDADE | K71: 13.74 | L71: CAIXA REFERENCIAL
A72: ASSENTAMENTO DE TUBOS E PECAS | B72: ASTU | C72: FORNEC E/OU ASSENT DE TUBO DE FERRO FUNDIDO JUNTA ELASTICA | D72: 45 | G72: 105283 | H72: ASSENTAMENTO DE CONEXÃO 3 ACESSOS DE FERRO FUNDIDO PARA REDE DE ÁGUA, DN 150, JUNTA ELÁSTICA, INSTALADO EM LOCAL COM NÍVEL BAIXO DE INTERFERÊNCIAS (NÃO INCLUI FORNECIMENTO). AF_05/2024 | I72: UN | J72: COEFICIENTE DE REPRESENTATIVIDADE | K72: 25.29 | L72: CAIXA REFERENCIAL
A73: ASSENTAMENTO DE TUBOS E PECAS | B73: ASTU | C73: FORNEC E/OU ASSENT DE TUBO DE FERRO FUNDIDO JUNTA ELASTICA | D73: 45 | G73: 105284 | H73: ASSENTAMENTO DE CONEXÃO 3 ACESSOS DE FERRO FUNDIDO PARA REDE DE ÁGUA, DN 250, JUNTA ELÁSTICA, INSTALADO EM LOCAL COM NÍVEL ALTO DE INTERFERÊNCIAS (NÃO INCLUI FORNECIMENTO). AF_05/2024 | I73: UN | J73: COEFICIENTE DE REPRESENTATIVIDADE | K73: 48.06 | L73: CAIXA REFERENCIAL
A74: ASSENTAMENTO DE TUBOS E PECAS | B74: ASTU | C74: FORNEC E/OU ASSENT DE TUBO DE FERRO FUNDIDO JUNTA ELASTICA | D74: 45 | G74: 105297 | H74: ASSENTAMENTO DE CONEXÃO 2 ACESSOS ALINHADOS DE FERRO FUNDIDO PARA REDE DE ÁGUA, DN 80, JUNTA ELÁSTICA, INSTALADO EM LOCAL COM NÍVEL ALTO DE INTERFERÊNCIAS (NÃO INCLUI FORNECIMENTO). AF_05/2024 | I74: UN | J74: COEFICIENTE DE REPRESENTATIVIDADE | K74: 10.66 | L74: CAIXA REFERENCIAL
A75: ASSENTAMENTO DE TUBOS E PECAS | B75: ASTU | C75: FORNEC E/OU ASSENT DE TUBO DE FERRO FUNDIDO JUNTA ELASTICA | D75: 45 | G75: 105298 | H75: ASSENTAMENTO DE CONEXÃO 2 ACESSOS INCLINADOS DE FERRO FUNDIDO PARA REDE DE ÁGUA, DN 150, JUNTA ELÁSTICA, INSTALADO EM LOCAL COM NÍVEL BAIXO DE INTERFERÊNCIAS (NÃO INCLUI FORNECIMENTO). AF_05/2024 | I75: UN | J75: COEFICIENTE DE REPRESENTATIVIDADE | K75: 18.41 | L75: CAIXA REFERENCIAL
A76: ASSENTAMENTO DE TUBOS E PECAS | B76: ASTU | C76: FORNEC E/OU ASSENT DE TUBO DE FERRO FUNDIDO JUNTA ELASTICA | D76: 45 | G76: 105299 | H76: ASSENTAMENTO DE CONEXÃO 2 ACESSOS INCLINADOS DE FERRO FUNDIDO PARA REDE DE ÁGUA, DN 200, JUNTA ELÁSTICA, INSTALADO EM LOCAL COM NÍVEL BAIXO DE INTERFERÊNCIAS (NÃO INCLUI FORNECIMENTO). AF_05/2024 | I76: UN | J76: COEFICIENTE DE REPRESENTATIVIDADE | K76: 23.08 | L76: CAIXA REFERENCIAL
A77: ASSENTAMENTO DE TUBOS E PECAS | B77: ASTU | C77: FORNEC E/OU ASSENT DE TUBO DE FERRO FUNDIDO JUNTA ELASTICA | D77: 45 | G77: 105300 | H77: ASSENTAMENTO DE CONEXÃO 2 ACESSOS INCLINADOS DE FERRO FUNDIDO PARA REDE DE ÁGUA, DN 250, JUNTA ELÁSTICA, INSTALADO EM LOCAL COM NÍVEL BAIXO DE INTERFERÊNCIAS (NÃO INCLUI FORNECIMENTO). AF_05/2024 | I77: UN | J77: COEFICIENTE DE REPRESENTATIVIDADE | K77: 27.91 | L77: CAIXA REFERENCIAL
A78: ASSENTAMENTO DE TUBOS E PECAS | B78: ASTU | C78: FORNEC E/OU ASSENT DE TUBO DE FERRO FUNDIDO JUNTA ELASTICA | D78: 45 | G78: 105301 | H78: ASSENTAMENTO DE CONEXÃO 2 ACESSOS INCLINADOS DE FERRO FUNDIDO PARA REDE DE ÁGUA, DN 300, JUNTA ELÁSTICA, INSTALADO EM LOCAL COM NÍVEL BAIXO DE INTERFERÊNCIAS (NÃO INCLUI FORNECIMENTO). AF_05/2024 | I78: UN | J78: COEFICIENTE DE REPRESENTATIVIDADE | K78: 32.72 | L78: CAIXA REFERENCIAL
A79: ASSENTAMENTO DE TUBOS E PECAS | B79: ASTU | C79: FORNEC E/OU ASSENT DE TUBO DE FERRO FUNDIDO JUNTA ELASTICA | D79: 45 | G79: 105302 | H79: ASSENTAMENTO DE CONEXÃO 2 ACESSOS INCLINADOS DE FERRO FUNDIDO PARA REDE DE ÁGUA, DN 350, JUNTA ELÁSTICA, INSTALADO EM LOCAL COM NÍVEL BAIXO DE INTERFERÊNCIAS (NÃO INCLUI FORNECIMENTO). AF_05/2024 | I79: UN | J79: COEFICIENTE DE REPRESENTATIVIDADE | K79: 37.54 | L79: CAIXA REFERENCIAL
A80: ASSENTAMENTO DE TUBOS E PECAS | B80: ASTU | C80: FORNEC E/OU ASSENT DE TUBO DE FERRO FUNDIDO JUNTA ELASTICA | D80: 45 | G80: 105303 | H80: ASSENTAMENTO DE CONEXÃO 2 ACESSOS INCLINADOS DE FERRO FUNDIDO PARA REDE DE ÁGUA, DN 400, JUNTA ELÁSTICA, INSTALADO EM LOCAL COM NÍVEL BAIXO DE INTERFERÊNCIAS (NÃO INCLUI FORNECIMENTO). AF_05/2024 | I80: UN | J80: COEFICIENTE DE REPRESENTATIVIDADE | K80: 42.34 | L80: CAIXA REFERENCIAL
A81: ASSENTAMENTO DE TUBOS E PECAS | B81: ASTU | C81: FORNEC E/OU ASSENT DE TUBO DE FERRO FUNDIDO JUNTA ELASTICA | D81: 45 | G81: 105304 | H81: ASSENTAMENTO DE CONEXÃO 2 ACESSOS INCLINADOS DE FERRO FUNDIDO PARA REDE DE ÁGUA, DN 450, JUNTA ELÁSTICA, INSTALADO EM LOCAL COM NÍVEL BAIXO DE INTERFERÊNCIAS (NÃO INCLUI FORNECIMENTO). AF_05/2024 | I81: UN | J81: COEFICIENTE DE REPRESENTATIVIDADE | K81: 47.27 | L81: CAIXA REFERENCIAL
A82: ASSENTAMENTO DE TUBOS E PECAS | B82: ASTU | C82: FORNEC E/OU ASSENT DE TUBO DE FERRO FUNDIDO JUNTA ELASTICA | D82: 45 | G82: 105305 | H82: ASSENTAMENTO DE CONEXÃO 2 ACESSOS INCLINADOS DE FERRO FUNDIDO PARA REDE DE ÁGUA, DN 500, JUNTA ELÁSTICA, INSTALADO EM LOCAL COM NÍVEL BAIXO DE INTERFERÊNCIAS (NÃO INCLUI FORNECIMENTO). AF_05/2024 | I82: UN | J82: COEFICIENTE DE REPRESENTATIVIDADE | K82: 58 | L82: CAIXA REFERENCIAL
A83: ASSENTAMENTO DE TUBOS E PECAS | B83: ASTU | C83: FORNEC E/OU ASSENT DE TUBO DE FERRO FUNDIDO JUNTA ELASTICA | D83: 45 | G83: 105306 | H83: ASSENTAMENTO DE CONEXÃO 2 ACESSOS INCLINADOS DE FERRO FUNDIDO PARA REDE DE ÁGUA, DN 600, JUNTA ELÁSTICA, INSTALADO EM LOCAL COM NÍVEL BAIXO DE INTERFERÊNCIAS (NÃO INCLUI FORNECIMENTO). AF_05/2024 | I83: UN | J83: COEFICIENTE DE REPRESENTATIVIDADE | K83: 68.72 | L83: CAIXA REFERENCIAL
A84: ASSENTAMENTO DE TUBOS E PECAS | B84: ASTU | C84: FORNEC E/OU ASSENT DE TUBO DE FERRO FUNDIDO JUNTA ELASTICA | D84: 45 | G84: 105307 | H84: ASSENTAMENTO DE CONEXÃO 2 ACESSOS INCLINADOS DE FERRO FUNDIDO PARA REDE DE ÁGUA, DN 700, JUNTA ELÁSTICA, INSTALADO EM LOCAL COM NÍVEL BAIXO DE INTERFERÊNCIAS (NÃO INCLUI FORNECIMENTO). AF_05/2024 | I84: UN | J84: COEFICIENTE DE REPRESENTATIVIDADE | K84: 78.75 | L84: CAIXA REFERENCIAL
A85: ASSENTAMENTO DE TUBOS E PECAS | B85: ASTU | C85: FORNEC E/OU ASSENT DE TUBO DE FERRO FUNDIDO JUNTA ELASTICA | D85: 45 | G85: 105317 | H85: ASSENTAMENTO DE CONEXÃO 2 ACESSOS ALINHADOS DE FERRO FUNDIDO PARA REDE DE ÁGUA, DN 300, JUNTA ELÁSTICA, INSTALADO EM LOCAL COM NÍVEL BAIXO DE INTERFERÊNCIAS (NÃO INCLUI FORNECIMENTO). AF_05/2024 | I85: UN | J85: COEFICIENTE DE REPRESENTATIVIDADE | K85: 22.5 | L85: CAIXA REFERENCIAL
A86: ASSENTAMENTO DE TUBOS E PECAS | B86: ASTU | C86: FORNEC E/OU ASSENT DE TUBO DE FERRO FUNDIDO JUNTA ELASTICA | D86: 45 | G86: 105318 | H86: ASSENTAMENTO DE CONEXÃO 2 ACESSOS ALINHADOS DE FERRO FUNDIDO PARA REDE DE ÁGUA, DN 350, JUNTA ELÁSTICA, INSTALADO EM LOCAL COM NÍVEL BAIXO DE INTERFERÊNCIAS (NÃO INCLUI FORNECIMENTO). AF_05/2024 | I86: UN | J86: COEFICIENTE DE REPRESENTATIVIDADE | K86: 25.84 | L86: CAIXA REFERENCIAL
A87: ASSENTAMENTO DE TUBOS E PECAS | B87: ASTU | C87: FORNEC E/OU ASSENT DE TUBO DE FERRO FUNDIDO JUNTA ELASTICA | D87: 45 | G87: 105319 | H87: ASSENTAMENTO DE CONEXÃO 3 ACESSOS DE FERRO FUNDIDO PARA REDE DE ÁGUA, DN 200, JUNTA ELÁSTICA, INSTALADO EM LOCAL COM NÍVEL BAIXO DE INTERFERÊNCIAS (NÃO INCLUI FORNECIMENTO). AF_05/2024 | I87: UN | J87: COEFICIENTE DE REPRESENTATIVIDADE | K87: 31.69 | L87: CAIXA REFERENCIAL
A88: ASSENTAMENTO DE TUBOS E PECAS | B88: ASTU | C88: FORNEC E/OU ASSENT DE TUBO DE FERRO FUNDIDO JUNTA ELASTICA | D88: 45 | G88: 105320 | H88: ASSENTAMENTO DE CONEXÃO 3 ACESSOS DE FERRO FUNDIDO PARA REDE DE ÁGUA, DN 250, JUNTA ELÁSTICA, INSTALADO EM LOCAL COM NÍVEL BAIXO DE INTERFERÊNCIAS (NÃO INCLUI FORNECIMENTO). AF_05/2024 | I88: UN | J88: COEFICIENTE DE REPRESENTATIVIDADE | K88: 38.39 | L88: CAIXA REFERENCIAL
A89: ASSENTAMENTO DE TUBOS E PECAS | B89: ASTU | C89: FORNEC E/OU ASSENT DE TUBO DE FERRO FUNDIDO JUNTA ELASTICA | D89: 45 | G89: 105321 | H89: ASSENTAMENTO DE CONEXÃO 3 ACESSOS DE FERRO FUNDIDO PARA REDE DE ÁGUA, DN 300, JUNTA ELÁSTICA, INSTALADO EM LOCAL COM NÍVEL BAIXO DE INTERFERÊNCIAS (NÃO INCLUI FORNECIMENTO). AF_05/2024 | I89: UN | J89: COEFICIENTE DE REPRESENTATIVIDADE | K89: 45.05 | L89: CAIXA REFERENCIAL
A90: ASSENTAMENTO DE TUBOS E PECAS | B90: ASTU | C90: FORNEC E/OU ASSENT DE TUBO DE FERRO FUNDIDO JUNTA ELASTICA | D90: 45 | G90: 105322 | H90: ASSENTAMENTO DE CONEXÃO 3 ACESSOS DE FERRO FUNDIDO PARA REDE DE ÁGUA, DN 350, JUNTA ELÁSTICA, INSTALADO EM LOCAL COM NÍVEL BAIXO DE INTERFERÊNCIAS (NÃO INCLUI FORNECIMENTO). AF_05/2024 | I90: UN | J90: COEFICIENTE DE REPRESENTATIVIDADE | K90: 51.72 | L90: CAIXA REFERENCIAL
A91: ASSENTAMENTO DE TUBOS E PECAS | B91: ASTU | C91: FORNEC E/OU ASSENT DE TUBO DE FERRO FUNDIDO JUNTA ELASTICA | D91: 45 | G91: 105323 | H91: ASSENTAMENTO DE CONEXÃO 3 ACESSOS DE FERRO FUNDIDO PARA REDE DE ÁGUA, DN 400, JUNTA ELÁSTICA, INSTALADO EM LOCAL COM NÍVEL BAIXO DE INTERFERÊNCIAS (NÃO INCLUI FORNECIMENTO). AF_05/2024 | I91: UN | J91: COEFICIENTE DE REPRESENTATIVIDADE | K91: 58.38 | L91: CAIXA REFERENCIAL
A92: ASSENTAMENTO DE TUBOS E PECAS | B92: ASTU | C92: FORNEC E/OU ASSENT DE TUBO DE FERRO FUNDIDO JUNTA ELASTICA | D92: 45 | G92: 105324 | H92: ASSENTAMENTO DE CONEXÃO 3 ACESSOS DE FERRO FUNDIDO PARA REDE DE ÁGUA, DN 450, JUNTA ELÁSTICA, INSTALADO EM LOCAL COM NÍVEL BAIXO DE INTERFERÊNCIAS (NÃO INCLUI FORNECIMENTO). AF_05/2024 | I92: UN | J92: COEFICIENTE DE REPRESENTATIVIDADE | K92: 65.29 | L92: CAIXA REFERENCIAL
A93: ASSENTAMENTO DE TUBOS E PECAS | B93: ASTU | C93: FORNEC E/OU ASSENT DE TUBO DE FERRO FUNDIDO JUNTA ELASTICA | D93: 45 | G93: 105325 | H93: ASSENTAMENTO DE CONEXÃO 3 ACESSOS DE FERRO FUNDIDO PARA REDE DE ÁGUA, DN 500, JUNTA ELÁSTICA, INSTALADO EM LOCAL COM NÍVEL BAIXO DE INTERFERÊNCIAS (NÃO INCLUI FORNECIMENTO). AF_05/2024 | I93: UN | J93: COEFICIENTE DE REPRESENTATIVIDADE | K93: 79.87 | L93: CAIXA REFERENCIAL
A94: ASSENTAMENTO DE TUBOS E PECAS | B94: ASTU | C94: FORNEC E/OU ASSENT DE TUBO DE FERRO FUNDIDO JUNTA ELASTICA | D94: 45 | G94: 105326 | H94: ASSENTAMENTO DE CONEXÃO 3 ACESSOS DE FERRO FUNDIDO PARA REDE DE ÁGUA, DN 600, JUNTA ELÁSTICA, INSTALADO EM LOCAL COM NÍVEL BAIXO DE INTERFERÊNCIAS (NÃO INCLUI FORNECIMENTO). AF_05/2024 | I94: UN | J94: COEFICIENTE DE REPRESENTATIVIDADE | K94: 94.84 | L94: CAIXA REFERENCIAL
A95: ASSENTAMENTO DE TUBOS E PECAS | B95: ASTU | C95: FORNEC E/OU ASSENT DE TUBO DE FERRO FUNDIDO JUNTA ELASTICA | D95: 45 | G95: 105340 | H95: ASSENTAMENTO DE CONEXÃO 2 ACESSOS INCLINADOS DE FERRO FUNDIDO PARA REDE DE ÁGUA, DN 800, JUNTA ELÁSTICA, INSTALADO EM LOCAL COM NÍVEL BAIXO DE INTERFERÊNCIAS (NÃO INCLUI FORNECIMENTO). AF_05/2024 | I95: UN | J95: COEFICIENTE DE REPRESENTATIVIDADE | K95: 89.05 | L95: CAIXA REFERENCIAL
A96: ASSENTAMENTO DE TUBOS E PECAS | B96: ASTU | C96: FORNEC E/OU ASSENT DE TUBO DE FERRO FUNDIDO JUNTA ELASTICA | D96: 45 | G96: 105341 | H96: ASSENTAMENTO DE CONEXÃO 2 ACESSOS INCLINADOS DE FERRO FUNDIDO PARA REDE DE ÁGUA, DN 1000, JUNTA ELÁSTICA, INSTALADO EM LOCAL COM NÍVEL BAIXO DE INTERFERÊNCIAS (NÃO INCLUI FORNECIMENTO). AF_05/2024 | I96: UN | J96: COEFICIENTE DE REPRESENTATIVIDADE | K96: 110.11 | L96: CAIXA REFERENCIAL
A97: ASSENTAMENTO DE TUBOS E PECAS | B97: ASTU | C97: FORNEC E/OU ASSENT DE TUBO DE FERRO FUNDIDO JUNTA ELASTICA | D97: 45 | G97: 105342 | H97: ASSENTAMENTO DE CONEXÃO 2 ACESSOS INCLINADOS DE FERRO FUNDIDO PARA REDE DE ÁGUA, DN 1200, JUNTA ELÁSTICA, INSTALADO EM LOCAL COM NÍVEL BAIXO DE INTERFERÊNCIAS (NÃO INCLUI FORNECIMENTO). AF_05/2024 | I97: UN | J97: COEFICIENTE DE REPRESENTATIVIDADE | K97: 133.96 | L97: CAIXA REFERENCIAL
A98: ASSENTAMENTO DE TUBOS E PECAS | B98: ASTU | C98: FORNEC E/OU ASSENT DE TUBO DE FERRO FUNDIDO JUNTA ELASTICA | D98: 45 | G98: 105343 | H98: ASSENTAMENTO DE CONEXÃO 3 ACESSOS DE FERRO FUNDIDO PARA REDE DE ÁGUA, DN 80, JUNTA ELÁSTICA, INSTALADO EM LOCAL COM NÍVEL BAIXO DE INTERFERÊNCIAS (NÃO INCLUI FORNECIMENTO). AF_05/2024 | I98: UN | J98: COEFICIENTE DE REPRESENTATIVIDADE | K98: 16.25 | L98: CAIXA REFERENCIAL
A99: ASSENTAMENTO DE TUBOS E PECAS | B99: ASTU | C99: FORNEC E/OU ASSENT DE TUBO DE FERRO FUNDIDO JUNTA ELASTICA | D99: 45 | G99: 105344 | H99: ASSENTAMENTO DE CONEXÃO 3 ACESSOS DE FERRO FUNDIDO PARA REDE DE ÁGUA, DN 700, JUNTA ELÁSTICA, INSTALADO EM LOCAL COM NÍVEL BAIXO DE INTERFERÊNCIAS (NÃO INCLUI FORNECIMENTO). AF_05/2024 | I99: UN | J99: COEFICIENTE DE REPRESENTATIVIDADE | K99: 108.4 | L99: CAIXA REFERENCIAL
A100: ASSENTAMENTO DE TUBOS E PECAS | B100: ASTU | C100: FORNEC E/OU ASSENT DE TUBO DE FERRO FUNDIDO JUNTA ELASTICA | D100: 45 | G100: 105345 | H100: ASSENTAMENTO DE CONEXÃO 3 ACESSOS DE FERRO FUNDIDO PARA REDE DE ÁGUA, DN 900, JUNTA ELÁSTICA, INSTALADO EM LOCAL COM NÍVEL BAIXO DE INTERFERÊNCIAS (NÃO INCLUI FORNECIMENTO). AF_05/2024 | I100: UN | J100: COEFICIENTE DE REPRESENTATIVIDADE | K100: 136.95 | L100: CAIXA REFERENCIAL
A101: ASSENTAMENTO DE TUBOS E PECAS | B101: ASTU | C101: FORNEC E/OU ASSENT DE TUBO DE FERRO FUNDIDO JUNTA ELASTICA | D101: 45 | G101: 105346 | H101: ASSENTAMENTO DE CONEXÃO 3 ACESSOS DE FERRO FUNDIDO PARA REDE DE ÁGUA, DN 1000, JUNTA ELÁSTICA, INSTALADO EM LOCAL COM NÍVEL BAIXO DE INTERFERÊNCIAS (NÃO INCLUI FORNECIMENTO). AF_05/2024 | I101: UN | J101: COEFICIENTE DE REPRESENTATIVIDADE | K101: 151.65 | L101: CAIXA REFERENCIAL
A102: ASSENTAMENTO DE TUBOS E PECAS | B102: ASTU | C102: FORNEC E/OU ASSENT DE TUBO DE FERRO FUNDIDO JUNTA ELASTICA | D102: 45 | G102: 105347 | H102: ASSENTAMENTO DE CONEXÃO 3 ACESSOS DE FERRO FUNDIDO PARA REDE DE ÁGUA, DN 1200, JUNTA ELÁSTICA, INSTALADO EM LOCAL COM NÍVEL BAIXO DE INTERFERÊNCIAS (NÃO INCLUI FORNECIMENTO). AF_05/2024 | I102: UN | J102: COEFICIENTE DE REPRESENTATIVIDADE | K102: 186.33 | L102: CAIXA REFERENCIAL
A103: ASSENTAMENTO DE TUBOS E PECAS | B103: ASTU | C103: FORNEC E/OU ASSENT DE TUBO DE FERRO FUNDIDO JUNTA ELASTICA | D103: 45 | G103: 105348 | H103: ASSENTAMENTO DE CONEXÃO 3 ACESSOS DE FERRO FUNDIDO PARA REDE DE ÁGUA, DN 300, JUNTA ELÁSTICA, INSTALADO EM LOCAL COM NÍVEL ALTO DE INTERFERÊNCIAS (NÃO INCLUI FORNECIMENTO). AF_05/2024 | I103: UN | J103: COEFICIENTE DE REPRESENTATIVIDADE | K103: 56.07 | L103: CAIXA REFERENCIAL
A104: ASSENTAMENTO DE TUBOS E PECAS | B104: ASTU | C104: FORNEC E/OU ASSENT DE TUBO DE FERRO FUNDIDO JUNTA ELASTICA | D104: 45 | G104: 105349 | H104: ASSENTAMENTO DE CONEXÃO 3 ACESSOS DE FERRO FUNDIDO PARA REDE DE ÁGUA, DN 350, JUNTA ELÁSTICA, INSTALADO EM LOCAL COM NÍVEL ALTO DE INTERFERÊNCIAS (NÃO INCLUI FORNECIMENTO). AF_05/2024 | I104: UN | J104: COEFICIENTE DE REPRESENTATIVIDADE | K104: 64.09 | L104: CAIXA REFERENCIAL
A105: ASSENTAMENTO DE TUBOS E PECAS | B105: ASTU | C105: FORNEC E/OU ASSENT DE TUBO DE FERRO FUNDIDO JUNTA ELASTICA | D105: 45 | G105: 105350 | H105: ASSENTAMENTO DE CONEXÃO 3 ACESSOS DE FERRO FUNDIDO PARA REDE DE ÁGUA, DN 400, JUNTA ELÁSTICA, INSTALADO EM LOCAL COM NÍVEL ALTO DE INTERFERÊNCIAS (NÃO INCLUI FORNECIMENTO). AF_05/2024 | I105: UN | J105: COEFICIENTE DE REPRESENTATIVIDADE | K105: 72.11 | L105: CAIXA REFERENCIAL
A106: ASSENTAMENTO DE TUBOS E PECAS | B106: ASTU | C106: FORNEC E/OU ASSENT DE TUBO DE FERRO FUNDIDO JUNTA ELASTICA | D106: 45 | G106: 105351 | H106: ASSENTAMENTO DE CONEXÃO 3 ACESSOS DE FERRO FUNDIDO PARA REDE DE ÁGUA, DN 450, JUNTA ELÁSTICA, INSTALADO EM LOCAL COM NÍVEL ALTO DE INTERFERÊNCIAS (NÃO INCLUI FORNECIMENTO). AF_05/2024 | I106: UN | J106: COEFICIENTE DE REPRESENTATIVIDADE | K106: 80.35 | L106: CAIXA REFERENCIAL
A107: ASSENTAMENTO DE TUBOS E PECAS | B107: ASTU | C107: FORNEC E/OU ASSENT DE TUBO DE FERRO FUNDIDO JUNTA ELASTICA | D107: 45 | G107: 105352 | H107: ASSENTAMENTO DE CONEXÃO 3 ACESSOS DE FERRO FUNDIDO PARA REDE DE ÁGUA, DN 500, JUNTA ELÁSTICA, INSTALADO EM LOCAL COM NÍVEL ALTO DE INTERFERÊNCIAS (NÃO INCLUI FORNECIMENTO). AF_05/2024 | I107: UN | J107: COEFICIENTE DE REPRESENTATIVIDADE | K107: 100.02 | L107: CAIXA REFERENCIAL
A108: ASSENTAMENTO DE TUBOS E PECAS | B108: ASTU | C108: FORNEC E/OU ASSENT DE TUBO DE FERRO FUNDIDO JUNTA ELASTICA | D108: 45 | G108: 105353 | H108: ASSENTAMENTO DE CONEXÃO 3 ACESSOS DE FERRO FUNDIDO PARA REDE DE ÁGUA, DN 600, JUNTA ELÁSTICA, INSTALADO EM LOCAL COM NÍVEL ALTO DE INTERFERÊNCIAS (NÃO INCLUI FORNECIMENTO). AF_05/2024 | I108: UN | J108: COEFICIENTE DE REPRESENTATIVIDADE | K108: 118.26 | L108: CAIXA REFERENCIAL
A109: ASSENTAMENTO DE TUBOS E PECAS | B109: ASTU | C109: FORNEC E/OU ASSENT DE TUBO DE FERRO FUNDIDO JUNTA ELASTICA | D109: 45 | G109: 105354 | H109: ASSENTAMENTO DE CONEXÃO 3 ACESSOS DE FERRO FUNDIDO PARA REDE DE ÁGUA, DN 700, JUNTA ELÁSTICA, INSTALADO EM LOCAL COM NÍVEL ALTO DE INTERFERÊNCIAS (NÃO INCLUI FORNECIMENTO). AF_05/2024 | I109: UN | J109: COEFICIENTE DE REPRESENTATIVIDADE | K109: 135.06 | L109: CAIXA REFERENCIAL
A110: ASSENTAMENTO DE TUBOS E PECAS | B110: ASTU | C110: FORNEC E/OU ASSENT DE TUBO DE FERRO FUNDIDO JUNTA ELASTICA | D110: 45 | G110: 105355 | H110: ASSENTAMENTO DE CONEXÃO 3 ACESSOS DE FERRO FUNDIDO PARA REDE DE ÁGUA, DN 800, JUNTA ELÁSTICA, INSTALADO EM LOCAL COM NÍVEL ALTO DE INTERFERÊNCIAS (NÃO INCLUI FORNECIMENTO). AF_05/2024 | I110: UN | J110: COEFICIENTE DE REPRESENTATIVIDADE | K110: 152.39 | L110: CAIXA REFERENCIAL
A111: ASSENTAMENTO DE TUBOS E PECAS | B111: ASTU | C111: FORNEC E/OU ASSENT DE TUBO DE FERRO FUNDIDO JUNTA ELASTICA | D111: 45 | G111: 105356 | H111: ASSENTAMENTO DE CONEXÃO 3 ACESSOS DE FERRO FUNDIDO PARA REDE DE ÁGUA, DN 900, JUNTA ELÁSTICA, INSTALADO EM LOCAL COM NÍVEL ALTO DE INTERFERÊNCIAS (NÃO INCLUI FORNECIMENTO). AF_05/2024 | I111: UN | J111: COEFICIENTE DE REPRESENTATIVIDADE | K111: 170.13 | L111: CAIXA REFERENCIAL
A112: ASSENTAMENTO DE TUBOS E PECAS | B112: ASTU | C112: FORNEC E/OU ASSENT DE TUBO DE FERRO FUNDIDO JUNTA ELASTICA | D112: 45 | G112: 105357 | H112: ASSENTAMENTO DE CONEXÃO 3 ACESSOS DE FERRO FUNDIDO PARA REDE DE ÁGUA, DN 1000, JUNTA ELÁSTICA, INSTALADO EM LOCAL COM NÍVEL ALTO DE INTERFERÊNCIAS (NÃO INCLUI FORNECIMENTO). AF_05/2024 | I112: UN | J112: COEFICIENTE DE REPRESENTATIVIDADE | K112: 188.09 | L112: CAIXA REFERENCIAL
A113: ASSENTAMENTO DE TUBOS E PECAS | B113: ASTU | C113: FORNEC E/OU ASSENT DE TUBO DE FERRO FUNDIDO JUNTA ELASTICA | D113: 45 | G113: 105358 | H113: ASSENTAMENTO DE CONEXÃO 3 ACESSOS DE FERRO FUNDIDO PARA REDE DE ÁGUA, DN 1200, JUNTA ELÁSTICA, INSTALADO EM LOCAL COM NÍVEL ALTO DE INTERFERÊNCIAS (NÃO INCLUI FORNECIMENTO). AF_05/2024 | I113: UN | J113: COEFICIENTE DE REPRESENTATIVIDADE | K113: 229.29 | L113: CAIXA REFERENCIAL
A114: ASSENTAMENTO DE TUBOS E PECAS | B114: ASTU | C114: FORNEC E/OU ASSENT DE TUBO DE FERRO FUNDIDO JUNTA ELASTICA | D114: 45 | G114: 105369 | H114: FORNECIMENTO E ASSENTAMENTO DE TE RANHURADO EM FERRO FUNDIDO, DN 80 (3") PARA REDE DE ÁGUA, INSTALADO EM LOCAL COM NÍVEL ALTO DE INTERFERÊNCIAS (INCLUI FORNECIMENTO). AF_05/2024 | I114: UN | J114: ATRIBUÍDO SÃO PAULO | K114: 69.72 | L114: CAIXA REFERENCIAL
A115: ASSENTAMENTO DE TUBOS E PECAS | B115: ASTU | C115: FORNEC E/OU ASSENT DE TUBO DE FERRO FUNDIDO JUNTA ELASTICA | D115: 45 | G115: 105377 | H115: FORNECIMENTO E ASSENTAMENTO DE CURVA 45 GRAUS RANHURADA EM FERRO FUNDIDO, DN 80 MM (3") PARA REDE DE ÁGUA, INSTALADO EM LOCAL COM NÍVEL ALTO DE INTERFERÊNCIAS (INCLUI FORNECIMENTO). AF_05/2024 | I115: UN | J115: ATRIBUÍDO SÃO PAULO | K115: 44.51 | L115: CAIXA REFERENCIAL
A116: ASSENTAMENTO DE TUBOS E PECAS | B116: ASTU | C116: FORNEC E/OU ASSENT DE TUBO DE FERRO FUNDIDO JUNTA ELASTICA | D116: 45 | G116: 105378 | H116: ASSENTAMENTO DE CONEXÃO 2 ACESSOS ALINHADOS DE FERRO FUNDIDO PARA REDE DE ÁGUA, DN 100, JUNTA ELÁSTICA, INSTALADO EM LOCAL COM NÍVEL ALTO DE INTERFERÊNCIAS (NÃO INCLUI FORNECIMENTO). AF_05/2024 | I116: UN | J116: COEFICIENTE DE REPRESENTATIVIDADE | K116: 12.24 | L116: CAIXA REFERENCIAL
A117: ASSENTAMENTO DE TUBOS E PECAS | B117: ASTU | C117: FORNEC E/OU ASSENT DE TUBO DE FERRO FUNDIDO JUNTA ELASTICA | D117: 45 | G117: 105379 | H117: ASSENTAMENTO DE CONEXÃO 2 ACESSOS ALINHADOS DE FERRO FUNDIDO PARA REDE DE ÁGUA, DN 150, JUNTA ELÁSTICA, INSTALADO EM LOCAL COM NÍVEL ALTO DE INTERFERÊNCIAS (NÃO INCLUI FORNECIMENTO). AF_05/2024 | I117: UN | J117: COEFICIENTE DE REPRESENTATIVIDADE | K117: 16.1 | L117: CAIXA REFERENCIAL
A118: ASSENTAMENTO DE TUBOS E PECAS | B118: ASTU | C118: FORNEC E/OU ASSENT DE TUBO DE FERRO FUNDIDO JUNTA ELASTICA | D118: 45 | G118: 105380 | H118: ASSENTAMENTO DE CONEXÃO 2 ACESSOS ALINHADOS DE FERRO FUNDIDO PARA REDE DE ÁGUA, DN 1000, JUNTA ELÁSTICA, INSTALADO EM LOCAL COM NÍVEL ALTO DE INTERFERÊNCIAS (NÃO INCLUI FORNECIMENTO). AF_05/2024 | I118: UN | J118: COEFICIENTE DE REPRESENTATIVIDADE | K118: 94.03 | L118: CAIXA REFERENCIAL
A119: ASSENTAMENTO DE TUBOS E PECAS | B119: ASTU | C119: FORNEC E/OU ASSENT DE TUBO DE FERRO FUNDIDO JUNTA ELASTICA | D119: 45 | G119: 105388 | H119: ASSENTAMENTO DE CONEXÃO 2 ACESSOS ALINHADOS DE FERRO FUNDIDO PARA REDE DE ÁGUA, DN 150, JUNTA ELÁSTICA, INSTALADO EM LOCAL COM NÍVEL BAIXO DE INTERFERÊNCIAS (NÃO INCLUI FORNECIMENTO). AF_05/2024 | I119: UN | J119: COEFICIENTE DE REPRESENTATIVIDADE | K119: 12.62 | L119: CAIXA REFERENCIAL
A120: ASSENTAMENTO DE TUBOS E PECAS | B120: ASTU | C120: FORNEC E/OU ASSENT DE TUBO DE FERRO FUNDIDO JUNTA ELASTICA | D120: 45 | G120: 105389 | H120: ASSENTAMENTO DE CONEXÃO 2 ACESSOS ALINHADOS DE FERRO FUNDIDO PARA REDE DE ÁGUA, DN 200, JUNTA ELÁSTICA, INSTALADO EM LOCAL COM NÍVEL BAIXO DE INTERFERÊNCIAS (NÃO INCLUI FORNECIMENTO). AF_05/2024 | I120: UN | J120: COEFICIENTE DE REPRESENTATIVIDADE | K120: 15.82 | L120: CAIXA REFERENCIAL
A121: ASSENTAMENTO DE TUBOS E PECAS | B121: ASTU | C121: FORNEC E/OU ASSENT DE TUBO DE FERRO FUNDIDO JUNTA ELASTICA | D121: 45 | G121: 105390 | H121: ASSENTAMENTO DE CONEXÃO 2 ACESSOS INCLINADOS DE FERRO FUNDIDO PARA REDE DE ÁGUA, DN 900, JUNTA ELÁSTICA, INSTALADO EM LOCAL COM NÍVEL BAIXO DE INTERFERÊNCIAS (NÃO INCLUI FORNECIMENTO). AF_05/2024 | I121: UN | J121: COEFICIENTE DE REPRESENTATIVIDADE | K121: 99.51 | L121: CAIXA REFERENCIAL
A122: ASSENTAMENTO DE TUBOS E PECAS | B122: ASTU | C122: FORNEC E/OU ASSENT DE TUBO DE FERRO FUNDIDO JUNTA ELASTICA | D122: 45 | G122: 105391 | H122: ASSENTAMENTO DE CONEXÃO 3 ACESSOS DE FERRO FUNDIDO PARA REDE DE ÁGUA, DN 800, JUNTA ELÁSTICA, INSTALADO EM LOCAL COM NÍVEL BAIXO DE INTERFERÊNCIAS (NÃO INCLUI FORNECIMENTO). AF_05/2024 | I122: UN | J122: COEFICIENTE DE REPRESENTATIVIDADE | K122: 122.48 | L122: CAIXA REFERENCIAL
A123: ASSENTAMENTO DE TUBOS E PECAS | B123: ASTU | C123: FORNEC E/OU ASSENT DE TUBO DE FERRO FUNDIDO JUNTA ELASTICA | D123: 45 | G123: 105392 | H123: ASSENTAMENTO DE CONEXÃO 2 ACESSOS ALINHADOS DE FERRO FUNDIDO PARA REDE DE ÁGUA, DN 200, JUNTA ELÁSTICA, INSTALADO EM LOCAL COM NÍVEL ALTO DE INTERFERÊNCIAS (NÃO INCLUI FORNECIMENTO). AF_05/2024 | I123: UN | J123: COEFICIENTE DE REPRESENTATIVIDADE | K123: 19.98 | L123: CAIXA REFERENCIAL
A124: ASSENTAMENTO DE TUBOS E PECAS | B124: ASTU | C124: FORNEC E/OU ASSENT DE TUBO DE FERRO FUNDIDO JUNTA ELASTICA | D124: 45 | G124: 105393 | H124: ASSENTAMENTO DE CONEXÃO 2 ACESSOS ALINHADOS DE FERRO FUNDIDO PARA REDE DE ÁGUA, DN 250, JUNTA ELÁSTICA, INSTALADO EM LOCAL COM NÍVEL ALTO DE INTERFERÊNCIAS (NÃO INCLUI FORNECIMENTO). AF_05/2024 | I124: UN | J124: COEFICIENTE DE REPRESENTATIVIDADE | K124: 24.01 | L124: CAIXA REFERENCIAL
A125: ASSENTAMENTO DE TUBOS E PECAS | B125: ASTU | C125: FORNEC E/OU ASSENT DE TUBO DE FERRO FUNDIDO JUNTA ELASTICA | D125: 45 | G125: 105394 | H125: ASSENTAMENTO DE CONEXÃO 2 ACESSOS ALINHADOS DE FERRO FUNDIDO PARA REDE DE ÁGUA, DN 300, JUNTA ELÁSTICA, INSTALADO EM LOCAL COM NÍVEL ALTO DE INTERFERÊNCIAS (NÃO INCLUI FORNECIMENTO). AF_05/2024 | I125: UN | J125: COEFICIENTE DE REPRESENTATIVIDADE | K125: 28.01 | L125: CAIXA REFERENCIAL
A126: ASSENTAMENTO DE TUBOS E PECAS | B126: ASTU | C126: FORNEC E/OU ASSENT DE TUBO DE FERRO FUNDIDO JUNTA ELASTICA | D126: 45 | G126: 105395 | H126: ASSENTAMENTO DE CONEXÃO 2 ACESSOS ALINHADOS DE FERRO FUNDIDO PARA REDE DE ÁGUA, DN 350, JUNTA ELÁSTICA, INSTALADO EM LOCAL COM NÍVEL ALTO DE INTERFERÊNCIAS (NÃO INCLUI FORNECIMENTO). AF_05/2024 | I126: UN | J126: COEFICIENTE DE REPRESENTATIVIDADE | K126: 32.03 | L126: CAIXA REFERENCIAL
A127: ASSENTAMENTO DE TUBOS E PECAS | B127: ASTU | C127: FORNEC E/OU ASSENT DE TUBO DE FERRO FUNDIDO JUNTA ELASTICA | D127: 45 | G127: 105396 | H127: ASSENTAMENTO DE CONEXÃO 2 ACESSOS ALINHADOS DE FERRO FUNDIDO PARA REDE DE ÁGUA, DN 400, JUNTA ELÁSTICA, INSTALADO EM LOCAL COM NÍVEL ALTO DE INTERFERÊNCIAS (NÃO INCLUI FORNECIMENTO). AF_05/2024 | I127: UN | J127: COEFICIENTE DE REPRESENTATIVIDADE | K127: 36.04 | L127: CAIXA REFERENCIAL
A128: ASSENTAMENTO DE TUBOS E PECAS | B128: ASTU | C128: FORNEC E/OU ASSENT DE TUBO DE FERRO FUNDIDO JUNTA ELASTICA | D128: 45 | G128: 105397 | H128: ASSENTAMENTO DE CONEXÃO 2 ACESSOS ALINHADOS DE FERRO FUNDIDO PARA REDE DE ÁGUA, DN 450, JUNTA ELÁSTICA, INSTALADO EM LOCAL COM NÍVEL ALTO DE INTERFERÊNCIAS (NÃO INCLUI FORNECIMENTO). AF_05/2024 | I128: UN | J128: COEFICIENTE DE REPRESENTATIVIDADE | K128: 40.15 | L128: CAIXA REFERENCIAL
A129: ASSENTAMENTO DE TUBOS E PECAS | B129: ASTU | C129: FORNEC E/OU ASSENT DE TUBO DE FERRO FUNDIDO JUNTA ELASTICA | D129: 45 | G129: 105398 | H129: ASSENTAMENTO DE CONEXÃO 2 ACESSOS ALINHADOS DE FERRO FUNDIDO PARA REDE DE ÁGUA, DN 500, JUNTA ELÁSTICA, INSTALADO EM LOCAL COM NÍVEL ALTO DE INTERFERÊNCIAS (NÃO INCLUI FORNECIMENTO). AF_05/2024 | I129: UN | J129: COEFICIENTE DE REPRESENTATIVIDADE | K129: 50 | L129: CAIXA REFERENCIAL
A130: ASSENTAMENTO DE TUBOS E PECAS | B130: ASTU | C130: FORNEC E/OU ASSENT DE TUBO DE FERRO FUNDIDO JUNTA ELASTICA | D130: 45 | G130: 105399 | H130: ASSENTAMENTO DE CONEXÃO 2 ACESSOS ALINHADOS DE FERRO FUNDIDO PARA REDE DE ÁGUA, DN 600, JUNTA ELÁSTICA, INSTALADO EM LOCAL COM NÍVEL ALTO DE INTERFERÊNCIAS (NÃO INCLUI FORNECIMENTO). AF_05/2024 | I130: UN | J130: COEFICIENTE DE REPRESENTATIVIDADE | K130: 59.11 | L130: CAIXA REFERENCIAL
A131: ASSENTAMENTO DE TUBOS E PECAS | B131: ASTU | C131: FORNEC E/OU ASSENT DE TUBO DE FERRO FUNDIDO JUNTA ELASTICA | D131: 45 | G131: 105400 | H131: ASSENTAMENTO DE CONEXÃO 2 ACESSOS ALINHADOS DE FERRO FUNDIDO PARA REDE DE ÁGUA, DN 700, JUNTA ELÁSTICA, INSTALADO EM LOCAL COM NÍVEL ALTO DE INTERFERÊNCIAS (NÃO INCLUI FORNECIMENTO). AF_05/2024 | I131: UN | J131: COEFICIENTE DE REPRESENTATIVIDADE | K131: 67.53 | L131: CAIXA REFERENCIAL
A132: ASSENTAMENTO DE TUBOS E PECAS | B132: ASTU | C132: FORNEC E/OU ASSENT DE TUBO DE FERRO FUNDIDO JUNTA ELASTICA | D132: 45 | G132: 105401 | H132: ASSENTAMENTO DE CONEXÃO 2 ACESSOS ALINHADOS DE FERRO FUNDIDO PARA REDE DE ÁGUA, DN 800, JUNTA ELÁSTICA, INSTALADO EM LOCAL COM NÍVEL ALTO DE INTERFERÊNCIAS (NÃO INCLUI FORNECIMENTO). AF_05/2024 | I132: UN | J132: COEFICIENTE DE REPRESENTATIVIDADE | K132: 76.19 | L132: CAIXA REFERENCIAL
A133: ASSENTAMENTO DE TUBOS E PECAS | B133: ASTU | C133: FORNEC E/OU ASSENT DE TUBO DE FERRO FUNDIDO JUNTA ELASTICA | D133: 45 | G133: 105402 | H133: ASSENTAMENTO DE CONEXÃO 2 ACESSOS ALINHADOS DE FERRO FUNDIDO PARA REDE DE ÁGUA, DN 900, JUNTA ELÁSTICA, INSTALADO EM LOCAL COM NÍVEL ALTO DE INTERFERÊNCIAS (NÃO INCLUI FORNECIMENTO). AF_05/2024 | I133: UN | J133: COEFICIENTE DE REPRESENTATIVIDADE | K133: 85.06 | L133: CAIXA REFERENCIAL
A134: ASSENTAMENTO DE TUBOS E PECAS | B134: ASTU | C134: FORNEC E/OU ASSENT DE TUBO DE ACO COM JUNTA SOLDADA | D134: 46 | G134: 97173 | H134: ASSENTAMENTO DE TUBO DE AÇO CARBONO PARA REDE DE ÁGUA, DN 600 MM (24"), JUNTA SOLDADA, INSTALADO EM LOCAL COM NÍVEL ALTO DE INTERFERÊNCIAS (NÃO INCLUI FORNECIMENTO). AF_05/2024 | I134: M | J134: COEFICIENTE DE REPRESENTATIVIDADE | K134: 46.22 | L134: CAIXA REFERENCIAL
A135: ASSENTAMENTO DE TUBOS E PECAS | B135: ASTU | C135: FORNEC E/OU ASSENT DE TUBO DE ACO COM JUNTA SOLDADA | D135: 46 | G135: 97174 | H135: ASSENTAMENTO DE TUBO DE AÇO CARBONO PARA REDE DE ÁGUA, DN 700 MM (28"), JUNTA SOLDADA, INSTALADO EM LOCAL COM NÍVEL ALTO DE INTERFERÊNCIAS (NÃO INCLUI FORNECIMENTO). AF_05/2024 | I135: M | J135: COEFICIENTE DE REPRESENTATIVIDADE | K135: 54.91 | L135: CAIXA REFERENCIAL
A136: ASSENTAMENTO DE TUBOS E PECAS | B136: ASTU | C136: FORNEC E/OU ASSENT DE TUBO DE ACO COM JUNTA SOLDADA | D136: 46 | G136: 97175 | H136: ASSENTAMENTO DE TUBO DE AÇO CARBONO PARA REDE DE ÁGUA, DN 800 MM (32"), JUNTA SOLDADA, INSTALADO EM LOCAL COM NÍVEL ALTO DE INTERFERÊNCIAS (NÃO INCLUI FORNECIMENTO). AF_05/2024 | I136: M | J136: COEFICIENTE DE REPRESENTATIVIDADE | K136: 63.59 | L136: CAIXA REFERENCIAL
A137: ASSENTAMENTO DE TUBOS E PECAS | B137: ASTU | C137: FORNEC E/OU ASSENT DE TUBO DE ACO COM JUNTA SOLDADA | D137: 46 | G137: 97176 | H137: ASSENTAMENTO DE TUBO DE AÇO CARBONO PARA REDE DE ÁGUA, DN 900 MM (36"), JUNTA SOLDADA, INSTALADO EM LOCAL COM NÍVEL ALTO DE INTERFERÊNCIAS (NÃO INCLUI FORNECIMENTO). AF_05/2024 | I137: M | J137: COEFICIENTE DE REPRESENTATIVIDADE | K137: 72.3 | L137: CAIXA REFERENCIAL
A138: ASSENTAMENTO DE TUBOS E PECAS | B138: ASTU | C138: FORNEC E/OU ASSENT DE TUBO DE ACO COM JUNTA SOLDADA | D138: 46 | G138: 97177 | H138: ASSENTAMENTO DE TUBO DE AÇO CARBONO PARA REDE DE ÁGUA, DN 1000 MM (40") OU DN 1100 MM (44"), JUNTA SOLDADA, INSTALADO EM LOCAL COM NÍVEL ALTO DE INTERFERÊNCIAS (NÃO INCLUI FORNECIMENTO). AF_05/2024 | I138: M | J138: COEFICIENTE DE REPRESENTATIVIDADE | K138: 80.97 | L138: CAIXA REFERENCIAL
A139: ASSENTAMENTO DE TUBOS E PECAS | B139: ASTU | C139: FORNEC E/OU ASSENT DE TUBO DE ACO COM JUNTA SOLDADA | D139: 46 | G139: 97178 | H139: ASSENTAMENTO DE TUBO DE AÇO CARBONO PARA REDE DE ÁGUA, DN 1200 MM (48") OU DN 1300 MM (52"), JUNTA SOLDADA, INSTALADO EM LOCAL COM NÍVEL ALTO DE INTERFERÊNCIAS (NÃO INCLUI FORNECIMENTO). AF_05/2024 | I139: M | J139: COEFICIENTE DE REPRESENTATIVIDADE | K139: 98.36 | L139: CAIXA REFERENCIAL
A140: ASSENTAMENTO DE TUBOS E PECAS | B140: ASTU | C140: FORNEC E/OU ASSENT DE TUBO DE ACO COM JUNTA SOLDADA | D140: 46 | G140: 97179 | H140: ASSENTAMENTO DE TUBO DE AÇO CARBONO PARA REDE DE ÁGUA, DN 1400 MM (56'') OU DN 1500 MM (60"), JUNTA SOLDADA, INSTALADO EM LOCAL COM NÍVEL ALTO DE INTERFERÊNCIAS (NÃO INCLUI FORNECIMENTO). AF_05/2024 | I140: M | J140: COEFICIENTE DE REPRESENTATIVIDADE | K140: 115.77 | L140: CAIXA REFERENCIAL
A141: ASSENTAMENTO DE TUBOS E PECAS | B141: ASTU | C141: FORNEC E/OU ASSENT DE TUBO DE ACO COM JUNTA SOLDADA | D141: 46 | G141: 97180 | H141: ASSENTAMENTO DE TUBO DE AÇO CARBONO PARA REDE DE ÁGUA, DN 1600 MM (64") OU DN 1700 MM (68"), JUNTA SOLDADA, INSTALADO EM LOCAL COM NÍVEL ALTO DE INTERFERÊNCIAS (NÃO INCLUI FORNECIMENTO). AF_05/2024 | I141: M | J141: COEFICIENTE DE REPRESENTATIVIDADE | K141: 133.13 | L141: CAIXA REFERENCIAL
A142: ASSENTAMENTO DE TUBOS E PECAS | B142: ASTU | C142: FORNEC E/OU ASSENT DE TUBO DE ACO COM JUNTA SOLDADA | D142: 46 | G142: 97181 | H142: ASSENTAMENTO DE TUBO DE AÇO CARBONO PARA REDE DE ÁGUA, DN 1800 MM (72") OU DN 1900 MM (76"), JUNTA SOLDADA, INSTALADO EM LOCAL COM NÍVEL ALTO DE INTERFERÊNCIAS (NÃO INCLUI FORNECIMENTO). AF_05/2024 | I142: M | J142: COEFICIENTE DE REPRESENTATIVIDADE | K142: 150.51 | L142: CAIXA REFERENCIAL
A143: ASSENTAMENTO DE TUBOS E PECAS | B143: ASTU | C143: FORNEC E/OU ASSENT DE TUBO DE ACO COM JUNTA SOLDADA | D143: 46 | G143: 97182 | H143: ASSENTAMENTO DE TUBO DE AÇO CARBONO PARA REDE DE ÁGUA, DN 2000 MM (80") OU DN 2100 MM (84"), JUNTA SOLDADA, INSTALADO EM LOCAL COM NÍVEL ALTO DE INTERFERÊNCIAS (NÃO INCLUI FORNECIMENTO). AF_05/2024 | I143: M | J143: COEFICIENTE DE REPRESENTATIVIDADE | K143: 171.63 | L143: CAIXA REFERENCIAL
A144: ASSENTAMENTO DE TUBOS E PECAS | B144: ASTU | C144: FORNEC E/OU ASSENT DE TUBO DE ACO COM JUNTA SOLDADA | D144: 46 | G144: 97183 | H144: ASSENTAMENTO DE TUBO DE AÇO CARBONO PARA REDE DE ÁGUA, DN 600 MM (24"), JUNTA SOLDADA, INSTALADO EM LOCAL COM NÍVEL BAIXO DE INTERFERÊNCIAS (NÃO INCLUI FORNECIMENTO). AF_05/2024 | I144: M | J144: COEFICIENTE DE REPRESENTATIVIDADE | K144: 41.59 | L144: CAIXA REFERENCIAL
A145: ASSENTAMENTO DE TUBOS E PECAS | B145: ASTU | C145: FORNEC E/OU ASSENT DE TUBO DE ACO COM JUNTA SOLDADA | D145: 46 | G145: 97184 | H145: ASSENTAMENTO DE TUBO DE AÇO CARBONO PARA REDE DE ÁGUA, DN 700 MM (28"), JUNTA SOLDADA, INSTALADO EM LOCAL COM NÍVEL BAIXO DE INTERFERÊNCIAS (NÃO INCLUI FORNECIMENTO). AF_05/2024 | I145: M | J145: COEFICIENTE DE REPRESENTATIVIDADE | K145: 49.48 | L145: CAIXA REFERENCIAL
A146: ASSENTAMENTO DE TUBOS E PECAS | B146: ASTU | C146: FORNEC E/OU ASSENT DE TUBO DE ACO COM JUNTA SOLDADA | D146: 46 | G146: 97185 | H146: ASSENTAMENTO DE TUBO DE AÇO CARBONO PARA REDE DE ÁGUA, DN 800 MM (32"), JUNTA SOLDADA, INSTALADO EM LOCAL COM NÍVEL BAIXO DE INTERFERÊNCIAS (NÃO INCLUI FORNECIMENTO). AF_05/2024 | I146: M | J146: COEFICIENTE DE REPRESENTATIVIDADE | K146: 57.36 | L146: CAIXA REFERENCIAL
A147: ASSENTAMENTO DE TUBOS E PECAS | B147: ASTU | C147: FORNEC E/OU ASSENT DE TUBO DE ACO COM JUNTA SOLDADA | D147: 46 | G147: 97186 | H147: ASSENTAMENTO DE TUBO DE AÇO CARBONO PARA REDE DE ÁGUA, DN 900 MM (36"), JUNTA SOLDADA, INSTALADO EM LOCAL COM NÍVEL BAIXO DE INTERFERÊNCIAS (NÃO INCLUI FORNECIMENTO). AF_05/2024 | I147: M | J147: COEFICIENTE DE REPRESENTATIVIDADE | K147: 65.28 | L147: CAIXA REFERENCIAL
A148: ASSENTAMENTO DE TUBOS E PECAS | B148: ASTU | C148: FORNEC E/OU ASSENT DE TUBO DE ACO COM JUNTA SOLDADA | D148: 46 | G148: 97187 | H148: ASSENTAMENTO DE TUBO DE AÇO CARBONO PARA REDE DE ÁGUA, DN 1000 MM (40") OU DN 1100 MM (44"), JUNTA SOLDADA, INSTALADO EM LOCAL COM NÍVEL BAIXO DE INTERFERÊNCIAS (NÃO INCLUI FORNECIMENTO). AF_05/2024 | I148: M | J148: COEFICIENTE DE REPRESENTATIVIDADE | K148: 73.16 | L148: CAIXA REFERENCIAL
A149: ASSENTAMENTO DE TUBOS E PECAS | B149: ASTU | C149: FORNEC E/OU ASSENT DE TUBO DE ACO COM JUNTA SOLDADA | D149: 46 | G149: 97188 | H149: ASSENTAMENTO DE TUBO DE AÇO CARBONO PARA REDE DE ÁGUA, DN 1200 MM (48") OU DN 1300 MM (52"), JUNTA SOLDADA, INSTALADO EM LOCAL COM NÍVEL BAIXO DE INTERFERÊNCIAS (NÃO INCLUI FORNECIMENTO). AF_05/2024 | I149: M | J149: COEFICIENTE DE REPRESENTATIVIDADE | K149: 88.97 | L149: CAIXA REFERENCIAL
A150: ASSENTAMENTO DE TUBOS E PECAS | B150: ASTU | C150: FORNEC E/OU ASSENT DE TUBO DE ACO COM JUNTA SOLDADA | D150: 46 | G150: 97189 | H150: ASSENTAMENTO DE TUBO DE AÇO CARBONO PARA REDE DE ÁGUA, DN 1400 MM (56'') OU DN 1500 MM (60"), JUNTA SOLDADA, INSTALADO EM LOCAL COM NÍVEL BAIXO DE INTERFERÊNCIAS (NÃO INCLUI FORNECIMENTO). AF_05/2024 | I150: M | J150: COEFICIENTE DE REPRESENTATIVIDADE | K150: 104.76 | L150: CAIXA REFERENCIAL
A151: ASSENTAMENTO DE TUBOS E PECAS | B151: ASTU | C151: FORNEC E/OU ASSENT DE TUBO DE ACO COM JUNTA SOLDADA | D151: 46 | G151: 97190 | H151: ASSENTAMENTO DE TUBO DE AÇO CARBONO PARA REDE DE ÁGUA, DN 1600 MM (64") OU DN 1700 MM (68"), JUNTA SOLDADA, INSTALADO EM LOCAL COM NÍVEL BAIXO DE INTERFERÊNCIAS (NÃO INCLUI FORNECIMENTO). AF_05/2024 | I151: M | J151: COEFICIENTE DE REPRESENTATIVIDADE | K151: 120.55 | L151: CAIXA REFERENCIAL
A152: ASSENTAMENTO DE TUBOS E PECAS | B152: ASTU | C152: FORNEC E/OU ASSENT DE TUBO DE ACO COM JUNTA SOLDADA | D152: 46 | G152: 97191 | H152: ASSENTAMENTO DE TUBO DE AÇO CARBONO PARA REDE DE ÁGUA, DN 1800 MM (72") OU DN 1900 MM (76"), JUNTA SOLDADA, INSTALADO EM LOCAL COM NÍVEL BAIXO DE INTERFERÊNCIAS (NÃO INCLUI FORNECIMENTO). AF_05/2024 | I152: M | J152: COEFICIENTE DE REPRESENTATIVIDADE | K152: 136.34 | L152: CAIXA REFERENCIAL
A153: ASSENTAMENTO DE TUBOS E PECAS | B153: ASTU | C153: FORNEC E/OU ASSENT DE TUBO DE ACO COM JUNTA SOLDADA | D153: 46 | G153: 97192 | H153: ASSENTAMENTO DE TUBO DE AÇO CARBONO PARA REDE DE ÁGUA, DN 2000 MM (80") OU DN 2100 MM (84"), JUNTA SOLDADA, INSTALADO EM LOCAL COM NÍVEL BAIXO DE INTERFERÊNCIAS (NÃO INCLUI FORNECIMENTO). AF_05/2024 | I153: M | J153: COEFICIENTE DE REPRESENTATIVIDADE | K153: 155.05 | L153: CAIXA REFERENCIAL
A154: ASSENTAMENTO DE TUBOS E PECAS | B154: ASTU | C154: FORNEC E/OU ASSENT DE TUBO DE PVC COM JUNTA ELASTICA | D154: 48 | G154: 90694 | H154: TUBO DE PVC PARA REDE COLETORA DE ESGOTO DE PAREDE MACIÇA, DN 100 MM, JUNTA ELÁSTICA - FORNECIMENTO E ASSENTAMENTO. AF_01/2021 | I154: M | J154: COEFICIENTE DE REPRESENTATIVIDADE | K154: 44.44 | L154: CAIXA REFERENCIAL
A155: ASSENTAMENTO DE TUBOS E PECAS | B155: ASTU | C155: FORNEC E/OU ASSENT DE TUBO DE PVC COM JUNTA ELASTICA | D155: 48 | G155: 90695 | H155: TUBO DE PVC PARA REDE COLETORA DE ESGOTO DE PAREDE MACIÇA, DN 150 MM, JUNTA ELÁSTICA - FORNECIMENTO E ASSENTAMENTO. AF_01/2021 | I155: M | J155: COEFICIENTE DE REPRESENTATIVIDADE | K155: 84.56 | L155: CAIXA REFERENCIAL
A156: ASSENTAMENTO DE TUBOS E PECAS | B156: ASTU | C156: FORNEC E/OU ASSENT DE TUBO DE PVC COM JUNTA ELASTICA | D156: 48 | G156: 90696 | H156: TUBO DE PVC PARA REDE COLETORA DE ESGOTO DE PAREDE MACIÇA, DN 200 MM, JUNTA ELÁSTICA - FORNECIMENTO E ASSENTAMENTO. AF_01/2021 | I156: M | J156: COEFICIENTE DE REPRESENTATIVIDADE | K156: 141.36 | L156: CAIXA REFERENCIAL
A157: ASSENTAMENTO DE TUBOS E PECAS | B157: ASTU | C157: FORNEC E/OU ASSENT DE TUBO DE PVC COM JUNTA ELASTICA | D157: 48 | G157: 90697 | H157: TUBO DE PVC PARA REDE COLETORA DE ESGOTO DE PAREDE MACIÇA, DN 250 MM, JUNTA ELÁSTICA - FORNECIMENTO E ASSENTAMENTO. AF_01/2021 | I157: M | J157: COEFICIENTE DE REPRESENTATIVIDADE | K157: 219.38 | L157: CAIXA REFERENCIAL
A158: ASSENTAMENTO DE TUBOS E PECAS | B158: ASTU | C158: FORNEC E/OU ASSENT DE TUBO DE PVC COM JUNTA ELASTICA | D158: 48 | G158: 90698 | H158: TUBO DE PVC PARA REDE COLETORA DE ESGOTO DE PAREDE MACIÇA, DN 300 MM, JUNTA ELÁSTICA, FORNECIMENTO E ASSENTAMENTO. AF_01/2021 | I158: M | J158: COEFICIENTE DE REPRESENTATIVIDADE | K158: 335.4 | L158: CAIXA REFERENCIAL
A159: ASSENTAMENTO DE TUBOS E PECAS | B159: ASTU | C159: FORNEC E/OU ASSENT DE TUBO DE PVC COM JUNTA ELASTICA | D159: 48 | G159: 90699 | H159: TUBO DE PVC PARA REDE COLETORA DE ESGOTO DE PAREDE MACIÇA, DN 350 MM, JUNTA ELÁSTICA - FORNECIMENTO E ASSENTAMENTO. AF_01/2021 | I159: M | J159: COEFICIENTE DE REPRESENTATIVIDADE | K159: 472.15 | L159: CAIXA REFERENCIAL
A160: ASSENTAMENTO DE TUBOS E PECAS | B160: ASTU | C160: FORNEC E/OU ASSENT DE TUBO DE PVC COM JUNTA ELASTICA | D160: 48 | G160: 90700 | H160: TUBO DE PVC PARA REDE COLETORA DE ESGOTO DE PAREDE MACIÇA, DN 400 MM, JUNTA ELÁSTICA FORNECIMENTO E ASSENTAMENTO. AF_01/2021 | I160: M | J160: COEFICIENTE DE REPRESENTATIVIDADE | K160: 552.05 | L160: CAIXA REFERENCIAL
A161: ASSENTAMENTO DE TUBOS E PECAS | B161: ASTU | C161: FORNEC E/OU ASSENT DE TUBO DE PVC COM JUNTA ELASTICA | D161: 48 | G161: 90701 | H161: TUBO DE PVC CORRUGADO DE DUPLA PAREDE PARA REDE COLETORA DE ESGOTO, DN 150 MM, JUNTA ELÁSTICA - FORNECIMENTO E ASSENTAMENTO. AF_01/2021 | I161: M | J161: COEFICIENTE DE REPRESENTATIVIDADE | K161: 66.37 | L161: CAIXA REFERENCIAL
A162: ASSENTAMENTO DE TUBOS E PECAS | B162: ASTU | C162: FORNEC E/OU ASSENT DE TUBO DE PVC COM JUNTA ELASTICA | D162: 48 | G162: 90702 | H162: TUBO DE PVC CORRUGADO DE DUPLA PAREDE PARA REDE COLETORA DE ESGOTO, DN 200 MM, JUNTA ELÁSTICA - FORNECIMENTO E ASSENTAMENTO. AF_01/2021 | I162: M | J162: COEFICIENTE DE REPRESENTATIVIDADE | K162: 109.98 | L162: CAIXA REFERENCIAL
A163: ASSENTAMENTO DE TUBOS E PECAS | B163: ASTU | C163: FORNEC E/OU ASSENT DE TUBO DE PVC COM JUNTA ELASTICA | D163: 48 | G163: 90703 | H163: TUBO DE PVC CORRUGADO DE DUPLA PAREDE PARA REDE COLETORA DE ESGOTO, DN 250 MM, JUNTA ELÁSTICA - FORNECIMENTO E ASSENTAMENTO. AF_01/2021 | I163: M | J163: COEFICIENTE DE REPRESENTATIVIDADE | K163: 172.4 | L163: CAIXA REFERENCIAL
A164: ASSENTAMENTO DE TUBOS E PECAS | B164: ASTU | C164: FORNEC E/OU ASSENT DE TUBO DE PVC COM JUNTA ELASTICA | D164: 48 | G164: 90704 | H164: TUBO DE PVC CORRUGADO DE DUPLA PAREDE PARA REDE COLETORA DE ESGOTO, DN 300 MM, JUNTA ELÁSTICA - FORNECIMENTO E ASSENTAMENTO. AF_01/2021 | I164: M | J164: COEFICIENTE DE REPRESENTATIVIDADE | K164: 256.32 | L164: CAIXA REFERENCIAL
A165: ASSENTAMENTO DE TUBOS E PECAS | B165: ASTU | C165: FORNEC E/OU ASSENT DE TUBO DE PVC COM JUNTA ELASTICA | D165: 48 | G165: 90705 | H165: TUBO DE PVC CORRUGADO DE DUPLA PAREDE PARA REDE COLETORA DE ESGOTO, DN 350 MM, JUNTA ELÁSTICA - FORNECIMENTO E ASSENTAMENTO. AF_01/2021 | I165: M | J165: COEFICIENTE DE REPRESENTATIVIDADE | K165: 335.01 | L165: CAIXA REFERENCIAL
A166: ASSENTAMENTO DE TUBOS E PECAS | B166: ASTU | C166: FORNEC E/OU ASSENT DE TUBO DE PVC COM JUNTA ELASTICA | D166: 48 | G166: 90706 | H166: TUBO DE PVC CORRUGADO DE DUPLA PAREDE PARA REDE COLETORA DE ESGOTO, DN 400 MM, JUNTA ELÁSTICA - FORNECIMENTO E ASSENTAMENTO. AF_01/2021 | I166: M | J166: COEFICIENTE DE REPRESENTATIVIDADE | K166: 444.77 | L166: CAIXA REFERENCIAL
A167: ASSENTAMENTO DE TUBOS E PECAS | B167: ASTU | C167: FORNEC E/OU ASSENT DE TUBO DE PVC COM JUNTA ELASTICA | D167: 48 | G167: 90708 | H167: TUBO DE PEAD CORRUGADO DE DUPLA PAREDE PARA REDE COLETORA DE ESGOTO, DN 600 MM, JUNTA ELÁSTICA INTEGRADA - FORNECIMENTO E ASSENTAMENTO. AF_01/2021 | I167: M | J167: COEFICIENTE DE REPRESENTATIVIDADE | K167: 759.29 | L167: CAIXA REFERENCIAL
A168: ASSENTAMENTO DE TUBOS E PECAS | B168: ASTU | C168: FORNEC E/OU ASSENT DE TUBO DE PVC COM JUNTA ELASTICA | D168: 48 | G168: 90724 | H168: JUNTA ARGAMASSADA ENTRE TUBO DN 100 MM E O POÇO DE VISITA/ CAIXA DE CONCRETO OU ALVENARIA EM REDES DE ESGOTO. AF_01/2021 | I168: UN | J168: COEFICIENTE DE REPRESENTATIVIDADE | K168: 22.8 | L168: CAIXA REFERENCIAL
A169: ASSENTAMENTO DE TUBOS E PECAS | B169: ASTU | C169: FORNEC E/OU ASSENT DE TUBO DE PVC COM JUNTA ELASTICA | D169: 48 | G169: 90725 | H169: JUNTA ARGAMASSADA ENTRE TUBO DN 150 MM E O POÇO DE VISITA/ CAIXA DE CONCRETO OU ALVENARIA EM REDES DE ESGOTO. AF_01/2021 | I169: UN | J169: COEFICIENTE DE REPRESENTATIVIDADE | K169: 28.08 | L169: CAIXA REFERENCIAL
A170: ASSENTAMENTO DE TUBOS E PECAS | B170: ASTU | C170: FORNEC E/OU ASSENT DE TUBO DE PVC COM JUNTA ELASTICA | D170: 48 | G170: 90726 | H170: JUNTA ARGAMASSADA ENTRE TUBO DN 200 MM E O POÇO/ CAIXA DE CONCRETO OU ALVENARIA EM REDES DE ESGOTO. AF_01/2021 | I170: UN | J170: COEFICIENTE DE REPRESENTATIVIDADE | K170: 33.42 | L170: CAIXA REFERENCIAL
A171: ASSENTAMENTO DE TUBOS E PECAS | B171: ASTU | C171: FORNEC E/OU ASSENT DE TUBO DE PVC COM JUNTA ELASTICA | D171: 48 | G171: 90727 | H171: JUNTA ARGAMASSADA ENTRE TUBO DN 250 MM E O POÇO DE VISITA/ CAIXA DE CONCRETO OU ALVENARIA EM REDES DE ESGOTO. AF_01/2021 | I171: UN | J171: COEFICIENTE DE REPRESENTATIVIDADE | K171: 38.7 | L171: CAIXA REFERENCIAL
A172: ASSENTAMENTO DE TUBOS E PECAS | B172: ASTU | C172: FORNEC E/OU ASSENT DE TUBO DE PVC COM JUNTA ELASTICA | D172: 48 | G172: 90728 | H172: JUNTA ARGAMASSADA ENTRE TUBO DN 300 MM E O POÇO DE VISITA/ CAIXA DE CONCRETO OU ALVENARIA EM REDES DE ESGOTO. AF_01/2021 | I172: UN | J172: COEFICIENTE DE REPRESENTATIVIDADE | K172: 43.99 | L172: CAIXA REFERENCIAL
A173: ASSENTAMENTO DE TUBOS E PECAS | B173: ASTU | C173: FORNEC E/OU ASSENT DE TUBO DE PVC COM JUNTA ELASTICA | D173: 48 | G173: 90729 | H173: JUNTA ARGAMASSADA ENTRE TUBO DN 350 MM E O POÇO DE VISITA/ CAIXA DE CONCRETO OU ALVENARIA EM REDES DE ESGOTO. AF_01/2021 | I173: UN | J173: COEFICIENTE DE REPRESENTATIVIDADE | K173: 49.26 | L173: CAIXA REFERENCIAL
A174: ASSENTAMENTO DE TUBOS E PECAS | B174: ASTU | C174: FORNEC E/OU ASSENT DE TUBO DE PVC COM JUNTA ELASTICA | D174: 48 | G174: 90730 | H174: JUNTA ARGAMASSADA ENTRE TUBO DN 400 MM E O POÇO DE VISITA/ CAIXA DE CONCRETO OU ALVENARIA EM REDES DE ESGOTO. AF_01/2021 | I174: UN | J174: COEFICIENTE DE REPRESENTATIVIDADE | K174: 54.54 | L174: CAIXA REFERENCIAL
A175: ASSENTAMENTO DE TUBOS E PECAS | B175: ASTU | C175: FORNEC E/OU ASSENT DE TUBO DE PVC COM JUNTA ELASTICA | D175: 48 | G175: 90731 | H175: JUNTA ARGAMASSADA ENTRE TUBO DN 450 MM E O POÇO DE VISITA/ CAIXA DE CONCRETO OU ALVENARIA EM REDES DE ESGOTO. AF_01/2021 | I175: UN | J175: COEFICIENTE DE REPRESENTATIVIDADE | K175: 59.81 | L175: CAIXA REFERENCIAL
A176: ASSENTAMENTO DE TUBOS E PECAS | B176: ASTU | C176: FORNEC E/OU ASSENT DE TUBO DE PVC COM JUNTA ELASTICA | D176: 48 | G176: 90732 | H176: JUNTA ARGAMASSADA ENTRE TUBO DN 600 MM E O POÇO DE VISITA/ CAIXA DE CONCRETO OU ALVENARIA EM REDES DE ESGOTO. AF_01/2021 | I176: UN | J176: COEFICIENTE DE REPRESENTATIVIDADE | K176: 75.65 | L176: CAIXA REFERENCIAL
A177: ASSENTAMENTO DE TUBOS E PECAS | B177: ASTU | C177: FORNEC E/OU ASSENT DE TUBO DE PVC COM JUNTA ELASTICA | D177: 48 | G177: 90733 | H177: ASSENTAMENTO DE TUBO DE PVC PARA REDE COLETORA DE ESGOTO DE PAREDE MACIÇA, DN 100 MM, JUNTA ELÁSTICA (NÃO INCLUI FORNECIMENTO). AF_01/2021 | I177: M | J177: COEFICIENTE DE REPRESENTATIVIDADE | K177: 3.18 | L177: CAIXA REFERENCIAL
A178: ASSENTAMENTO DE TUBOS E PECAS | B178: ASTU | C178: FORNEC E/OU ASSENT DE TUBO DE PVC COM JUNTA ELASTICA | D178: 48 | G178: 90734 | H178: ASSENTAMENTO DE TUBO DE PVC PARA REDE COLETORA DE ESGOTO DE PAREDE MACIÇA, DN 150 MM, JUNTA ELÁSTICA, (NÃO INCLUI FORNECIMENTO). AF_01/2021 | I178: M | J178: COEFICIENTE DE REPRESENTATIVIDADE | K178: 3.78 | L178: CAIXA REFERENCIAL
A179: ASSENTAMENTO DE TUBOS E PECAS | B179: ASTU | C179: FORNEC E/OU ASSENT DE TUBO DE PVC COM JUNTA ELASTICA | D179: 48 | G179: 90735 | H179: ASSENTAMENTO DE TUBO DE PVC PARA REDE COLETORA DE ESGOTO DE PAREDE MACIÇA, DN 200 MM, JUNTA ELÁSTICA (NÃO INCLUI FORNECIMENTO). AF_01/2021 | I179: M | J179: COEFICIENTE DE REPRESENTATIVIDADE | K179: 4.37 | L179: CAIXA REFERENCIAL
A180: ASSENTAMENTO DE TUBOS E PECAS | B180: ASTU | C180: FORNEC E/OU ASSENT DE TUBO DE PVC COM JUNTA ELASTICA | D180: 48 | G180: 90736 | H180: ASSENTAMENTO DE TUBO DE PVC PARA REDE COLETORA DE ESGOTO DE PAREDE MACIÇA, DN 250 MM, JUNTA ELÁSTICA (NÃO INCLUI FORNECIMENTO). AF_01/2021 | I180: M | J180: COEFICIENTE DE REPRESENTATIVIDADE | K180: 4.95 | L180: CAIXA REFERENCIAL
A181: ASSENTAMENTO DE TUBOS E PECAS | B181: ASTU | C181: FORNEC E/OU ASSENT DE TUBO DE PVC COM JUNTA ELASTICA | D181: 48 | G181: 90737 | H181: ASSENTAMENTO DE TUBO DE PVC PARA REDE COLETORA DE ESGOTO DE PAREDE MACIÇA, DN 300 MM, JUNTA ELÁSTICA (NÃO INCLUI FORNECIMENTO). AF_01/2021 | I181: M | J181: COEFICIENTE DE REPRESENTATIVIDADE | K181: 5.54 | L181: CAIXA REFERENCIAL
A182: ASSENTAMENTO DE TUBOS E PECAS | B182: ASTU | C182: FORNEC E/OU ASSENT DE TUBO DE PVC COM JUNTA ELASTICA | D182: 48 | G182: 90738 | H182: ASSENTAMENTO DE TUBO DE PVC PARA REDE COLETORA DE ESGOTO DE PAREDE MACIÇA, DN 350 MM, JUNTA ELÁSTICA (NÃO INCLUI FORNECIMENTO). AF_01/2021 | I182: M | J182: COEFICIENTE DE REPRESENTATIVIDADE | K182: 6.13 | L182: CAIXA REFERENCIAL
A183: ASSENTAMENTO DE TUBOS E PECAS | B183: ASTU | C183: FORNEC E/OU ASSENT DE TUBO DE PVC COM JUNTA ELASTICA | D183: 48 | G183: 90739 | H183: ASSENTAMENTO DE TUBO DE PVC PARA REDE COLETORA DE ESGOTO DE PAREDE MACIÇA, DN 400 MM, JUNTA ELÁSTICA (NÃO INCLUI FORNECIMENTO). AF_01/2021 | I183: M | J183: COEFICIENTE DE REPRESENTATIVIDADE | K183: 9.33 | L183: CAIXA REFERENCIAL
A184: ASSENTAMENTO DE TUBOS E PECAS | B184: ASTU | C184: FORNEC E/OU ASSENT DE TUBO DE PVC COM JUNTA ELASTICA | D184: 48 | G184: 90740 | H184: ASSENTAMENTO DE TUBO DE PVC CORRUGADO DE DUPLA PAREDE PARA REDE COLETORA DE ESGOTO, DN 150 MM, JUNTA ELÁSTICA (NÃO INCLUI FORNECIMENTO). AF_01/2021 | I184: M | J184: COEFICIENTE DE REPRESENTATIVIDADE | K184: 4.2 | L184: CAIXA REFERENCIAL
A185: ASSENTAMENTO DE TUBOS E PECAS | B185: ASTU | C185: FORNEC E/OU ASSENT DE TUBO DE PVC COM JUNTA ELASTICA | D185: 48 | G185: 90741 | H185: ASSENTAMENTO DE TUBO DE PVC CORRUGADO DE DUPLA PAREDE PARA REDE COLETORA DE ESGOTO, DN 200 MM, JUNTA ELÁSTICA (NÃO INCLUI FORNECIMENTO). AF_01/2021 | I185: M | J185: COEFICIENTE DE REPRESENTATIVIDADE | K185: 4.8 | L185: CAIXA REFERENCIAL
A186: ASSENTAMENTO DE TUBOS E PECAS | B186: ASTU | C186: FORNEC E/OU ASSENT DE TUBO DE PVC COM JUNTA ELASTICA | D186: 48 | G186: 90742 | H186: ASSENTAMENTO DE TUBO DE PVC CORRUGADO DE DUPLA PAREDE PARA REDE COLETORA DE ESGOTO, DN 250 MM, JUNTA ELÁSTICA (NÃO INCLUI FORNECIMENTO). AF_01/2021 | I186: M | J186: COEFICIENTE DE REPRESENTATIVIDADE | K186: 5.39 | L186: CAIXA REFERENCIAL
A187: ASSENTAMENTO DE TUBOS E PECAS | B187: ASTU | C187: FORNEC E/OU ASSENT DE TUBO DE PVC COM JUNTA ELASTICA | D187: 48 | G187: 90743 | H187: ASSENTAMENTO DE TUBO DE PVC CORRUGADO DE DUPLA PAREDE PARA REDE COLETORA DE ESGOTO, DN 300 MM, JUNTA ELÁSTICA (NÃO INCLUI FORNECIMENTO). AF_01/2021 | I187: M | J187: COEFICIENTE DE REPRESENTATIVIDADE | K187: 5.97 | L187: CAIXA REFERENCIAL
A188: ASSENTAMENTO DE TUBOS E PECAS | B188: ASTU | C188: FORNEC E/OU ASSENT DE TUBO DE PVC COM JUNTA ELASTICA | D188: 48 | G188: 90744 | H188: ASSENTAMENTO DE TUBO DE PVC CORRUGADO DE DUPLA PAREDE PARA REDE COLETORA DE ESGOTO, DN 350 MM, JUNTA ELÁSTICA (NÃO INCLUI FORNECIMENTO). AF_01/2021 | I188: M | J188: COEFICIENTE DE REPRESENTATIVIDADE | K188: 6.57 | L188: CAIXA REFERENCIAL
A189: ASSENTAMENTO DE TUBOS E PECAS | B189: ASTU | C189: FORNEC E/OU ASSENT DE TUBO DE PVC COM JUNTA ELASTICA | D189: 48 | G189: 90745 | H189: ASSENTAMENTO DE TUBO DE PVC CORRUGADO DE DUPLA PAREDE PARA REDE COLETORA DE ESGOTO, DN 400 MM, JUNTA ELÁSTICA (NÃO INCLUI FORNECIMENTO). AF_01/2021 | I189: M | J189: COEFICIENTE DE REPRESENTATIVIDADE | K189: 10.4 | L189: CAIXA REFERENCIAL
A190: ASSENTAMENTO DE TUBOS E PECAS | B190: ASTU | C190: FORNEC E/OU ASSENT DE TUBO DE PVC COM JUNTA ELASTICA | D190: 48 | G190: 90746 | H190: ASSENTAMENTO DE TUBO DE PEAD CORRUGADO DE DUPLA PAREDE PARA REDE COLETORA DE ESGOTO, DN 450 MM, JUNTA ELÁSTICA INTEGRADA (NÃO INCLUI FORNECIMENTO). AF_01/2021 | I190: M | J190: COEFICIENTE DE REPRESENTATIVIDADE | K190: 3.45 | L190: CAIXA REFERENCIAL
A191: ASSENTAMENTO DE TUBOS E PECAS | B191: ASTU | C191: FORNEC E/OU ASSENT DE TUBO DE PVC COM JUNTA ELASTICA | D191: 48 | G191: 90747 | H191: ASSENTAMENTO DE TUBO DE PEAD CORRUGADO DE DUPLA PAREDE PARA REDE COLETORA DE ESGOTO, DN 600 MM, JUNTA ELÁSTICA INTEGRADA (NÃO INCLUI FORNECIMENTO). AF_01/2021 | I191: M | J191: COEFICIENTE DE REPRESENTATIVIDADE | K191: 16.9 | L191: CAIXA REFERENCIAL
A192: ASSENTAMENTO DE TUBOS E PECAS | B192: ASTU | C192: FORNEC E/OU ASSENT DE TUBO DE PVC COM JUNTA ELASTICA | D192: 48 | G192: 94869 | H192: TUBO DE PEAD CORRUGADO DE DUPLA PAREDE PARA REDE COLETORA DE ESGOTO, DN 250 MM, JUNTA ELÁSTICA INTEGRADA - FORNECIMENTO E ASSENTAMENTO. AF_01/2021 | I192: M | J192: COEFICIENTE DE REPRESENTATIVIDADE | K192: 133.76 | L192: CAIXA REFERENCIAL
A193: ASSENTAMENTO DE TUBOS E PECAS | B193: ASTU | C193: FORNEC E/OU ASSENT DE TUBO DE PVC COM JUNTA ELASTICA | D193: 48 | G193: 94870 | H193: ASSENTAMENTO DE TUBO DE PEAD CORRUGADO DE DUPLA PAREDE PARA REDE COLETORA DE ESGOTO, DN 250 MM, JUNTA ELÁSTICA INTEGRADA (NÃO INCLUI FORNECIMENTO). AF_01/2021 | I193: M | J193: COEFICIENTE DE REPRESENTATIVIDADE | K193: 1.8 | L193: CAIXA REFERENCIAL
A194: ASSENTAMENTO DE TUBOS E PECAS | B194: ASTU | C194: FORNEC E/OU ASSENT DE TUBO DE PVC COM JUNTA ELASTICA | D194: 48 | G194: 94871 | H194: TUBO DE PEAD CORRUGADO DE DUPLA PAREDE PARA REDE COLETORA DE ESGOTO, DN 300 MM, JUNTA ELÁSTICA INTEGRADA - FORNECIMENTO E ASSENTAMENTO. AF_01/2021 | I194: M | J194: COEFICIENTE DE REPRESENTATIVIDADE | K194: 209.28 | L194: CAIXA REFERENCIAL
A195: ASSENTAMENTO DE TUBOS E PECAS | B195: ASTU | C195: FORNEC E/OU ASSENT DE TUBO DE PVC COM JUNTA ELASTICA | D195: 48 | G195: 94872 | H195: ASSENTAMENTO DE TUBO DE PEAD CORRUGADO DE DUPLA PAREDE PARA REDE COLETORA DE ESGOTO, DN 300 MM, JUNTA ELÁSTICA INTEGRADA (NÃO INCLUI FORNECIMENTO). AF_01/2021 | I195: M | J195: COEFICIENTE DE REPRESENTATIVIDADE | K195: 2.53 | L195: CAIXA REFERENCIAL
A196: ASSENTAMENTO DE TUBOS E PECAS | B196: ASTU | C196: FORNEC E/OU ASSENT DE TUBO DE PVC COM JUNTA ELASTICA | D196: 48 | G196: 94875 | H196: TUBO DE PEAD CORRUGADO DE DUPLA PAREDE PARA REDE COLETORA DE ESGOTO, DN 800 MM, JUNTA ELÁSTICA INTEGRADA - FORNECIMENTO E ASSENTAMENTO. AF_01/2021 | I196: M | J196: COEFICIENTE DE REPRESENTATIVIDADE | K196: 1232.9 | L196: CAIXA REFERENCIAL
A197: ASSENTAMENTO DE TUBOS E PECAS | B197: ASTU | C197: FORNEC E/OU ASSENT DE TUBO DE PVC COM JUNTA ELASTICA | D197: 48 | G197: 94876 | H197: ASSENTAMENTO DE TUBO DE PEAD CORRUGADO DE DUPLA PAREDE PARA REDE COLETORA DE ESGOTO, DN 800 MM, JUNTA ELÁSTICA INTEGRADA (NÃO INCLUI FORNECIMENTO). AF_01/2021 | I197: M | J197: COEFICIENTE DE REPRESENTATIVIDADE | K197: 28.25 | L197: CAIXA REFERENCIAL
A198: ASSENTAMENTO DE TUBOS E PECAS | B198: ASTU | C198: FORNEC E/OU ASSENT DE TUBO DE PVC COM JUNTA ELASTICA | D198: 48 | G198: 94878 | H198: ASSENTAMENTO DE TUBO DE PEAD CORRUGADO DE DUPLA PAREDE PARA REDE COLETORA DE ESGOTO, DN 900 MM, JUNTA ELÁSTICA INTEGRADA (NÃO INCLUI FORNECIMENTO). AF_01/2021 | I198: M | J198: COEFICIENTE DE REPRESENTATIVIDADE | K198: 32.69 | L198: CAIXA REFERENCIAL
A199: ASSENTAMENTO DE TUBOS E PECAS | B199: ASTU | C199: FORNEC E/OU ASSENT DE TUBO DE PVC COM JUNTA ELASTICA | D199: 48 | G199: 94879 | H199: TUBO DE PEAD CORRUGADO DE DUPLA PAREDE PARA REDE COLETORA DE ESGOTO, DN 1000 MM, JUNTA ELÁSTICA INTEGRADA - FORNECIMENTO E ASSENTAMENTO. AF_01/2021 | I199: M | J199: COEFICIENTE DE REPRESENTATIVIDADE | K199: 1897.81 | L199: CAIXA REFERENCIAL
A200: ASSENTAMENTO DE TUBOS E PECAS | B200: ASTU | C200: FORNEC E/OU ASSENT DE TUBO DE PVC COM JUNTA ELASTICA | D200: 48 | G200: 94880 | H200: ASSENTAMENTO DE TUBO DE PEAD CORRUGADO DE DUPLA PAREDE PARA REDE COLETORA DE ESGOTO, DN 1000 MM, JUNTA ELÁSTICA INTEGRADA (NÃO INCLUI FORNECIMENTO). AF_01/2021 | I200: M | J200: COEFICIENTE DE REPRESENTATIVIDADE | K200: 42.08 | L200: CAIXA REFERENCIAL
A201: ASSENTAMENTO DE TUBOS E PECAS | B201: ASTU | C201: FORNEC E/OU ASSENT DE TUBO DE PVC COM JUNTA ELASTICA | D201: 48 | G201: 94881 | H201: TUBO DE PEAD CORRUGADO DE DUPLA PAREDE PARA REDE COLETORA DE ESGOTO, DN 1200 MM, JUNTA ELÁSTICA INTEGRADA - FORNECIMENTO E ASSENTAMENTO. AF_01/2021 | I201: M | J201: COEFICIENTE DE REPRESENTATIVIDADE | K201: 2613.68 | L201: CAIXA REFERENCIAL
A202: ASSENTAMENTO DE TUBOS E PECAS | B202: ASTU | C202: FORNEC E/OU ASSENT DE TUBO DE PVC COM JUNTA ELASTICA | D202: 48 | G202: 94882 | H202: ASSENTAMENTO DE TUBO DE PEAD CORRUGADO DE DUPLA PAREDE PARA REDE COLETORA DE ESGOTO, DN 1200 MM, JUNTA ELÁSTICA INTEGRADA (NÃO INCLUI FORNECIMENTO). AF_01/2021 | I202: M | J202: COEFICIENTE DE REPRESENTATIVIDADE | K202: 48.93 | L202: CAIXA REFERENCIAL
... 7547 more rows

Sheet Ins SINAPI MG 09-2024 Desoner (hidden)
A1: PRECOS DE INSUMOS - BANCO NACIONAL
A3: MES DE COLETA: 09/2024
A4: LOCALIDADE: 1950 - BELO HORIZONTE
A5: ENCARGOS SOCIAIS (%) HORISTA 108,90 MENSALISTA 67,79
A7: CODIGO | B7: DESCRICAO DO INSUMO | C7: UNIDADE DE MEDIDA | D7: ORIGEM DO PRECO | E7: PRECO MEDIANO R$
A8: 38605 | B8: ABERTURA PARA ENCAIXE DE CUBA OU LAVATORIO EM BANCADA DE MARMORE/ GRANITO OU OUTRO TIPO DE PEDRA NATURAL | C8: UN | D8: CR | E8: 115.31
A9: 11270 | B9: ABRACADEIRA DE LATAO PARA FIXACAO DE CABO PARA-RAIO, DIMENSOES 32 X 24 X 24 MM | C9: UN | D9: CR | E9: 3.54
A10: 412 | B10: ABRACADEIRA DE NYLON PARA AMARRACAO DE CABOS, COMPRIMENTO DE *230* X *7,6* MM | C10: UN | D10: CR | E10: 1.02
A11: 414 | B11: ABRACADEIRA DE NYLON PARA AMARRACAO DE CABOS, COMPRIMENTO DE 100 X 2,5 MM | C11: UN | D11: CR | E11: 0.06
A12: 410 | B12: ABRACADEIRA DE NYLON PARA AMARRACAO DE CABOS, COMPRIMENTO DE 150 X *3,6* MM | C12: UN | D12: CR | E12: 0.15
A13: 411 | B13: ABRACADEIRA DE NYLON PARA AMARRACAO DE CABOS, COMPRIMENTO DE 200 X *4,6* MM | C13: UN | D13: C | E13: 0.2
A14: 408 | B14: ABRACADEIRA DE NYLON PARA AMARRACAO DE CABOS, COMPRIMENTO DE 390 X *4,6* MM | C14: UN | D14: CR | E14: 0.99
A15: 39131 | B15: ABRACADEIRA EM ACO PARA AMARRACAO DE ELETRODUTOS, TIPO D, COM 1 1/2" E CUNHA DE FIXACAO | C15: UN | D15: CR | E15: 3.11
A16: 394 | B16: ABRACADEIRA EM ACO PARA AMARRACAO DE ELETRODUTOS, TIPO D, COM 1 1/2" E PARAFUSO DE FIXACAO | C16: UN | D16: CR | E16: 3.15
A17: 39130 | B17: ABRACADEIRA EM ACO PARA AMARRACAO DE ELETRODUTOS, TIPO D, COM 1 1/4" E CUNHA DE FIXACAO | C17: UN | D17: CR | E17: 2.84
A18: 395 | B18: ABRACADEIRA EM ACO PARA AMARRACAO DE ELETRODUTOS, TIPO D, COM 1 1/4" E PARAFUSO DE FIXACAO | C18: UN | D18: CR | E18: 3.03
A19: 39127 | B19: ABRACADEIRA EM ACO PARA AMARRACAO DE ELETRODUTOS, TIPO D, COM 1/2" E CUNHA DE FIXACAO | C19: UN | D19: CR | E19: 1.49
A20: 392 | B20: ABRACADEIRA EM ACO PARA AMARRACAO DE ELETRODUTOS, TIPO D, COM 1/2" E PARAFUSO DE FIXACAO | C20: UN | D20: CR | E20: 1.53
A21: 39129 | B21: ABRACADEIRA EM ACO PARA AMARRACAO DE ELETRODUTOS, TIPO D, COM 1" E CUNHA DE FIXACAO | C21: UN | D21: CR | E21: 1.75
A22: 393 | B22: ABRACADEIRA EM ACO PARA AMARRACAO DE ELETRODUTOS, TIPO D, COM 1" E PARAFUSO DE FIXACAO | C22: UN | D22: C | E22: 1.83
A23: 39133 | B23: ABRACADEIRA EM ACO PARA AMARRACAO DE ELETRODUTOS, TIPO D, COM 2 1/2" E CUNHA DE FIXACAO | C23: UN | D23: CR | E23: 4.08
A24: 397 | B24: ABRACADEIRA EM ACO PARA AMARRACAO DE ELETRODUTOS, TIPO D, COM 2 1/2" E PARAFUSO DE FIXACAO | C24: UN | D24: CR | E24: 4.51
A25: 39132 | B25: ABRACADEIRA EM ACO PARA AMARRACAO DE ELETRODUTOS, TIPO D, COM 2" E CUNHA DE FIXACAO | C25: UN | D25: CR | E25: 3.27
A26: 396 | B26: ABRACADEIRA EM ACO PARA AMARRACAO DE ELETRODUTOS, TIPO D, COM 2" E PARAFUSO DE FIXACAO | C26: UN | D26: CR | E26: 3.5
A27: 39135 | B27: ABRACADEIRA EM ACO PARA AMARRACAO DE ELETRODUTOS, TIPO D, COM 3 1/2" E CUNHA DE FIXACAO | C27: UN | D27: CR | E27: 6.54
A28: 39128 | B28: ABRACADEIRA EM ACO PARA AMARRACAO DE ELETRODUTOS, TIPO D, COM 3/4" E CUNHA DE FIXACAO | C28: UN | D28: CR | E28: 1.63
A29: 400 | B29: ABRACADEIRA EM ACO PARA AMARRACAO DE ELETRODUTOS, TIPO D, COM 3/4" E PARAFUSO DE FIXACAO | C29: UN | D29: CR | E29: 1.59
A30: 39125 | B30: ABRACADEIRA EM ACO PARA AMARRACAO DE ELETRODUTOS, TIPO D, COM 3/8" E PARAFUSO DE FIXACAO | C30: UN | D30: CR | E30: 1.63
A31: 39134 | B31: ABRACADEIRA EM ACO PARA AMARRACAO DE ELETRODUTOS, TIPO D, COM 3" E CUNHA DE FIXACAO | C31: UN | D31: CR | E31: 5.45
A32: 398 | B32: ABRACADEIRA EM ACO PARA AMARRACAO DE ELETRODUTOS, TIPO D, COM 3" E PARAFUSO DE FIXACAO | C32: UN | D32: CR | E32: 5.02
A33: 39126 | B33: ABRACADEIRA EM ACO PARA AMARRACAO DE ELETRODUTOS, TIPO D, COM 4" E CUNHA DE FIXACAO | C33: UN | D33: CR | E33: 7.35
A34: 399 | B34: ABRACADEIRA EM ACO PARA AMARRACAO DE ELETRODUTOS, TIPO D, COM 4" E PARAFUSO DE FIXACAO | C34: UN | D34: CR | E34: 6.48
A35: 39158 | B35: ABRACADEIRA EM ACO PARA AMARRACAO DE ELETRODUTOS, TIPO ECONOMICA (GOTA), COM 8" | C35: UN | D35: CR | E35: 17.4
A36: 39141 | B36: ABRACADEIRA EM ACO PARA AMARRACAO DE ELETRODUTOS, TIPO U SIMPLES, COM 1 1/2" | C36: UN | D36: CR | E36: 1.26
A37: 39140 | B37: ABRACADEIRA EM ACO PARA AMARRACAO DE ELETRODUTOS, TIPO U SIMPLES, COM 1 1/4" | C37: UN | D37: CR | E37: 1.14
A38: 39137 | B38: ABRACADEIRA EM ACO PARA AMARRACAO DE ELETRODUTOS, TIPO U SIMPLES, COM 1/2" | C38: UN | D38: CR | E38: 0.66
A39: 39139 | B39: ABRACADEIRA EM ACO PARA AMARRACAO DE ELETRODUTOS, TIPO U SIMPLES, COM 1" | C39: UN | D39: CR | E39: 0.95
A40: 39143 | B40: ABRACADEIRA EM ACO PARA AMARRACAO DE ELETRODUTOS, TIPO U SIMPLES, COM 2 1/2" | C40: UN | D40: CR | E40: 2.6
A41: 39142 | B41: ABRACADEIRA EM ACO PARA AMARRACAO DE ELETRODUTOS, TIPO U SIMPLES, COM 2" | C41: UN | D41: CR | E41: 1.86
A42: 39138 | B42: ABRACADEIRA EM ACO PARA AMARRACAO DE ELETRODUTOS, TIPO U SIMPLES, COM 3/4" | C42: UN | D42: CR | E42: 0.7
A43: 39136 | B43: ABRACADEIRA EM ACO PARA AMARRACAO DE ELETRODUTOS, TIPO U SIMPLES, COM 3/8" | C43: UN | D43: CR | E43: 0.46
A44: 39144 | B44: ABRACADEIRA EM ACO PARA AMARRACAO DE ELETRODUTOS, TIPO U SIMPLES, COM 3" | C44: UN | D44: CR | E44: 3.03
A45: 39145 | B45: ABRACADEIRA EM ACO PARA AMARRACAO DE ELETRODUTOS, TIPO U SIMPLES, COM 4" | C45: UN | D45: CR | E45: 5
A46: 12615 | B46: ABRACADEIRA PVC, PARA CALHA PLUVIAL, DIAMETRO ENTRE *80 E 100* MM, PARA DRENAGEM PLUVIAL PREDIAL | C46: UN | D46: CR | E46: 12.17
A47: 11927 | B47: ABRACADEIRA, GALVANIZADA/ZINCADA, ROSCA SEM FIM, PARAFUSO INOX, LARGURA FITA *12,6 A *14 MM, D = 2" A 2 1/2" | C47: UN | D47: CR | E47: 10.56
A48: 11928 | B48: ABRACADEIRA, GALVANIZADA/ZINCADA, ROSCA SEM FIM, PARAFUSO INOX, LARGURA FITA *12,6 A *14 MM, D = 3" A 3 3/4" | C48: UN | D48: CR | E48: 12.1
A49: 11929 | B49: ABRACADEIRA, GALVANIZADA/ZINCADA, ROSCA SEM FIM, PARAFUSO INOX, LARGURA FITA *12,6 A *14 MM, D = 4" A 4 3/4" | C49: UN | D49: CR | E49: 18.72
A50: 36801 | B50: ACABAMENTO DE METAL CROMADO PARA REGISTRO PEQUENO, DE PAREDE, 1/2" OU 3/4" | C50: UN | D50: CR | E50: 36.16
A51: 36246 | B51: ACABAMENTO SIMPLES/CONVENCIONAL PARA FORRO PVC, TIPO "U" OU "C", COR BRANCA, COMPRIMENTO 6 M | C51: M | D51: CR | E51: 4.32
A52: 37600 | B52: ACESSORIO DE LIGACAO NAO ELETRICO PARA CARGAS EXPLOSIVAS, TUBO DE 6 M | C52: UN | D52: AS | E52: 106.49
A53: 37599 | B53: ACESSORIO INICIADOR NAO ELETRICO, TUBO DE 6 M, TEMPO DE RETARDO DE *160* MS | C53: UN | D53: AS | E53: 99.11
A54: 1 | B54: ACETILENO (RECARGA DE GAS ACETILENO PARA CILINDRO DE CONJUNTO OXICORTE GRANDE) NAO INCLUI TROCA/MANUTENCAO DO CILINDRO | C54: KG | D54: C | E54: 120.75
A55: 3 | B55: ACIDO CLORIDRICO / ACIDO MURIATICO, DILUICAO 10% A 12% PARA USO EM LIMPEZA | C55: L | D55: CR | E55: 23.04
A56: 43054 | B56: ACO CA-25, 10,0 MM, OU 12,5 MM, OU 16,0 MM, OU 20,0 MM, OU 25,0 MM, VERGALHAO | C56: KG | D56: CR | E56: 8.51
A57: 42402 | B57: ACO CA-25, 16,0 MM, BARRA DE TRANSFERENCIA | C57: KG | D57: CR | E57: 8.13
A58: 42403 | B58: ACO CA-25, 20,0 MM, BARRA DE TRANSFERENCIA | C58: KG | D58: CR | E58: 10.43
A59: 42404 | B59: ACO CA-25, 25,0 MM, BARRA DE TRANSFERENCIA | C59: KG | D59: CR | E59: 10.37
A60: 42405 | B60: ACO CA-25, 32,0 MM, BARRA DE TRANSFERENCIA | C60: KG | D60: CR | E60: 11.05
A61: 34341 | B61: ACO CA-25, 32,0 MM, VERGALHAO | C61: KG | D61: CR | E61: 9.59
A62: 43053 | B62: ACO CA-25, 6,3 MM OU 8,0 MM, VERGALHAO | C62: KG | D62: CR | E62: 7.6
A63: 43058 | B63: ACO CA-50, 10,0 MM, OU 12,5 MM, OU 16,0 MM, OU 20,0 MM, DOBRADO E CORTADO | C63: KG | D63: CR | E63: 7.88
A64: 34 | B64: ACO CA-50, 10,0 MM, VERGALHAO | C64: KG | D64: CR | E64: 7.92
A65: 43055 | B65: ACO CA-50, 12,5 MM OU 16,0 MM, VERGALHAO | C65: KG | D65: C | E65: 6.86
A66: 43056 | B66: ACO CA-50, 20,0 MM OU 25,0 MM, VERGALHAO | C66: KG | D66: CR | E66: 7.91
A67: 43057 | B67: ACO CA-50, 32,0 MM, VERGALHAO | C67: KG | D67: CR | E67: 8.69
A68: 34449 | B68: ACO CA-50, 6,3 MM, DOBRADO E CORTADO | C68: KG | D68: CR | E68: 9.29
A69: 32 | B69: ACO CA-50, 6,3 MM, VERGALHAO | C69: KG | D69: CR | E69: 8.35
A70: 33 | B70: ACO CA-50, 8,0 MM, VERGALHAO | C70: KG | D70: CR | E70: 8.4
A71: 43061 | B71: ACO CA-60, 4,2 MM OU 5,0 MM, DOBRADO E CORTADO | C71: KG | D71: CR | E71: 7.85
A72: 43059 | B72: ACO CA-60, 4,2 MM, OU 5,0 MM, OU 6,0 MM, OU 7,0 MM, VERGALHAO | C72: KG | D72: CR | E72: 7.49
A73: 43062 | B73: ACO CA-60, 6,0 MM OU 7,0 MM, DOBRADO E CORTADO | C73: KG | D73: CR | E73: 8.3
A74: 43060 | B74: ACO CA-60, 8,0 MM OU 9,5 MM, VERGALHAO | C74: KG | D74: CR | E74: 6.53
A75: 40410 | B75: ACOPLAMENTO RIGIDO EM FERRO FUNDIDO PARA SISTEMA DE TUBULACAO RANHURADA, DN 50 MM (2") | C75: UN | D75: AS | E75: 20
A76: 40411 | B76: ACOPLAMENTO RIGIDO EM FERRO FUNDIDO PARA SISTEMA DE TUBULACAO RANHURADA, DN 65 MM (2 1/2") | C76: UN | D76: AS | E76: 21.7
A77: 40412 | B77: ACOPLAMENTO RIGIDO EM FERRO FUNDIDO PARA SISTEMA DE TUBULACAO RANHURADA, DN 80 MM (3") | C77: UN | D77: AS | E77: 24.36
A78: 44254 | B78: ADAPTADOR CPVC, ROSCAVEL, COM FLANGES E ANEL DE VEDACAO, 15 MM, CAIXA D'AGUA PARA AGUA QUENTE | C78: UN | D78: CR | E78: 28.88
A79: 44255 | B79: ADAPTADOR CPVC, ROSCAVEL, COM FLANGES E ANEL DE VEDACAO, 22 MM, CAIXA D'AGUA PARA AGUA QUENTE | C79: UN | D79: CR | E79: 32.01
A80: 44256 | B80: ADAPTADOR CPVC, ROSCAVEL, COM FLANGES E ANEL DE VEDACAO, 28 MM, CAIXA D'AGUA PARA AGUA QUENTE | C80: UN | D80: CR | E80: 36.15
A81: 44257 | B81: ADAPTADOR CPVC, ROSCAVEL, COM FLANGES E ANEL DE VEDACAO, 35 MM, CAIXA D'AGUA PARA AGUA QUENTE | C81: UN | D81: CR | E81: 57.2
A82: 44258 | B82: ADAPTADOR CPVC, ROSCAVEL, COM FLANGES E ANEL DE VEDACAO, 42 MM, CAIXA D'AGUA PARA AGUA QUENTE | C82: UN | D82: CR | E82: 65.37
A83: 44259 | B83: ADAPTADOR CPVC, ROSCAVEL, COM FLANGES E ANEL DE VEDACAO, 54 MM, CAIXA D'AGUA PARA AGUA QUENTE | C83: UN | D83: CR | E83: 89.72
A84: 37997 | B84: ADAPTADOR CPVC, SOLDAVEL, 15 MM, PARA AGUA QUENTE | C84: UN | D84: CR | E84: 17.21
A85: 37998 | B85: ADAPTADOR CPVC, SOLDAVEL, 22 MM, PARA AGUA QUENTE | C85: UN | D85: CR | E85: 23.03
A86: 55 | B86: ADAPTADOR DE COMPRESSAO EM POLIPROPILENO (PP), PARA TUBO EM PEAD, 20 MM X 1/2", PARA LIGACAO PREDIAL DE AGUA (NTS 179) | C86: UN | D86: C | E86: 4.5
A87: 61 | B87: ADAPTADOR DE COMPRESSAO EM POLIPROPILENO (PP), PARA TUBO EM PEAD, 20 MM X 3/4", PARA LIGACAO PREDIAL DE AGUA (NTS 179) | C87: UN | D87: CR | E87: 4.25
A88: 62 | B88: ADAPTADOR DE COMPRESSAO EM POLIPROPILENO (PP), PARA TUBO EM PEAD, 32 MM X 1", PARA LIGACAO PREDIAL DE AGUA (NTS 179) | C88: UN | D88: CR | E88: 8.82
A89: 10899 | B89: ADAPTADOR EM LATAO, ENGATE RAPIDO 2 1/2" X ROSCA INTERNA 5 FIOS 2 1/2", PARA INSTALACAO PREDIAL DE COMBATE A INCENDIO | C89: UN | D89: CR | E89: 78.85
A90: 10900 | B90: ADAPTADOR EM LATAO, ENGATE RAPIDO1 1/2" X ROSCA INTERNA 5 FIOS 2 1/2", PARA INSTALACAO PREDIAL DE COMBATE A INCENDIO | C90: UN | D90: CR | E90: 61.71
A91: 47 | B91: ADAPTADOR PVC PBA, BOLSA/ROSCA, JE, DN 100 / DE 110 MM | C91: UN | D91: CR | E91: 73.95
A92: 48 | B92: ADAPTADOR PVC PBA, BOLSA/ROSCA, JE, DN 50 / DE 60 MM | C92: UN | D92: CR | E92: 19.29
A93: 46 | B93: ADAPTADOR PVC PBA, BOLSA/ROSCA, JE, DN 75 / DE 85 MM | C93: UN | D93: CR | E93: 43.25
A94: 52 | B94: ADAPTADOR PVC PBA, PONTA/ROSCA, JE, DN 50 / DE 60 MM | C94: UN | D94: CR | E94: 14.65
A95: 43 | B95: ADAPTADOR PVC PBA, PONTA/ROSCA, JE, DN 75 / DE 85 MM | C95: UN | D95: CR | E95: 49.46
A96: 103 | B96: ADAPTADOR PVC SOLDAVEL CURTO COM BOLSA E ROSCA, 110 MM X 4", PARA AGUA FRIA | C96: UN | D96: CR | E96: 42.49
A97: 107 | B97: ADAPTADOR PVC SOLDAVEL CURTO COM BOLSA E ROSCA, 20 MM X 1/2", PARA AGUA FRIA | C97: UN | D97: CR | E97: 0.8
A98: 65 | B98: ADAPTADOR PVC SOLDAVEL CURTO COM BOLSA E ROSCA, 25 MM X 3/4", PARA AGUA FRIA | C98: UN | D98: CR | E98: 0.87
A99: 108 | B99: ADAPTADOR PVC SOLDAVEL CURTO COM BOLSA E ROSCA, 32 MM X 1", PARA AGUA FRIA | C99: UN | D99: CR | E99: 1.76
A100: 110 | B100: ADAPTADOR PVC SOLDAVEL CURTO COM BOLSA E ROSCA, 40 MM X 1 1/2", PARA AGUA FRIA | C100: UN | D100: CR | E100: 6.11
A101: 109 | B101: ADAPTADOR PVC SOLDAVEL CURTO COM BOLSA E ROSCA, 40 MM X 1 1/4", PARA AGUA FRIA | C101: UN | D101: CR | E101: 3.64
A102: 111 | B102: ADAPTADOR PVC SOLDAVEL CURTO COM BOLSA E ROSCA, 50 MM X 1 1/4", PARA AGUA FRIA | C102: UN | D102: CR | E102: 8.27
A103: 112 | B103: ADAPTADOR PVC SOLDAVEL CURTO COM BOLSA E ROSCA, 50 MM X1 1/2", PARA AGUA FRIA | C103: UN | D103: CR | E103: 4.38
A104: 113 | B104: ADAPTADOR PVC SOLDAVEL CURTO COM BOLSA E ROSCA, 60 MM X 2", PARA AGUA FRIA | C104: UN | D104: CR | E104: 10.97
A105: 104 | B105: ADAPTADOR PVC SOLDAVEL CURTO COM BOLSA E ROSCA, 75 MM X 2 1/2", PARA AGUA FRIA | C105: UN | D105: CR | E105: 19.1
A106: 102 | B106: ADAPTADOR PVC SOLDAVEL CURTO COM BOLSA E ROSCA, 85 MM X 3", PARA AGUA FRIA | C106: UN | D106: CR | E106: 26.33
A107: 95 | B107: ADAPTADOR PVC SOLDAVEL, COM FLANGE E ANEL DE VEDACAO, 20 MM X 1/2", PARA CAIXA D'AGUA | C107: UN | D107: CR | E107: 11.13
A108: 96 | B108: ADAPTADOR PVC SOLDAVEL, COM FLANGE E ANEL DE VEDACAO, 25 MM X 3/4", PARA CAIXA D'AGUA | C108: UN | D108: CR | E108: 12.1
A109: 97 | B109: ADAPTADOR PVC SOLDAVEL, COM FLANGE E ANEL DE VEDACAO, 32 MM X 1", PARA CAIXA D'AGUA | C109: UN | D109: CR | E109: 18.21
A110: 98 | B110: ADAPTADOR PVC SOLDAVEL, COM FLANGE E ANEL DE VEDACAO, 40 MM X 1 1/4", PARA CAIXA D'AGUA | C110: UN | D110: CR | E110: 27.26
A111: 99 | B111: ADAPTADOR PVC SOLDAVEL, COM FLANGE E ANEL DE VEDACAO, 50 MM X 1 1/2", PARA CAIXA D'AGUA | C111: UN | D111: CR | E111: 25.76
A112: 60 | B112: ADAPTADOR PVC, COM REGISTRO, PARA PEAD, 20 MM X 3/4", PARA LIGACAO PREDIAL DE AGUA | C112: UN | D112: CR | E112: 5.84
A113: 72 | B113: ADAPTADOR PVC, ROSCAVEL, COM FLANGES E ANEL DE VEDACAO, 1 1/2", PARA CAIXA D'AGUA | C113: UN | D113: CR | E113: 49.41
A114: 67 | B114: ADAPTADOR PVC, ROSCAVEL, COM FLANGES E ANEL DE VEDACAO, 1/2", PARA CAIXA D'AGUA | C114: UN | D114: CR | E114: 15.97
A115: 71 | B115: ADAPTADOR PVC, ROSCAVEL, COM FLANGES E ANEL DE VEDACAO, 1", PARA CAIXA D'AGUA | C115: UN | D115: CR | E115: 30.51
A116: 73 | B116: ADAPTADOR PVC, ROSCAVEL, COM FLANGES E ANEL DE VEDACAO, 3/4", PARA CAIXA D'AGUA | C116: UN | D116: CR | E116: 15.29
A117: 100 | B117: ADAPTADOR PVC, SOLDAVEL, COM FLANGES E ANEL DE VEDACAO, 60 MM X 2", PARA CAIXA D'AGUA | C117: UN | D117: CR | E117: 45.01
A118: 75 | B118: ADAPTADOR PVC, SOLDAVEL, COM FLANGES LIVRES, 110 MM X 4", PARA CAIXA D'AGUA | C118: UN | D118: CR | E118: 262.43
A119: 83 | B119: ADAPTADOR PVC, SOLDAVEL, COM FLANGES LIVRES, 75 MM X 2 1/2", PARA CAIXA D'AGUA | C119: UN | D119: CR | E119: 209.8
A120: 74 | B120: ADAPTADOR PVC, SOLDAVEL, COM FLANGES LIVRES, 85 MM X 3", PARA CAIXA D'AGUA | C120: UN | D120: CR | E120: 299.96
A121: 106 | B121: ADAPTADOR PVC, SOLDAVEL, LONGO, COM FLANGE LIVRE, 110 MM X 4", PARA CAIXA D'AGUA | C121: UN | D121: CR | E121: 379.31
A122: 88 | B122: ADAPTADOR PVC, SOLDAVEL, LONGO, COM FLANGE LIVRE, 32 MM X 1", PARA CAIXA D'AGUA | C122: UN | D122: CR | E122: 10.66
A123: 82 | B123: ADAPTADOR PVC, SOLDAVEL, LONGO, COM FLANGE LIVRE, 75 MM X 2 1/2", PARA CAIXA D'AGUA | C123: UN | D123: CR | E123: 199.61
A124: 105 | B124: ADAPTADOR PVC, SOLDAVEL, LONGO, COM FLANGE LIVRE, 85 MM X 3", PARA CAIXA D'AGUA | C124: UN | D124: CR | E124: 282.84
A125: 39719 | B125: ADESIVO / COLA DE CONTATO LIQUIDO, A BASE DE RESINAS, PARA COLAGEM DE ESPUMA PARA ISOLAMENTO TERMICO FLEXIVEL | C125: L | D125: CR | E125: 161.12
A126: 3410 | B126: ADESIVO / COLA PARA EPS (ISOPOR) E OUTROS MATERIAIS | C126: KG | D126: CR | E126: 36.24
A127: 4791 | B127: ADESIVO ACRILICO DE BASE AQUOSA / COLA DE CONTATO | C127: KG | D127: CR | E127: 49.72
A128: 157 | B128: ADESIVO ESTRUTURAL A BASE DE RESINA EPOXI PARA INJECAO EM TRINCAS, BICOMPONENTE, BAIXA VISCOSIDADE | C128: KG | D128: CR | E128: 123.85
A129: 156 | B129: ADESIVO ESTRUTURAL A BASE DE RESINA EPOXI, BICOMPONENTE, FLUIDO | C129: KG | D129: CR | E129: 44.1
A130: 131 | B130: ADESIVO ESTRUTURAL A BASE DE RESINA EPOXI, BICOMPONENTE, PASTOSO (TIXOTROPICO) | C130: KG | D130: CR | E130: 37.71
A131: 21114 | B131: ADESIVO PARA TUBOS CPVC, *75* G | C131: UN | D131: CR | E131: 31.76
A132: 119 | B132: ADESIVO PLASTICO PARA PVC, BISNAGA COM 75 GR | C132: UN | D132: C | E132: 8.05
A133: 122 | B133: ADESIVO PLASTICO PARA PVC, FRASCO COM *850* GR | C133: UN | D133: CR | E133: 61.94
A134: 20080 | B134: ADESIVO PLASTICO PARA PVC, FRASCO COM 175 GR | C134: UN | D134: CR | E134: 20.21
A135: 124 | B135: ADITIVO ACELERADOR DE PEGA E ENDURECIMENTO PARA ARGAMASSAS E CONCRETOS, LIQUIDO E ISENTO DE CLORETOS | C135: L | D135: CR | E135: 14.54
A136: 7334 | B136: ADITIVO ADESIVO LIQUIDO PARA ARGAMASSAS DE REVESTIMENTOS CIMENTICIOS | C136: L | D136: CR | E136: 14.51
A137: 45146 | B137: ADITIVO IMPERMEABILIZANTE CRISTALIZANTE PARA CONCRETO | C137: KG | D137: CR | E137: 27.88
A138: 123 | B138: ADITIVO IMPERMEABILIZANTE DE PEGA NORMAL PARA ARGAMASSAS E CONCRETOS SEM ARMACAO, LIQUIDO E ISENTO DE CLORETOS | C138: L | D138: C | E138: 5.95
A139: 127 | B139: ADITIVO IMPERMEABILIZANTE DE PEGA ULTRARRAPIDA, LIQUIDO E ISENTO DE CLORETOS | C139: L | D139: CR | E139: 14.2
A140: 133 | B140: ADITIVO LIQUIDO INCORPORADOR DE AR PARA CONCRETO E ARGAMASSA, LIQUIDO E ISENTO DE CLORETOS | C140: L | D140: CR | E140: 5.9
A141: 43617 | B141: ADITIVO PLASTIFICANTE E ESTABILIZADOR PARA ARGAMASSAS DE ASSENTAMENTO E REBOCO, LIQUIDO E ISENTO DE CLORETOS | C141: L | D141: CR | E141: 6.59
A142: 132 | B142: ADITIVO PLASTIFICANTE RETARDADOR DE PEGA E REDUTOR DE AGUA PARA CONCRETO, LIQUIDO E ISENTO DE CLORETOS | C142: L | D142: CR | E142: 6.11
A143: 43618 | B143: ADITIVO SUPERPLASTIFICANTE DE PEGA NORMAL PARA CONCRETO, LIQUIDO E ISENTO DE CLORETOS | C143: KG | D143: CR | E143: 15.4
A144: 37476 | B144: ADUELA/ GALERIA PRE-MOLDADA DE CONCRETO ARMADO, SECAO QUADRADA INTERNA DE 1,50 X 1,50 M (L X A), MISULA DE 20 X 20 CM, C = 1,00 M, ESPESSURA MIN = 15 CM, TB-45 E FCK DO CONCRETO = 30 MPA | C144: UN | D144: CR | E144: 4076.47
A145: 37478 | B145: ADUELA/ GALERIA PRE-MOLDADA DE CONCRETO ARMADO, SECAO RETANGULAR INTERNA DE 2,00 X 2,00 M (L X A), MISULA DE 20 X 20 CM, C = 1,00 M, ESPESSURA MIN = 15 CM, TB-45 E FCK DO CONCRETO = 30 MPA | C145: UN | D145: CR | E145: 5105.88
A146: 37477 | B146: ADUELA/ GALERIA PRE-MOLDADA DE CONCRETO ARMADO, SECAO RETANGULAR INTERNA DE 2,50 X 2,50 M (L X A), MISULA DE 20 X 20 CM, C = 1,00 M, ESPESSURA MIN = 15 CM, TB-45 E FCK DO CONCRETO = 30 MPA | C146: UN | D146: CR | E146: 6917.64
A147: 37479 | B147: ADUELA/ GALERIA PRE-MOLDADA DE CONCRETO ARMADO, SECAO RETANGULAR INTERNA DE 3,00 X 3,00 M (L X A), MISULA DE 20 X 20 CM, C = 1.00 M, ESPESSURA MIN = 20 CM, TB-45 E FCK DO CONCRETO = 30 MPA | C147: UN | D147: CR | E147: 8204.41
A148: 4319 | B148: AFASTADOR PARA TELHA DE FIBROCIMENTO CANALETE 90 OU KALHETAO | C148: UN | D148: CR | E148: 2.37
A149: 42409 | B149: AGENTE DE CURA, PROTETOR DA EVAPORACAO DA AGUA DE HIDRATACAO DO CONCRETO | C149: KG | D149: CR | E149: 9.69
A150: 40553 | B150: AGREGADO RECICLADO, TIPO RACHAO RECICLADO CINZA, CLASSE A | C150: M3 | D150: AS | E150: 60
A151: 6114 | B151: AJUDANTE DE ARMADOR (HORISTA) | C151: H | D151: CR | E151: 16.33
A152: 40912 | B152: AJUDANTE DE ARMADOR (MENSALISTA) | C152: MES | D152: CR | E152: 2888.16
A153: 247 | B153: AJUDANTE DE ELETRICISTA (HORISTA) | C153: H | D153: CR | E153: 16.33
A154: 40919 | B154: AJUDANTE DE ELETRICISTA (MENSALISTA) | C154: MES | D154: CR | E154: 2888.16
A155: 44499 | B155: AJUDANTE DE ESTRUTURAS METALICAS (HORISTA) | C155: H | D155: CR | E155: 16.33
A156: 40984 | B156: AJUDANTE DE ESTRUTURAS METALICAS (MENSALISTA) | C156: MES | D156: CR | E156: 2888.16
A157: 248 | B157: AJUDANTE DE OPERACAO EM GERAL (HORISTA) | C157: H | D157: CR | E157: 17.69
A158: 41086 | B158: AJUDANTE DE OPERACAO EM GERAL (MENSALISTA) | C158: MES | D158: CR | E158: 3130.25
A159: 34466 | B159: AJUDANTE DE PINTOR (HORISTA) | C159: H | D159: CR | E159: 16.33
A160: 41083 | B160: AJUDANTE DE PINTOR (MENSALISTA) | C160: MES | D160: CR | E160: 2888.16
A161: 252 | B161: AJUDANTE DE SERRALHEIRO (HORISTA) | C161: H | D161: CR | E161: 16.33
A162: 40909 | B162: AJUDANTE DE SERRALHEIRO (MENSALISTA) | C162: MES | D162: CR | E162: 2888.16
A163: 242 | B163: AJUDANTE ESPECIALIZADO (HORISTA) | C163: H | D163: CR | E163: 17.69
A164: 41085 | B164: AJUDANTE ESPECIALIZADO (MENSALISTA) | C164: MES | D164: CR | E164: 3130.25
A165: 427 | B165: ALCA PREFORMADA DE CONTRA POSTE, EM ACO GALVANIZADO, PARA CABO 3/16", COMPRIMENTO *860* MM | C165: UN | D165: AS | E165: 6.55
A166: 417 | B166: ALCA PREFORMADA DE DISTRIBUICAO, EM ACO GALVANIZADO, PARA CABO DE ALUMINIO DIAMETRO 16 A 25 MM | C166: UN | D166: AS | E166: 3.08
A167: 11273 | B167: ALCA PREFORMADA DE DISTRIBUICAO, EM ACO GALVANIZADO, PARA CONDUTORES DE ALUMINIO AWG 1/0 (CAA 6/1 OU CA 7 FIOS) | C167: UN | D167: AS | E167: 9.58
A168: 11272 | B168: ALCA PREFORMADA DE DISTRIBUICAO, EM ACO GALVANIZADO, PARA CONDUTORES DE ALUMINIO AWG 2 (CAA 6/1 OU CA 7 FIOS) | C168: UN | D168: AS | E168: 5.78
A169: 11275 | B169: ALCA PREFORMADA DE SERVICO, EM ACO GALVANIZADO, PARA CONDUTORES DE ALUMINIO AWG 4 (CAA 6/1) | C169: UN | D169: AS | E169: 2.32
A170: 11274 | B170: ALCA PREFORMADA DE SERVICO, EM ACO GALVANIZADO, PARA CONDUTORES DE ALUMINIO AWG 6 (CAA 6/1) | C170: UN | D170: AS | E170: 1.77
A171: 38470 | B171: ALICATE DE CORTE DIAGONAL 6" COM ISOLAMENTO | C171: UN | D171: C | E171: 34.45
A172: 38547 | B172: ALICATE DE CRIMPAR RJ11, RJ12 E RJ45 | C172: UN | D172: CR | E172: 94.01
A173: 38469 | B173: ALICATE DE PRESSAO PARA SOLDA DE CHAPA 18" | C173: UN | D173: CR | E173: 101.08
A174: 38467 | B174: ALICATE DE PRESSAO 11" PARA SOLDA, TIPO C | C174: UN | D174: CR | E174: 56.87
A175: 38468 | B175: ALICATE DE PRESSAO 11" PARA SOLDA, TIPO U | C175: UN | D175: CR | E175: 62.59
A176: 38471 | B176: ALICATE PARA ANEIS DE PISTAO, CAPACIDADE 50 A 100 MM | C176: UN | D176: CR | E176: 81.28
A177: 37370 | B177: ALIMENTACAO - HORISTA (COLETADO CAIXA - ENCARGOS COMPLEMENTARES) | C177: H | D177: C | E177: 1.89
A178: 40862 | B178: ALIMENTACAO - MENSALISTA (COLETADO CAIXA - ENCARGOS COMPLEMENTARES) | C178: MES | D178: C | E178: 355.72
A179: 10658 | B179: ALISADORA DE CONCRETO COM MOTOR A GASOLINA DE 5,5 HP, PESO COM MOTOR DE 78 KG, 4 PAS | C179: UN | D179: AS | E179: 7709
A180: 253 | B180: ALMOXARIFE (HORISTA) | C180: H | D180: C | E180: 21.62
A181: 40809 | B181: ALMOXARIFE (MENSALISTA) | C181: MES | D181: CR | E181: 3820.57
A182: 42428 | B182: ALONGADOR COM TRES ALTURAS, EM TUBO DE ACO CARBONO, PINTURA NO PROCESSO ELETROSTATICO - EQUIPAMENTO DE GINASTICA PARA ACADEMIA AO AR LIVRE / ACADEMIA DA TERCEIRA IDADE - ATI | C182: UN | D182: AS | E182: 2271
A183: 301 | B183: ANEL BORRACHA PARA TUBO ESGOTO PREDIAL, DN 100 MM (NBR 5688) | C183: UN | D183: C | E183: 2.85
A184: 296 | B184: ANEL BORRACHA PARA TUBO ESGOTO PREDIAL, DN 50 MM (NBR 5688) | C184: UN | D184: CR | E184: 1.61
A185: 297 | B185: ANEL BORRACHA PARA TUBO ESGOTO PREDIAL, DN 75 MM (NBR 5688) | C185: UN | D185: CR | E185: 2.36
A186: 299 | B186: ANEL BORRACHA, DN 100 MM, PARA TUBO SERIE REFORCADA ESGOTO PREDIAL | C186: UN | D186: CR | E186: 3.34
A187: 300 | B187: ANEL BORRACHA, DN 150 MM, PARA TUBO SERIE REFORCADA ESGOTO PREDIAL | C187: UN | D187: CR | E187: 11.57
A188: 20085 | B188: ANEL BORRACHA, DN 50 MM, PARA TUBO SERIE REFORCADA ESGOTO PREDIAL | C188: UN | D188: CR | E188: 2.11
A189: 298 | B189: ANEL BORRACHA, DN 75 MM, PARA TUBO SERIE REFORCADA ESGOTO PREDIAL | C189: UN | D189: CR | E189: 2.57
A190: 311 | B190: ANEL BORRACHA, PARA TUBO PVC DEFOFO, DN 100 MM (NBR 7665) | C190: UN | D190: CR | E190: 9.54
A191: 318 | B191: ANEL BORRACHA, PARA TUBO PVC DEFOFO, DN 150 MM (NBR 7665) | C191: UN | D191: CR | E191: 19.21
A192: 319 | B192: ANEL BORRACHA, PARA TUBO PVC DEFOFO, DN 200 MM (NBR 7665) | C192: UN | D192: CR | E192: 30.12
A193: 303 | B193: ANEL BORRACHA, PARA TUBO PVC, REDE COLETOR ESGOTO, DN 100 MM (NBR 7362) | C193: UN | D193: CR | E193: 3.15
A194: 305 | B194: ANEL BORRACHA, PARA TUBO PVC, REDE COLETOR ESGOTO, DN 150 MM (NBR 7362) | C194: UN | D194: CR | E194: 9.93
A195: 306 | B195: ANEL BORRACHA, PARA TUBO PVC, REDE COLETOR ESGOTO, DN 200 MM (NBR 7362) | C195: UN | D195: CR | E195: 15.06
A196: 307 | B196: ANEL BORRACHA, PARA TUBO PVC, REDE COLETOR ESGOTO, DN 250 MM (NBR 7362) | C196: UN | D196: CR | E196: 38.05
A197: 309 | B197: ANEL BORRACHA, PARA TUBO PVC, REDE COLETOR ESGOTO, DN 350 MM (NBR 7362) | C197: UN | D197: CR | E197: 62.34
A198: 310 | B198: ANEL BORRACHA, PARA TUBO PVC, REDE COLETOR ESGOTO, DN 400 MM (NBR 7362) | C198: UN | D198: CR | E198: 86.4
A199: 328 | B199: ANEL BORRACHA, PARA TUBO/CONEXAO PVC PBA, DN 100 MM, PARA REDE AGUA | C199: UN | D199: CR | E199: 7.55
A200: 325 | B200: ANEL BORRACHA, PARA TUBO/CONEXAO PVC PBA, DN 50 MM, PARA REDE AGUA | C200: UN | D200: CR | E200: 2.23
A201: 20326 | B201: ANEL BORRACHA, PARA TUBO/CONEXAO PVC PBA, DN 60 MM, PARA REDE AGUA | C201: UN | D201: CR | E201: 4.07
A202: 329 | B202: ANEL BORRACHA, PARA TUBO/CONEXAO PVC PBA, DN 75 MM, PARA REDE AGUA | C202: UN | D202: CR | E202: 6.31
... 4737 more rows
